Workbook

Sheet In_out
D1: Shriram Multi Sector Rotation Fund | E1: q | P1: Shriram Aggressive Hybrid Fund | Q1: A1
D2: ="As on "&TEXT(H4,"dd-Mmm-YYYY") ->  | P2: Shriram Flexi Cap Fund | Q2: F1
D3: =D1 -> Shriram Multi Sector Rotation Fund | H3: =D1 -> Shriram Multi Sector Rotation Fund | P3: Shriram ELSS Tax Saver Fund | Q3: K1
C4: S.n | D4: New Entrant | E4: Complete Exit | H4: =#REF! ->  | P4: Shriram Balanced Advantage Fund | Q4: P1
B5: =MAX('Total In Out'!M:M) ->  | C5: 1 | D5: =IFERROR(VLOOKUP(C5,'Total In Out'!L:N,3,0),"") ->  | E5: =IFERROR(VLOOKUP(B5,'Total In Out'!M:N,2,0),"") ->  | P5: Shriram Multi Asset Allocation Fund | Q5: U1
B6: =IF(B5="","",IF(B5-1<1,"",B5-1)) ->  | C6: 2 | D6: =IFERROR(VLOOKUP(C6,'Total In Out'!L:N,3,0),"") ->  | E6: =IFERROR(VLOOKUP(B6,'Total In Out'!M:N,2,0),"") ->  | H6: New Entrant | P6: Shriram Multi Sector Rotation Fund | Q6: Y1
C7: 3 | D7: =IFERROR(VLOOKUP(C7,'Total In Out'!L:N,3,0),"") ->  | E7: =IFERROR(VLOOKUP(B7,'Total In Out'!M:N,2,0),"") ->  | H7: =CONCATENATE(D5,", ",D6,", ",D7,", ",D8,", ",D9,", ",D10,", ",D11,", ",D12,", ",D13,", ",D14,", ",D15,", ",D16,", ",D17,", ",D18,", ",D19,", ",D20,", ",D21,", ",D22,", ",D23,", ",D24,", ",D25,", ",D26,", ",D27,", ",D28,", ",D29,", ",D30,", ",D31,", ",D32,", ",D33,", ",D34,", ",D35,", ",D36,", ",D37,", ",D38,", ",D39,", ",D40,", ",D41,", ",D42,", ",D43,", ",D44) -> , , , , , , , , , , , , , , , , , , , , , , , , , , , , , , , , , , , , , , ,
C8: 4 | D8: =IFERROR(VLOOKUP(C8,'Total In Out'!L:N,3,0),"") ->  | E8: =IFERROR(VLOOKUP(B8,'Total In Out'!M:N,2,0),"") -> 
C9: 5 | D9: =IFERROR(VLOOKUP(C9,'Total In Out'!L:N,3,0),"") ->  | E9: =IFERROR(VLOOKUP(B9,'Total In Out'!M:N,2,0),"") -> 
C10: 6 | D10: =IFERROR(VLOOKUP(C10,'Total In Out'!L:N,3,0),"") ->  | E10: =IFERROR(VLOOKUP(B10,'Total In Out'!M:N,2,0),"") -> 
C11: 7 | D11: =IFERROR(VLOOKUP(C11,'Total In Out'!L:N,3,0),"") ->  | E11: =IFERROR(VLOOKUP(B11,'Total In Out'!M:N,2,0),"") ->  | H11: Complete Exit
C12: 8 | D12: =IFERROR(VLOOKUP(C12,'Total In Out'!L:N,3,0),"") ->  | E12: =IFERROR(VLOOKUP(B12,'Total In Out'!M:N,2,0),"") ->  | H12: =CONCATENATE(E5,", ",E6,", ",E7,", ",E8,", ",E9,", ",E10,", ",E11,", ",E12,", ",E13,", ",E14,", ",E15,", ",E16,", ",E17,", ",E18,", ",E19,", ",E20,", ",E21,", ",E22,", ",E23,", ",E24,", ",E25,", ",E26,", ",E27,", ",E28,", ",E29,", ",E30,", ",E31,", ",E32,", ",E33,", ",E34,", ",E35,", ",E36,", ",E37,", ",E38,", ",E39,", ",E40,", ",E41,", ",E42,", ",E43,", ",E44) -> , , , , , , , , , , , , , , , , , , , , , , , , , , , , , , , , , , , , , , ,
C13: 9 | D13: =IFERROR(VLOOKUP(C13,'Total In Out'!L:N,3,0),"") ->  | E13: =IFERROR(VLOOKUP(B13,'Total In Out'!M:N,2,0),"") -> 
C14: 10 | D14: =IFERROR(VLOOKUP(C14,'Total In Out'!L:N,3,0),"") ->  | E14: =IFERROR(VLOOKUP(B14,'Total In Out'!M:N,2,0),"") -> 
C15: 11 | D15: =IFERROR(VLOOKUP(C15,'Total In Out'!L:N,3,0),"") ->  | E15: =IFERROR(VLOOKUP(B15,'Total In Out'!M:N,2,0),"") -> 
C16: 12 | D16: =IFERROR(VLOOKUP(C16,'Total In Out'!L:N,3,0),"") ->  | E16: =IFERROR(VLOOKUP(B16,'Total In Out'!M:N,2,0),"") -> 
C17: 13 | D17: =IFERROR(VLOOKUP(C17,'Total In Out'!L:N,3,0),"") ->  | E17: =IFERROR(VLOOKUP(B17,'Total In Out'!M:N,2,0),"") -> 
C18: 14 | D18: =IFERROR(VLOOKUP(C18,'Total In Out'!L:N,3,0),"") ->  | E18: =IFERROR(VLOOKUP(B18,'Total In Out'!M:N,2,0),"") -> 
C19: 15 | D19: =IFERROR(VLOOKUP(C19,'Total In Out'!L:N,3,0),"") ->  | E19: =IFERROR(VLOOKUP(B19,'Total In Out'!M:N,2,0),"") -> 
C20: 16 | D20: =IFERROR(VLOOKUP(C20,'Total In Out'!L:N,3,0),"") ->  | E20: =IFERROR(VLOOKUP(B20,'Total In Out'!M:N,2,0),"") -> 
B21: =IF(B20="","",IF(B20-1<1,"",B20-1)) ->  | C21: 17 | D21: =IFERROR(VLOOKUP(C21,'Total In Out'!L:N,3,0),"") ->  | E21: =IFERROR(VLOOKUP(B21,'Total In Out'!M:N,2,0),"") -> 
B22: =IF(B21="","",IF(B21-1<1,"",B21-1)) ->  | C22: 18 | D22: =IFERROR(VLOOKUP(C22,'Total In Out'!L:N,3,0),"") ->  | E22: =IFERROR(VLOOKUP(B22,'Total In Out'!M:N,2,0),"") -> 
C23: 19 | D23: =IFERROR(VLOOKUP(C23,'Total In Out'!L:N,3,0),"") ->  | E23: =IFERROR(VLOOKUP(B23,'Total In Out'!M:N,2,0),"") -> 
C24: 20 | D24: =IFERROR(VLOOKUP(C24,'Total In Out'!L:N,3,0),"") ->  | E24: =IFERROR(VLOOKUP(B24,'Total In Out'!M:N,2,0),"") -> 
C25: 21 | D25: =IFERROR(VLOOKUP(C25,'Total In Out'!L:N,3,0),"") ->  | E25: =IFERROR(VLOOKUP(B25,'Total In Out'!M:N,2,0),"") -> 
C26: 22 | D26: =IFERROR(VLOOKUP(C26,'Total In Out'!L:N,3,0),"") ->  | E26: =IFERROR(VLOOKUP(B26,'Total In Out'!M:N,2,0),"") -> 
C27: 23 | D27: =IFERROR(VLOOKUP(C27,'Total In Out'!L:N,3,0),"") ->  | E27: =IFERROR(VLOOKUP(B27,'Total In Out'!M:N,2,0),"") -> 
C28: 24 | D28: =IFERROR(VLOOKUP(C28,'Total In Out'!L:N,3,0),"") ->  | E28: =IFERROR(VLOOKUP(B28,'Total In Out'!M:N,2,0),"") -> 
C29: 25 | D29: =IFERROR(VLOOKUP(C29,'Total In Out'!L:N,3,0),"") ->  | E29: =IFERROR(VLOOKUP(B29,'Total In Out'!M:N,2,0),"") -> 
C30: 26 | D30: =IFERROR(VLOOKUP(C30,'Total In Out'!L:N,3,0),"") ->  | E30: =IFERROR(VLOOKUP(B30,'Total In Out'!M:N,2,0),"") -> 
C31: 27 | D31: =IFERROR(VLOOKUP(C31,'Total In Out'!L:N,3,0),"") ->  | E31: =IFERROR(VLOOKUP(B31,'Total In Out'!M:N,2,0),"") -> 
C32: 28 | D32: =IFERROR(VLOOKUP(C32,'Total In Out'!L:N,3,0),"") ->  | E32: =IFERROR(VLOOKUP(B32,'Total In Out'!M:N,2,0),"") -> 
C33: 29 | D33: =IFERROR(VLOOKUP(C33,'Total In Out'!L:N,3,0),"") ->  | E33: =IFERROR(VLOOKUP(B33,'Total In Out'!M:N,2,0),"") -> 
C34: 30 | D34: =IFERROR(VLOOKUP(C34,'Total In Out'!L:N,3,0),"") ->  | E34: =IFERROR(VLOOKUP(B34,'Total In Out'!M:N,2,0),"") -> 
C35: 31 | D35: =IFERROR(VLOOKUP(C35,'Total In Out'!L:N,3,0),"") ->  | E35: =IFERROR(VLOOKUP(B35,'Total In Out'!M:N,2,0),"") -> 
C36: 32 | D36: =IFERROR(VLOOKUP(C36,'Total In Out'!L:N,3,0),"") ->  | E36: =IFERROR(VLOOKUP(B36,'Total In Out'!M:N,2,0),"") -> 
C37: 33 | D37: =IFERROR(VLOOKUP(C37,'Total In Out'!L:N,3,0),"") ->  | E37: =IFERROR(VLOOKUP(B37,'Total In Out'!M:N,2,0),"") -> 
C38: 34 | D38: =IFERROR(VLOOKUP(C38,'Total In Out'!L:N,3,0),"") ->  | E38: =IFERROR(VLOOKUP(B38,'Total In Out'!M:N,2,0),"") -> 
C39: 35 | D39: =IFERROR(VLOOKUP(C39,'Total In Out'!L:N,3,0),"") ->  | E39: =IFERROR(VLOOKUP(B39,'Total In Out'!M:N,2,0),"") -> 
C40: 36 | D40: =IFERROR(VLOOKUP(C40,'Total In Out'!L:N,3,0),"") ->  | E40: =IFERROR(VLOOKUP(B40,'Total In Out'!M:N,2,0),"") -> 
C41: 37 | D41: =IFERROR(VLOOKUP(C41,'Total In Out'!L:N,3,0),"") ->  | E41: =IFERROR(VLOOKUP(B41,'Total In Out'!M:N,2,0),"") -> 
C42: 38 | D42: =IFERROR(VLOOKUP(C42,'Total In Out'!L:N,3,0),"") ->  | E42: =IFERROR(VLOOKUP(B42,'Total In Out'!M:N,2,0),"") -> 
C43: 39 | D43: =IFERROR(VLOOKUP(C43,'Total In Out'!L:N,3,0),"") ->  | E43: =IFERROR(VLOOKUP(B43,'Total In Out'!M:N,2,0),"") -> 
C44: 40 | D44: =IFERROR(VLOOKUP(C44,'Total In Out'!L:N,3,0),"") ->  | E44: =IFERROR(VLOOKUP(B44,'Total In Out'!M:N,2,0),"") -> 
C45: 41 | D45: =IFERROR(VLOOKUP(C45,'Total In Out'!L:N,3,0),"") ->  | E45: =IFERROR(VLOOKUP(B45,'Total In Out'!M:N,2,0),"") -> 
C46: 42 | D46: =IFERROR(VLOOKUP(C46,'Total In Out'!L:N,3,0),"") ->  | E46: =IFERROR(VLOOKUP(B46,'Total In Out'!M:N,2,0),"") -> 
C47: 43 | D47: =IFERROR(VLOOKUP(C47,'Total In Out'!L:N,3,0),"") ->  | E47: =IFERROR(VLOOKUP(B47,'Total In Out'!M:N,2,0),"") -> 
C48: 44 | D48: =IFERROR(VLOOKUP(C48,'Total In Out'!L:N,3,0),"") ->  | E48: =IFERROR(VLOOKUP(B48,'Total In Out'!M:N,2,0),"") -> 
C49: 45 | D49: =IFERROR(VLOOKUP(C49,'Total In Out'!L:N,3,0),"") ->  | E49: =IFERROR(VLOOKUP(B49,'Total In Out'!M:N,2,0),"") -> 
C50: 46 | D50: =IFERROR(VLOOKUP(C50,'Total In Out'!L:N,3,0),"") ->  | E50: =IFERROR(VLOOKUP(B50,'Total In Out'!M:N,2,0),"") -> 
C51: 47 | D51: =IFERROR(VLOOKUP(C51,'Total In Out'!L:N,3,0),"") ->  | E51: =IFERROR(VLOOKUP(B51,'Total In Out'!M:N,2,0),"") -> 
C52: 48 | D52: =IFERROR(VLOOKUP(C52,'Total In Out'!L:N,3,0),"") ->  | E52: =IFERROR(VLOOKUP(B52,'Total In Out'!M:N,2,0),"") -> 
C53: 49 | D53: =IFERROR(VLOOKUP(C53,'Total In Out'!L:N,3,0),"") ->  | E53: =IFERROR(VLOOKUP(B53,'Total In Out'!M:N,2,0),"") -> 
C54: 50 | D54: =IFERROR(VLOOKUP(C54,'Total In Out'!L:N,3,0),"") ->  | E54: =IFERROR(VLOOKUP(B54,'Total In Out'!M:N,2,0),"") -> 

Sheet Print
B1: As on 28-Feb-2026 | G1: As on 28-Feb-2026 | L1: As on 28-Feb-2026 | Q1: As on 28-Feb-2026 | V1: As on 28-Feb-2026 | Z1: As on 28-Feb-2026
B2: Shriram Aggressive Hybrid Fund | G2: Shriram Flexi Cap Fund | L2: Shriram ELSS Tax Saver Fund | Q2: Shriram Balanced Advantage Fund | V2: Shriram Multi Asset Allocation Fund | Z2: Shriram Multi Sector Rotation Fund
A3: S.n | B3: New Entrant | C3: Complete Exit | F3: S.n | G3: New Entrant | H3: Complete Exit | K3: S.n | L3: New Entrant | M3: Complete Exit | P3: S.n | Q3: New Entrant | R3: Complete Exit | U3: S.n | V3: New Entrant | W3: Complete Exit | Y3: S.n | Z3: New Entrant | AA3: Complete Exit
A4: 1 | F4: 1 | G4: MARICO | H4: PNBHOUSING | K4: 1 | L4: MARICO | M4: PNBHOUSING | P4: 1 | R4: NH | U4: 1 | Y4: 1
A5: 2 | F5: 2 | G5: KIMS | H5: CSBBANK | K5: 2 | L5: KIMS | M5: CSBBANK | P5: 2 | U5: 2 | Y5: 2
A6: 3 | F6: 3 | G6: NAVINFLUOR | H6: DEEPAKFERT | K6: 3 | L6: NAVINFLUOR | M6: DEEPAKFERT | P6: 3 | U6: 3 | Y6: 3
A7: 4 | F7: 4 | K7: 4 | P7: 4 | U7: 4 | Y7: 4
A8: 5 | F8: 5 | K8: 5 | P8: 5 | U8: 5 | Y8: 5
A9: 6 | F9: 6 | K9: 6 | P9: 6 | U9: 6 | Y9: 6
A10: 7 | F10: 7 | K10: 7 | P10: 7 | U10: 7 | Y10: 7
A11: 8 | F11: 8 | K11: 8 | P11: 8 | U11: 8 | Y11: 8
A12: 9 | F12: 9 | K12: 9 | P12: 9 | U12: 9 | Y12: 9
A13: 10 | F13: 10 | K13: 10 | P13: 10 | U13: 10 | Y13: 10
A14: 11 | F14: 11 | K14: 11 | P14: 11 | U14: 11 | Y14: 11
A15: 12 | F15: 12 | K15: 12 | P15: 12 | U15: 12 | Y15: 12
A16: 13 | F16: 13 | K16: 13 | P16: 13 | U16: 13 | Y16: 13
A17: 14 | F17: 14 | K17: 14 | P17: 14 | U17: 14 | Y17: 14
A18: 15 | F18: 15 | K18: 15 | P18: 15 | U18: 15 | Y18: 15
A19: 16 | F19: 16 | K19: 16 | P19: 16 | U19: 16 | Y19: 16
A20: 17 | F20: 17 | K20: 17 | P20: 17 | U20: 17 | Y20: 17
A21: 18 | F21: 18 | K21: 18 | P21: 18 | U21: 18 | Y21: 18
A22: 19 | F22: 19 | K22: 19 | P22: 19 | U22: 19 | Y22: 19
A23: 20 | F23: 20 | K23: 20 | P23: 20 | U23: 20 | Y23: 20
A24: 21 | F24: 21 | K24: 21 | P24: 21 | U24: 21 | Y24: 21
A25: 22 | F25: 22 | K25: 22 | P25: 22 | U25: 22 | Y25: 22
A26: 23 | F26: 23 | K26: 23 | P26: 23 | U26: 23 | Y26: 23
A27: 24 | F27: 24 | K27: 24 | P27: 24 | U27: 24 | Y27: 24
A28: 25 | F28: 25 | K28: 25 | P28: 25 | U28: 25 | Y28: 25
A29: 26 | F29: 26 | K29: 26 | P29: 26 | U29: 26 | Y29: 26
A30: 27 | F30: 27 | K30: 27 | P30: 27 | U30: 27 | Y30: 27
A31: 28 | F31: 28 | K31: 28 | P31: 28 | U31: 28 | Y31: 28
A32: 29 | F32: 29 | K32: 29 | P32: 29 | U32: 29 | Y32: 29
A33: 30 | F33: 30 | K33: 30 | P33: 30 | U33: 30 | Y33: 30
A34: 31 | F34: 31 | K34: 31 | P34: 31 | U34: 31 | Y34: 31
A35: 32 | F35: 32 | K35: 32 | P35: 32 | U35: 32 | Y35: 32
A36: 33 | F36: 33 | K36: 33 | P36: 33 | U36: 33 | Y36: 33
A37: 34 | F37: 34 | K37: 34 | P37: 34 | U37: 34 | Y37: 34
A38: 35 | F38: 35 | K38: 35 | P38: 35 | U38: 35 | Y38: 35
A39: 36 | F39: 36 | K39: 36 | P39: 36 | U39: 36 | Y39: 36
A40: 37 | F40: 37 | K40: 37 | P40: 37 | U40: 37 | Y40: 37
A41: 38 | F41: 38 | K41: 38 | P41: 38 | U41: 38 | Y41: 38
A42: 39 | F42: 39 | K42: 39 | P42: 39 | U42: 39 | Y42: 39
A43: 40 | F43: 40 | K43: 40 | P43: 40 | U43: 40 | Y43: 40
A44: 41 | F44: 41 | K44: 41 | P44: 41 | U44: 41 | Y44: 41
A45: 42 | F45: 42 | K45: 42 | P45: 42 | U45: 42 | Y45: 42
A46: 43 | F46: 43 | K46: 43 | P46: 43 | U46: 43 | Y46: 43
A47: 44 | F47: 44 | K47: 44 | P47: 44 | U47: 44 | Y47: 44
A48: 45 | F48: 45 | K48: 45 | P48: 45 | U48: 45 | Y48: 45
A49: 46 | F49: 46 | K49: 46 | P49: 46 | U49: 46 | Y49: 46
A50: 47 | F50: 47 | K50: 47 | P50: 47 | U50: 47 | Y50: 47
A51: 48 | F51: 48 | K51: 48 | P51: 48 | U51: 48 | Y51: 48
A52: 49 | F52: 49 | K52: 49 | P52: 49 | U52: 49 | Y52: 49
A53: 50 | F53: 50 | K53: 50 | P53: 50 | U53: 50 | Y53: 50

Sheet Total In Out
A1: =In_out!D1 -> Shriram Multi Sector Rotation Fund
E2: ="Equity Portfolio as on "&TEXT(#REF!,"mmm dd, yyyy") ->  | G2: ="Equity Portfolio as on "&TEXT(#REF!,"mmm dd, yyyy") -> 
A3: Categorization as per SEBI | B3: Industries Wise | C3: security | D3: isin_code | E3: % To AUM | F3: units | G3: % To AUM | H3: units | I3: Diff in Unit | J3: Diff in % to AUM | K3: Remark | L3: New Buy | M3: Total Exit | N3: NSE SYMBOL
A4: =TRIM(VLOOKUP(D4,#REF!,9,0)) ->  | B4: =IFERROR(VLOOKUP($D4,#REF!,7,0),"") ->  | C4: =VLOOKUP(D4,#REF!,2,0) ->  | D4: INE002A01018 | E4: =SUMIFS(#REF!,#REF!,A$1,#REF!,$D4)/100 ->  | F4: =SUMIFS(#REF!,#REF!,A$1,#REF!,$D4) ->  | G4: =SUMIFS(#REF!,#REF!,A$1,#REF!,$D4)/100 ->  | H4: =SUMIFS(#REF!,#REF!,A$1,#REF!,$D4) ->  | I4: =F4-H4 ->  | J4: =E4-G4 ->  | K4: =IF(OR(F4+H4=0,I4=0),"",IF(I4=F4,"New Buy",IF(I4=-H4,"Total Exit",IF(H4>F4,"Partial Sell","Additional Buy")))) ->  | L4: =IF($K4="New Buy",(COUNTIFS($K$4:$K$125,$K4,J$4:J$125,">"&J4)+1),"-") ->  | M4: =IF($K4="Total Exit",(COUNTIFS($K$4:$K$125,$K4,J$4:J$125,">"&J4)+1),"-") ->  | N4: =VLOOKUP(D4,#REF!,2,0) -> 
A5: =TRIM(VLOOKUP(D5,#REF!,9,0)) ->  | B5: =IFERROR(VLOOKUP($D5,#REF!,7,0),"") ->  | C5: =VLOOKUP(D5,#REF!,2,0) ->  | D5: INE003A01024 | E5: =SUMIFS(#REF!,#REF!,A$1,#REF!,$D5)/100 ->  | F5: =SUMIFS(#REF!,#REF!,A$1,#REF!,$D5) ->  | G5: =SUMIFS(#REF!,#REF!,A$1,#REF!,$D5)/100 ->  | H5: =SUMIFS(#REF!,#REF!,A$1,#REF!,$D5) ->  | K5: =IF(OR(F5+H5=0,I5=0),"",IF(I5=F5,"New Buy",IF(I5=-H5,"Total Exit",IF(H5>F5,"Partial Sell","Additional Buy")))) ->  | N5: =VLOOKUP(D5,#REF!,2,0) -> 
A6: =TRIM(VLOOKUP(D6,#REF!,9,0)) ->  | B6: =IFERROR(VLOOKUP($D6,#REF!,7,0),"") ->  | C6: =VLOOKUP(D6,#REF!,2,0) ->  | D6: INE009A01021 | E6: =SUMIFS(#REF!,#REF!,A$1,#REF!,$D6)/100 ->  | F6: =SUMIFS(#REF!,#REF!,A$1,#REF!,$D6) ->  | G6: =SUMIFS(#REF!,#REF!,A$1,#REF!,$D6)/100 ->  | H6: =SUMIFS(#REF!,#REF!,A$1,#REF!,$D6) ->  | N6: =VLOOKUP(D6,#REF!,2,0) -> 
A7: =TRIM(VLOOKUP(D7,#REF!,9,0)) ->  | B7: =IFERROR(VLOOKUP($D7,#REF!,7,0),"") ->  | C7: =VLOOKUP(D7,#REF!,2,0) ->  | D7: INE00H001014 | E7: =SUMIFS(#REF!,#REF!,A$1,#REF!,$D7)/100 ->  | F7: =SUMIFS(#REF!,#REF!,A$1,#REF!,$D7) ->  | G7: =SUMIFS(#REF!,#REF!,A$1,#REF!,$D7)/100 ->  | H7: =SUMIFS(#REF!,#REF!,A$1,#REF!,$D7) ->  | N7: =VLOOKUP(D7,#REF!,2,0) -> 
A8: =TRIM(VLOOKUP(D8,#REF!,9,0)) ->  | B8: =IFERROR(VLOOKUP($D8,#REF!,7,0),"") ->  | C8: =VLOOKUP(D8,#REF!,2,0) ->  | D8: INE018A01030 | E8: =SUMIFS(#REF!,#REF!,A$1,#REF!,$D8)/100 ->  | F8: =SUMIFS(#REF!,#REF!,A$1,#REF!,$D8) ->  | G8: =SUMIFS(#REF!,#REF!,A$1,#REF!,$D8)/100 ->  | H8: =SUMIFS(#REF!,#REF!,A$1,#REF!,$D8) ->  | N8: =VLOOKUP(D8,#REF!,2,0) -> 
A9: =TRIM(VLOOKUP(D9,#REF!,9,0)) ->  | B9: =IFERROR(VLOOKUP($D9,#REF!,7,0),"") ->  | C9: =VLOOKUP(D9,#REF!,2,0) ->  | D9: INE020B01018 | E9: =SUMIFS(#REF!,#REF!,A$1,#REF!,$D9)/100 ->  | F9: =SUMIFS(#REF!,#REF!,A$1,#REF!,$D9) ->  | G9: =SUMIFS(#REF!,#REF!,A$1,#REF!,$D9)/100 ->  | H9: =SUMIFS(#REF!,#REF!,A$1,#REF!,$D9) ->  | N9: =VLOOKUP(D9,#REF!,2,0) -> 
A10: =TRIM(VLOOKUP(D10,#REF!,9,0)) ->  | B10: =IFERROR(VLOOKUP($D10,#REF!,7,0),"") ->  | C10: =VLOOKUP(D10,#REF!,2,0) ->  | D10: INE029A01011 | E10: =SUMIFS(#REF!,#REF!,A$1,#REF!,$D10)/100 ->  | F10: =SUMIFS(#REF!,#REF!,A$1,#REF!,$D10) ->  | G10: =SUMIFS(#REF!,#REF!,A$1,#REF!,$D10)/100 ->  | H10: =SUMIFS(#REF!,#REF!,A$1,#REF!,$D10) ->  | N10: =VLOOKUP(D10,#REF!,2,0) -> 
A11: =TRIM(VLOOKUP(D11,#REF!,9,0)) ->  | B11: =IFERROR(VLOOKUP($D11,#REF!,7,0),"") ->  | C11: =VLOOKUP(D11,#REF!,2,0) ->  | D11: INE031B01049 | E11: =SUMIFS(#REF!,#REF!,A$1,#REF!,$D11)/100 ->  | F11: =SUMIFS(#REF!,#REF!,A$1,#REF!,$D11) ->  | G11: =SUMIFS(#REF!,#REF!,A$1,#REF!,$D11)/100 ->  | H11: =SUMIFS(#REF!,#REF!,A$1,#REF!,$D11) ->  | N11: =VLOOKUP(D11,#REF!,2,0) -> 
A12: =TRIM(VLOOKUP(D12,#REF!,9,0)) ->  | B12: =IFERROR(VLOOKUP($D12,#REF!,7,0),"") ->  | C12: =VLOOKUP(D12,#REF!,2,0) ->  | D12: INE038A01020 | E12: =SUMIFS(#REF!,#REF!,A$1,#REF!,$D12)/100 ->  | F12: =SUMIFS(#REF!,#REF!,A$1,#REF!,$D12) ->  | G12: =SUMIFS(#REF!,#REF!,A$1,#REF!,$D12)/100 ->  | H12: =SUMIFS(#REF!,#REF!,A$1,#REF!,$D12) ->  | N12: =VLOOKUP(D12,#REF!,2,0) -> 
A13: =TRIM(VLOOKUP(D13,#REF!,9,0)) ->  | B13: =IFERROR(VLOOKUP($D13,#REF!,7,0),"") ->  | C13: =VLOOKUP(D13,#REF!,2,0) ->  | D13: INE03QK01018 | E13: =SUMIFS(#REF!,#REF!,A$1,#REF!,$D13)/100 ->  | F13: =SUMIFS(#REF!,#REF!,A$1,#REF!,$D13) ->  | G13: =SUMIFS(#REF!,#REF!,A$1,#REF!,$D13)/100 ->  | H13: =SUMIFS(#REF!,#REF!,A$1,#REF!,$D13) ->  | N13: =VLOOKUP(D13,#REF!,2,0) -> 
A14: =TRIM(VLOOKUP(D14,#REF!,9,0)) ->  | B14: =IFERROR(VLOOKUP($D14,#REF!,7,0),"") ->  | C14: =VLOOKUP(D14,#REF!,2,0) ->  | D14: INE040A01034 | E14: =SUMIFS(#REF!,#REF!,A$1,#REF!,$D14)/100 ->  | F14: =SUMIFS(#REF!,#REF!,A$1,#REF!,$D14) ->  | G14: =SUMIFS(#REF!,#REF!,A$1,#REF!,$D14)/100 ->  | H14: =SUMIFS(#REF!,#REF!,A$1,#REF!,$D14) ->  | N14: =VLOOKUP(D14,#REF!,2,0) -> 
A15: =TRIM(VLOOKUP(D15,#REF!,9,0)) ->  | B15: =IFERROR(VLOOKUP($D15,#REF!,7,0),"") ->  | C15: =VLOOKUP(D15,#REF!,2,0) ->  | D15: INE044A01036 | E15: =SUMIFS(#REF!,#REF!,A$1,#REF!,$D15)/100 ->  | F15: =SUMIFS(#REF!,#REF!,A$1,#REF!,$D15) ->  | G15: =SUMIFS(#REF!,#REF!,A$1,#REF!,$D15)/100 ->  | H15: =SUMIFS(#REF!,#REF!,A$1,#REF!,$D15) ->  | N15: =VLOOKUP(D15,#REF!,2,0) -> 
A16: =TRIM(VLOOKUP(D16,#REF!,9,0)) ->  | B16: =IFERROR(VLOOKUP($D16,#REF!,7,0),"") ->  | C16: =VLOOKUP(D16,#REF!,2,0) ->  | D16: INE059A01026 | E16: =SUMIFS(#REF!,#REF!,A$1,#REF!,$D16)/100 ->  | F16: =SUMIFS(#REF!,#REF!,A$1,#REF!,$D16) ->  | G16: =SUMIFS(#REF!,#REF!,A$1,#REF!,$D16)/100 ->  | H16: =SUMIFS(#REF!,#REF!,A$1,#REF!,$D16) ->  | N16: =VLOOKUP(D16,#REF!,2,0) -> 
A17: =TRIM(VLOOKUP(D17,#REF!,9,0)) ->  | B17: =IFERROR(VLOOKUP($D17,#REF!,7,0),"") ->  | C17: =VLOOKUP(D17,#REF!,2,0) ->  | D17: INE061F01013 | E17: =SUMIFS(#REF!,#REF!,A$1,#REF!,$D17)/100 ->  | F17: =SUMIFS(#REF!,#REF!,A$1,#REF!,$D17) ->  | G17: =SUMIFS(#REF!,#REF!,A$1,#REF!,$D17)/100 ->  | H17: =SUMIFS(#REF!,#REF!,A$1,#REF!,$D17) ->  | N17: =VLOOKUP(D17,#REF!,2,0) -> 
A18: =TRIM(VLOOKUP(D18,#REF!,9,0)) ->  | B18: =IFERROR(VLOOKUP($D18,#REF!,7,0),"") ->  | C18: =VLOOKUP(D18,#REF!,2,0) ->  | D18: INE062A01020 | E18: =SUMIFS(#REF!,#REF!,A$1,#REF!,$D18)/100 ->  | F18: =SUMIFS(#REF!,#REF!,A$1,#REF!,$D18) ->  | G18: =SUMIFS(#REF!,#REF!,A$1,#REF!,$D18)/100 ->  | H18: =SUMIFS(#REF!,#REF!,A$1,#REF!,$D18) ->  | N18: =VLOOKUP(D18,#REF!,2,0) -> 
A19: =TRIM(VLOOKUP(D19,#REF!,9,0)) ->  | B19: =IFERROR(VLOOKUP($D19,#REF!,7,0),"") ->  | C19: =VLOOKUP(D19,#REF!,2,0) ->  | D19: INE066A01021 | E19: =SUMIFS(#REF!,#REF!,A$1,#REF!,$D19)/100 ->  | F19: =SUMIFS(#REF!,#REF!,A$1,#REF!,$D19) ->  | G19: =SUMIFS(#REF!,#REF!,A$1,#REF!,$D19)/100 ->  | H19: =SUMIFS(#REF!,#REF!,A$1,#REF!,$D19) ->  | N19: =VLOOKUP(D19,#REF!,2,0) -> 
A20: =TRIM(VLOOKUP(D20,#REF!,9,0)) ->  | B20: =IFERROR(VLOOKUP($D20,#REF!,7,0),"") ->  | C20: =VLOOKUP(D20,#REF!,2,0) ->  | D20: INE073K01018 | E20: =SUMIFS(#REF!,#REF!,A$1,#REF!,$D20)/100 ->  | F20: =SUMIFS(#REF!,#REF!,A$1,#REF!,$D20) ->  | G20: =SUMIFS(#REF!,#REF!,A$1,#REF!,$D20)/100 ->  | H20: =SUMIFS(#REF!,#REF!,A$1,#REF!,$D20) ->  | N20: =VLOOKUP(D20,#REF!,2,0) -> 
A21: =TRIM(VLOOKUP(D21,#REF!,9,0)) ->  | B21: =IFERROR(VLOOKUP($D21,#REF!,7,0),"") ->  | C21: =VLOOKUP(D21,#REF!,2,0) ->  | D21: INE079A01024 | E21: =SUMIFS(#REF!,#REF!,A$1,#REF!,$D21)/100 ->  | F21: =SUMIFS(#REF!,#REF!,A$1,#REF!,$D21) ->  | G21: =SUMIFS(#REF!,#REF!,A$1,#REF!,$D21)/100 ->  | H21: =SUMIFS(#REF!,#REF!,A$1,#REF!,$D21) ->  | N21: =VLOOKUP(D21,#REF!,2,0) -> 
A22: =TRIM(VLOOKUP(D22,#REF!,9,0)) ->  | B22: =IFERROR(VLOOKUP($D22,#REF!,7,0),"") ->  | C22: =VLOOKUP(D22,#REF!,2,0) ->  | D22: INE081A01020 | E22: =SUMIFS(#REF!,#REF!,A$1,#REF!,$D22)/100 ->  | F22: =SUMIFS(#REF!,#REF!,A$1,#REF!,$D22) ->  | G22: =SUMIFS(#REF!,#REF!,A$1,#REF!,$D22)/100 ->  | H22: =SUMIFS(#REF!,#REF!,A$1,#REF!,$D22) ->  | N22: =VLOOKUP(D22,#REF!,2,0) -> 
A23: =TRIM(VLOOKUP(D23,#REF!,9,0)) ->  | B23: =IFERROR(VLOOKUP($D23,#REF!,7,0),"") ->  | C23: =VLOOKUP(D23,#REF!,2,0) ->  | D23: INE085A01013 | E23: =SUMIFS(#REF!,#REF!,A$1,#REF!,$D23)/100 ->  | F23: =SUMIFS(#REF!,#REF!,A$1,#REF!,$D23) ->  | G23: =SUMIFS(#REF!,#REF!,A$1,#REF!,$D23)/100 ->  | H23: =SUMIFS(#REF!,#REF!,A$1,#REF!,$D23) ->  | N23: =VLOOKUP(D23,#REF!,2,0) -> 
A24: =TRIM(VLOOKUP(D24,#REF!,9,0)) ->  | B24: =IFERROR(VLOOKUP($D24,#REF!,7,0),"") ->  | C24: =VLOOKUP(D24,#REF!,2,0) ->  | D24: INE08LI01020 | E24: =SUMIFS(#REF!,#REF!,A$1,#REF!,$D24)/100 ->  | F24: =SUMIFS(#REF!,#REF!,A$1,#REF!,$D24) ->  | G24: =SUMIFS(#REF!,#REF!,A$1,#REF!,$D24)/100 ->  | H24: =SUMIFS(#REF!,#REF!,A$1,#REF!,$D24) ->  | N24: =VLOOKUP(D24,#REF!,2,0) -> 
A25: =TRIM(VLOOKUP(D25,#REF!,9,0)) ->  | B25: =IFERROR(VLOOKUP($D25,#REF!,7,0),"") ->  | C25: =VLOOKUP(D25,#REF!,2,0) ->  | D25: INE090A01021 | E25: =SUMIFS(#REF!,#REF!,A$1,#REF!,$D25)/100 ->  | F25: =SUMIFS(#REF!,#REF!,A$1,#REF!,$D25) ->  | G25: =SUMIFS(#REF!,#REF!,A$1,#REF!,$D25)/100 ->  | H25: =SUMIFS(#REF!,#REF!,A$1,#REF!,$D25) ->  | N25: =VLOOKUP(D25,#REF!,2,0) -> 
A26: =TRIM(VLOOKUP(D26,#REF!,9,0)) ->  | B26: =IFERROR(VLOOKUP($D26,#REF!,7,0),"") ->  | C26: =VLOOKUP(D26,#REF!,2,0) ->  | D26: INE101A01026 | E26: =SUMIFS(#REF!,#REF!,A$1,#REF!,$D26)/100 ->  | F26: =SUMIFS(#REF!,#REF!,A$1,#REF!,$D26) ->  | G26: =SUMIFS(#REF!,#REF!,A$1,#REF!,$D26)/100 ->  | H26: =SUMIFS(#REF!,#REF!,A$1,#REF!,$D26) ->  | N26: =VLOOKUP(D26,#REF!,2,0) -> 
A27: =TRIM(VLOOKUP(D27,#REF!,9,0)) ->  | B27: =IFERROR(VLOOKUP($D27,#REF!,7,0),"") ->  | C27: =VLOOKUP(D27,#REF!,2,0) ->  | D27: INE118A01012 | E27: =SUMIFS(#REF!,#REF!,A$1,#REF!,$D27)/100 ->  | F27: =SUMIFS(#REF!,#REF!,A$1,#REF!,$D27) ->  | G27: =SUMIFS(#REF!,#REF!,A$1,#REF!,$D27)/100 ->  | H27: =SUMIFS(#REF!,#REF!,A$1,#REF!,$D27) ->  | N27: =VLOOKUP(D27,#REF!,2,0) -> 
A28: =TRIM(VLOOKUP(D28,#REF!,9,0)) ->  | B28: =IFERROR(VLOOKUP($D28,#REF!,7,0),"") ->  | C28: =VLOOKUP(D28,#REF!,2,0) ->  | D28: INE118H01025 | E28: =SUMIFS(#REF!,#REF!,A$1,#REF!,$D28)/100 ->  | F28: =SUMIFS(#REF!,#REF!,A$1,#REF!,$D28) ->  | G28: =SUMIFS(#REF!,#REF!,A$1,#REF!,$D28)/100 ->  | H28: =SUMIFS(#REF!,#REF!,A$1,#REF!,$D28) ->  | N28: =VLOOKUP(D28,#REF!,2,0) -> 
A29: =TRIM(VLOOKUP(D29,#REF!,9,0)) ->  | B29: =IFERROR(VLOOKUP($D29,#REF!,7,0),"") ->  | C29: =VLOOKUP(D29,#REF!,2,0) ->  | D29: INE123W01016 | E29: =SUMIFS(#REF!,#REF!,A$1,#REF!,$D29)/100 ->  | F29: =SUMIFS(#REF!,#REF!,A$1,#REF!,$D29) ->  | G29: =SUMIFS(#REF!,#REF!,A$1,#REF!,$D29)/100 ->  | H29: =SUMIFS(#REF!,#REF!,A$1,#REF!,$D29) ->  | N29: =VLOOKUP(D29,#REF!,2,0) -> 
A30: =TRIM(VLOOKUP(D30,#REF!,9,0)) ->  | B30: =IFERROR(VLOOKUP($D30,#REF!,7,0),"") ->  | C30: =VLOOKUP(D30,#REF!,2,0) ->  | D30: INE129A01019 | E30: =SUMIFS(#REF!,#REF!,A$1,#REF!,$D30)/100 ->  | F30: =SUMIFS(#REF!,#REF!,A$1,#REF!,$D30) ->  | G30: =SUMIFS(#REF!,#REF!,A$1,#REF!,$D30)/100 ->  | H30: =SUMIFS(#REF!,#REF!,A$1,#REF!,$D30) ->  | N30: =VLOOKUP(D30,#REF!,2,0) -> 
A31: =TRIM(VLOOKUP(D31,#REF!,9,0)) ->  | B31: =IFERROR(VLOOKUP($D31,#REF!,7,0),"") ->  | C31: =VLOOKUP(D31,#REF!,2,0) ->  | D31: INE138Y01010 | E31: =SUMIFS(#REF!,#REF!,A$1,#REF!,$D31)/100 ->  | F31: =SUMIFS(#REF!,#REF!,A$1,#REF!,$D31) ->  | G31: =SUMIFS(#REF!,#REF!,A$1,#REF!,$D31)/100 ->  | H31: =SUMIFS(#REF!,#REF!,A$1,#REF!,$D31) ->  | N31: =VLOOKUP(D31,#REF!,2,0) -> 
A32: =TRIM(VLOOKUP(D32,#REF!,9,0)) ->  | B32: =IFERROR(VLOOKUP($D32,#REF!,7,0),"") ->  | C32: =VLOOKUP(D32,#REF!,2,0) ->  | D32: INE146L01010 | E32: =SUMIFS(#REF!,#REF!,A$1,#REF!,$D32)/100 ->  | F32: =SUMIFS(#REF!,#REF!,A$1,#REF!,$D32) ->  | G32: =SUMIFS(#REF!,#REF!,A$1,#REF!,$D32)/100 ->  | H32: =SUMIFS(#REF!,#REF!,A$1,#REF!,$D32) ->  | N32: =VLOOKUP(D32,#REF!,2,0) -> 
A33: =TRIM(VLOOKUP(D33,#REF!,9,0)) ->  | B33: =IFERROR(VLOOKUP($D33,#REF!,7,0),"") ->  | C33: =VLOOKUP(D33,#REF!,2,0) ->  | D33: INE154A01025 | E33: =SUMIFS(#REF!,#REF!,A$1,#REF!,$D33)/100 ->  | F33: =SUMIFS(#REF!,#REF!,A$1,#REF!,$D33) ->  | G33: =SUMIFS(#REF!,#REF!,A$1,#REF!,$D33)/100 ->  | H33: =SUMIFS(#REF!,#REF!,A$1,#REF!,$D33) ->  | N33: =VLOOKUP(D33,#REF!,2,0) -> 
A34: =TRIM(VLOOKUP(D34,#REF!,9,0)) ->  | B34: =IFERROR(VLOOKUP($D34,#REF!,7,0),"") ->  | C34: =VLOOKUP(D34,#REF!,2,0) ->  | D34: INE169A01031 | E34: =SUMIFS(#REF!,#REF!,A$1,#REF!,$D34)/100 ->  | F34: =SUMIFS(#REF!,#REF!,A$1,#REF!,$D34) ->  | G34: =SUMIFS(#REF!,#REF!,A$1,#REF!,$D34)/100 ->  | H34: =SUMIFS(#REF!,#REF!,A$1,#REF!,$D34) ->  | N34: =VLOOKUP(D34,#REF!,2,0) -> 
A35: =TRIM(VLOOKUP(D35,#REF!,9,0)) ->  | B35: =IFERROR(VLOOKUP($D35,#REF!,7,0),"") ->  | C35: =VLOOKUP(D35,#REF!,2,0) ->  | D35: INE196A01026 | E35: =SUMIFS(#REF!,#REF!,A$1,#REF!,$D35)/100 ->  | F35: =SUMIFS(#REF!,#REF!,A$1,#REF!,$D35) ->  | G35: =SUMIFS(#REF!,#REF!,A$1,#REF!,$D35)/100 ->  | H35: =SUMIFS(#REF!,#REF!,A$1,#REF!,$D35) ->  | N35: =VLOOKUP(D35,#REF!,2,0) -> 
A36: =TRIM(VLOOKUP(D36,#REF!,9,0)) ->  | B36: =IFERROR(VLOOKUP($D36,#REF!,7,0),"") ->  | C36: =VLOOKUP(D36,#REF!,2,0) ->  | D36: INE200M01039 | E36: =SUMIFS(#REF!,#REF!,A$1,#REF!,$D36)/100 ->  | F36: =SUMIFS(#REF!,#REF!,A$1,#REF!,$D36) ->  | G36: =SUMIFS(#REF!,#REF!,A$1,#REF!,$D36)/100 ->  | H36: =SUMIFS(#REF!,#REF!,A$1,#REF!,$D36) ->  | I36: =F36-H36 ->  | J36: =E36-G36 ->  | L36: =IF($K36="New Buy",(COUNTIFS($K$4:$K$125,$K36,J$4:J$125,">"&J36)+1),"-") ->  | M36: =IF($K36="Total Exit",(COUNTIFS($K$4:$K$125,$K36,J$4:J$125,">"&J36)+1),"-") ->  | N36: =VLOOKUP(D36,#REF!,2,0) -> 
A37: =TRIM(VLOOKUP(D37,#REF!,9,0)) ->  | B37: =IFERROR(VLOOKUP($D37,#REF!,7,0),"") ->  | C37: =VLOOKUP(D37,#REF!,2,0) ->  | D37: INE211R01019 | E37: =SUMIFS(#REF!,#REF!,A$1,#REF!,$D37)/100 ->  | F37: =SUMIFS(#REF!,#REF!,A$1,#REF!,$D37) ->  | G37: =SUMIFS(#REF!,#REF!,A$1,#REF!,$D37)/100 ->  | H37: =SUMIFS(#REF!,#REF!,A$1,#REF!,$D37) ->  | N37: =VLOOKUP(D37,#REF!,2,0) -> 
A38: =TRIM(VLOOKUP(D38,#REF!,9,0)) ->  | B38: =IFERROR(VLOOKUP($D38,#REF!,7,0),"") ->  | C38: =VLOOKUP(D38,#REF!,2,0) ->  | D38: INE213A01029 | E38: =SUMIFS(#REF!,#REF!,A$1,#REF!,$D38)/100 ->  | F38: =SUMIFS(#REF!,#REF!,A$1,#REF!,$D38) ->  | G38: =SUMIFS(#REF!,#REF!,A$1,#REF!,$D38)/100 ->  | H38: =SUMIFS(#REF!,#REF!,A$1,#REF!,$D38) ->  | N38: =VLOOKUP(D38,#REF!,2,0) -> 
A39: =TRIM(VLOOKUP(D39,#REF!,9,0)) ->  | B39: =IFERROR(VLOOKUP($D39,#REF!,7,0),"") ->  | C39: =VLOOKUP(D39,#REF!,2,0) ->  | D39: INE218I01013 | E39: =SUMIFS(#REF!,#REF!,A$1,#REF!,$D39)/100 ->  | F39: =SUMIFS(#REF!,#REF!,A$1,#REF!,$D39) ->  | G39: =SUMIFS(#REF!,#REF!,A$1,#REF!,$D39)/100 ->  | H39: =SUMIFS(#REF!,#REF!,A$1,#REF!,$D39) ->  | N39: =VLOOKUP(D39,#REF!,2,0) -> 
A40: =TRIM(VLOOKUP(D40,#REF!,9,0)) ->  | B40: =IFERROR(VLOOKUP($D40,#REF!,7,0),"") ->  | C40: =VLOOKUP(D40,#REF!,2,0) ->  | D40: INE220B01022 | E40: =SUMIFS(#REF!,#REF!,A$1,#REF!,$D40)/100 ->  | F40: =SUMIFS(#REF!,#REF!,A$1,#REF!,$D40) ->  | G40: =SUMIFS(#REF!,#REF!,A$1,#REF!,$D40)/100 ->  | H40: =SUMIFS(#REF!,#REF!,A$1,#REF!,$D40) ->  | N40: =VLOOKUP(D40,#REF!,2,0) -> 
A41: =TRIM(VLOOKUP(D41,#REF!,9,0)) ->  | B41: =IFERROR(VLOOKUP($D41,#REF!,7,0),"") ->  | C41: =VLOOKUP(D41,#REF!,2,0) ->  | D41: INE237A01036 | E41: =SUMIFS(#REF!,#REF!,A$1,#REF!,$D41)/100 ->  | F41: =SUMIFS(#REF!,#REF!,A$1,#REF!,$D41) ->  | G41: =SUMIFS(#REF!,#REF!,A$1,#REF!,$D41)/100 ->  | H41: =SUMIFS(#REF!,#REF!,A$1,#REF!,$D41) ->  | N41: =VLOOKUP(D41,#REF!,2,0) -> 
A42: =TRIM(VLOOKUP(D42,#REF!,9,0)) ->  | B42: =IFERROR(VLOOKUP($D42,#REF!,7,0),"") ->  | C42: =VLOOKUP(D42,#REF!,2,0) ->  | D42: INE238A01034 | E42: =SUMIFS(#REF!,#REF!,A$1,#REF!,$D42)/100 ->  | F42: =SUMIFS(#REF!,#REF!,A$1,#REF!,$D42) ->  | G42: =SUMIFS(#REF!,#REF!,A$1,#REF!,$D42)/100 ->  | H42: =SUMIFS(#REF!,#REF!,A$1,#REF!,$D42) ->  | N42: =VLOOKUP(D42,#REF!,2,0) -> 
A43: =TRIM(VLOOKUP(D43,#REF!,9,0)) ->  | B43: =IFERROR(VLOOKUP($D43,#REF!,7,0),"") ->  | C43: =VLOOKUP(D43,#REF!,2,0) ->  | D43: INE263A01024 | E43: =SUMIFS(#REF!,#REF!,A$1,#REF!,$D43)/100 ->  | F43: =SUMIFS(#REF!,#REF!,A$1,#REF!,$D43) ->  | G43: =SUMIFS(#REF!,#REF!,A$1,#REF!,$D43)/100 ->  | H43: =SUMIFS(#REF!,#REF!,A$1,#REF!,$D43) ->  | N43: =VLOOKUP(D43,#REF!,2,0) -> 
A44: =TRIM(VLOOKUP(D44,#REF!,9,0)) ->  | B44: =IFERROR(VLOOKUP($D44,#REF!,7,0),"") ->  | C44: =VLOOKUP(D44,#REF!,2,0) ->  | D44: INE274J01014 | E44: =SUMIFS(#REF!,#REF!,A$1,#REF!,$D44)/100 ->  | F44: =SUMIFS(#REF!,#REF!,A$1,#REF!,$D44) ->  | G44: =SUMIFS(#REF!,#REF!,A$1,#REF!,$D44)/100 ->  | H44: =SUMIFS(#REF!,#REF!,A$1,#REF!,$D44) ->  | N44: =VLOOKUP(D44,#REF!,2,0) -> 
A45: =TRIM(VLOOKUP(D45,#REF!,9,0)) ->  | B45: =IFERROR(VLOOKUP($D45,#REF!,7,0),"") ->  | C45: =VLOOKUP(D45,#REF!,2,0) ->  | D45: INE281B01032 | E45: =SUMIFS(#REF!,#REF!,A$1,#REF!,$D45)/100 ->  | F45: =SUMIFS(#REF!,#REF!,A$1,#REF!,$D45) ->  | G45: =SUMIFS(#REF!,#REF!,A$1,#REF!,$D45)/100 ->  | H45: =SUMIFS(#REF!,#REF!,A$1,#REF!,$D45) ->  | N45: =VLOOKUP(D45,#REF!,2,0) -> 
A46: =TRIM(VLOOKUP(D46,#REF!,9,0)) ->  | B46: =IFERROR(VLOOKUP($D46,#REF!,7,0),"") ->  | C46: =VLOOKUP(D46,#REF!,2,0) ->  | D46: INE324D01010 | E46: =SUMIFS(#REF!,#REF!,A$1,#REF!,$D46)/100 ->  | F46: =SUMIFS(#REF!,#REF!,A$1,#REF!,$D46) ->  | G46: =SUMIFS(#REF!,#REF!,A$1,#REF!,$D46)/100 ->  | H46: =SUMIFS(#REF!,#REF!,A$1,#REF!,$D46) ->  | N46: =VLOOKUP(D46,#REF!,2,0) -> 
A47: =TRIM(VLOOKUP(D47,#REF!,9,0)) ->  | B47: =IFERROR(VLOOKUP($D47,#REF!,7,0),"") ->  | C47: =VLOOKUP(D47,#REF!,2,0) ->  | D47: INE346A01027 | E47: =SUMIFS(#REF!,#REF!,A$1,#REF!,$D47)/100 ->  | F47: =SUMIFS(#REF!,#REF!,A$1,#REF!,$D47) ->  | G47: =SUMIFS(#REF!,#REF!,A$1,#REF!,$D47)/100 ->  | H47: =SUMIFS(#REF!,#REF!,A$1,#REF!,$D47) ->  | N47: =VLOOKUP(D47,#REF!,2,0) -> 
A48: =TRIM(VLOOKUP(D48,#REF!,9,0)) ->  | B48: =IFERROR(VLOOKUP($D48,#REF!,7,0),"") ->  | C48: =VLOOKUP(D48,#REF!,2,0) ->  | D48: INE397D01024 | E48: =SUMIFS(#REF!,#REF!,A$1,#REF!,$D48)/100 ->  | F48: =SUMIFS(#REF!,#REF!,A$1,#REF!,$D48) ->  | G48: =SUMIFS(#REF!,#REF!,A$1,#REF!,$D48)/100 ->  | H48: =SUMIFS(#REF!,#REF!,A$1,#REF!,$D48) ->  | N48: =VLOOKUP(D48,#REF!,2,0) -> 
A49: =TRIM(VLOOKUP(D49,#REF!,9,0)) ->  | B49: =IFERROR(VLOOKUP($D49,#REF!,7,0),"") ->  | C49: =VLOOKUP(D49,#REF!,2,0) ->  | D49: INE406A01037 | E49: =SUMIFS(#REF!,#REF!,A$1,#REF!,$D49)/100 ->  | F49: =SUMIFS(#REF!,#REF!,A$1,#REF!,$D49) ->  | G49: =SUMIFS(#REF!,#REF!,A$1,#REF!,$D49)/100 ->  | H49: =SUMIFS(#REF!,#REF!,A$1,#REF!,$D49) ->  | N49: =VLOOKUP(D49,#REF!,2,0) -> 
A50: =TRIM(VLOOKUP(D50,#REF!,9,0)) ->  | B50: =IFERROR(VLOOKUP($D50,#REF!,7,0),"") ->  | C50: =VLOOKUP(D50,#REF!,2,0) ->  | D50: INE410P01011 | E50: =SUMIFS(#REF!,#REF!,A$1,#REF!,$D50)/100 ->  | F50: =SUMIFS(#REF!,#REF!,A$1,#REF!,$D50) ->  | G50: =SUMIFS(#REF!,#REF!,A$1,#REF!,$D50)/100 ->  | H50: =SUMIFS(#REF!,#REF!,A$1,#REF!,$D50) ->  | N50: =VLOOKUP(D50,#REF!,2,0) -> 
A51: =TRIM(VLOOKUP(D51,#REF!,9,0)) ->  | B51: =IFERROR(VLOOKUP($D51,#REF!,7,0),"") ->  | C51: =VLOOKUP(D51,#REF!,2,0) ->  | D51: INE421D01022 | E51: =SUMIFS(#REF!,#REF!,A$1,#REF!,$D51)/100 ->  | F51: =SUMIFS(#REF!,#REF!,A$1,#REF!,$D51) ->  | G51: =SUMIFS(#REF!,#REF!,A$1,#REF!,$D51)/100 ->  | H51: =SUMIFS(#REF!,#REF!,A$1,#REF!,$D51) ->  | N51: =VLOOKUP(D51,#REF!,2,0) -> 
A52: =TRIM(VLOOKUP(D52,#REF!,9,0)) ->  | B52: =IFERROR(VLOOKUP($D52,#REF!,7,0),"") ->  | C52: =VLOOKUP(D52,#REF!,2,0) ->  | D52: INE467B01029 | E52: =SUMIFS(#REF!,#REF!,A$1,#REF!,$D52)/100 ->  | F52: =SUMIFS(#REF!,#REF!,A$1,#REF!,$D52) ->  | G52: =SUMIFS(#REF!,#REF!,A$1,#REF!,$D52)/100 ->  | H52: =SUMIFS(#REF!,#REF!,A$1,#REF!,$D52) ->  | N52: =VLOOKUP(D52,#REF!,2,0) -> 
A53: =TRIM(VLOOKUP(D53,#REF!,9,0)) ->  | B53: =IFERROR(VLOOKUP($D53,#REF!,7,0),"") ->  | C53: =VLOOKUP(D53,#REF!,2,0) ->  | D53: INE494B01023 | E53: =SUMIFS(#REF!,#REF!,A$1,#REF!,$D53)/100 ->  | F53: =SUMIFS(#REF!,#REF!,A$1,#REF!,$D53) ->  | G53: =SUMIFS(#REF!,#REF!,A$1,#REF!,$D53)/100 ->  | H53: =SUMIFS(#REF!,#REF!,A$1,#REF!,$D53) ->  | N53: =VLOOKUP(D53,#REF!,2,0) -> 
A54: =TRIM(VLOOKUP(D54,#REF!,9,0)) ->  | B54: =IFERROR(VLOOKUP($D54,#REF!,7,0),"") ->  | C54: =VLOOKUP(D54,#REF!,2,0) ->  | D54: INE522D01027 | E54: =SUMIFS(#REF!,#REF!,A$1,#REF!,$D54)/100 ->  | F54: =SUMIFS(#REF!,#REF!,A$1,#REF!,$D54) ->  | G54: =SUMIFS(#REF!,#REF!,A$1,#REF!,$D54)/100 ->  | H54: =SUMIFS(#REF!,#REF!,A$1,#REF!,$D54) ->  | N54: =VLOOKUP(D54,#REF!,2,0) -> 
A55: =TRIM(VLOOKUP(D55,#REF!,9,0)) ->  | B55: =IFERROR(VLOOKUP($D55,#REF!,7,0),"") ->  | C55: =VLOOKUP(D55,#REF!,2,0) ->  | D55: INE572E01012 | E55: =SUMIFS(#REF!,#REF!,A$1,#REF!,$D55)/100 ->  | F55: =SUMIFS(#REF!,#REF!,A$1,#REF!,$D55) ->  | G55: =SUMIFS(#REF!,#REF!,A$1,#REF!,$D55)/100 ->  | H55: =SUMIFS(#REF!,#REF!,A$1,#REF!,$D55) ->  | N55: =VLOOKUP(D55,#REF!,2,0) -> 
A56: =TRIM(VLOOKUP(D56,#REF!,9,0)) ->  | B56: =IFERROR(VLOOKUP($D56,#REF!,7,0),"") ->  | C56: =VLOOKUP(D56,#REF!,2,0) ->  | D56: INE584A01023 | E56: =SUMIFS(#REF!,#REF!,A$1,#REF!,$D56)/100 ->  | F56: =SUMIFS(#REF!,#REF!,A$1,#REF!,$D56) ->  | G56: =SUMIFS(#REF!,#REF!,A$1,#REF!,$D56)/100 ->  | H56: =SUMIFS(#REF!,#REF!,A$1,#REF!,$D56) ->  | N56: =VLOOKUP(D56,#REF!,2,0) -> 
A57: =TRIM(VLOOKUP(D57,#REF!,9,0)) ->  | B57: =IFERROR(VLOOKUP($D57,#REF!,7,0),"") ->  | C57: =VLOOKUP(D57,#REF!,2,0) ->  | D57: INE585B01010 | E57: =SUMIFS(#REF!,#REF!,A$1,#REF!,$D57)/100 ->  | F57: =SUMIFS(#REF!,#REF!,A$1,#REF!,$D57) ->  | G57: =SUMIFS(#REF!,#REF!,A$1,#REF!,$D57)/100 ->  | H57: =SUMIFS(#REF!,#REF!,A$1,#REF!,$D57) ->  | N57: =VLOOKUP(D57,#REF!,2,0) -> 
A58: =TRIM(VLOOKUP(D58,#REF!,9,0)) ->  | B58: =IFERROR(VLOOKUP($D58,#REF!,7,0),"") ->  | C58: =VLOOKUP(D58,#REF!,2,0) ->  | D58: INE591G01025 | E58: =SUMIFS(#REF!,#REF!,A$1,#REF!,$D58)/100 ->  | F58: =SUMIFS(#REF!,#REF!,A$1,#REF!,$D58) ->  | G58: =SUMIFS(#REF!,#REF!,A$1,#REF!,$D58)/100 ->  | H58: =SUMIFS(#REF!,#REF!,A$1,#REF!,$D58) ->  | N58: =VLOOKUP(D58,#REF!,2,0) -> 
A59: =TRIM(VLOOKUP(D59,#REF!,9,0)) ->  | B59: =IFERROR(VLOOKUP($D59,#REF!,7,0),"") ->  | C59: =VLOOKUP(D59,#REF!,2,0) ->  | D59: INE646L01027 | E59: =SUMIFS(#REF!,#REF!,A$1,#REF!,$D59)/100 ->  | F59: =SUMIFS(#REF!,#REF!,A$1,#REF!,$D59) ->  | G59: =SUMIFS(#REF!,#REF!,A$1,#REF!,$D59)/100 ->  | H59: =SUMIFS(#REF!,#REF!,A$1,#REF!,$D59) ->  | N59: =VLOOKUP(D59,#REF!,2,0) -> 
A60: =TRIM(VLOOKUP(D60,#REF!,9,0)) ->  | B60: =IFERROR(VLOOKUP($D60,#REF!,7,0),"") ->  | C60: =VLOOKUP(D60,#REF!,2,0) ->  | D60: INE716B01029 | E60: =SUMIFS(#REF!,#REF!,A$1,#REF!,$D60)/100 ->  | F60: =SUMIFS(#REF!,#REF!,A$1,#REF!,$D60) ->  | G60: =SUMIFS(#REF!,#REF!,A$1,#REF!,$D60)/100 ->  | H60: =SUMIFS(#REF!,#REF!,A$1,#REF!,$D60) ->  | N60: =VLOOKUP(D60,#REF!,2,0) -> 
A61: =TRIM(VLOOKUP(D61,#REF!,9,0)) ->  | B61: =IFERROR(VLOOKUP($D61,#REF!,7,0),"") ->  | C61: =VLOOKUP(D61,#REF!,2,0) ->  | D61: INE726V01018 | E61: =SUMIFS(#REF!,#REF!,A$1,#REF!,$D61)/100 ->  | F61: =SUMIFS(#REF!,#REF!,A$1,#REF!,$D61) ->  | G61: =SUMIFS(#REF!,#REF!,A$1,#REF!,$D61)/100 ->  | H61: =SUMIFS(#REF!,#REF!,A$1,#REF!,$D61) ->  | N61: =VLOOKUP(D61,#REF!,2,0) -> 
A62: =TRIM(VLOOKUP(D62,#REF!,9,0)) ->  | B62: =IFERROR(VLOOKUP($D62,#REF!,7,0),"") ->  | C62: =VLOOKUP(D62,#REF!,2,0) ->  | D62: INE733E01010 | E62: =SUMIFS(#REF!,#REF!,A$1,#REF!,$D62)/100 ->  | F62: =SUMIFS(#REF!,#REF!,A$1,#REF!,$D62) ->  | G62: =SUMIFS(#REF!,#REF!,A$1,#REF!,$D62)/100 ->  | H62: =SUMIFS(#REF!,#REF!,A$1,#REF!,$D62) ->  | N62: =VLOOKUP(D62,#REF!,2,0) -> 
A63: =TRIM(VLOOKUP(D63,#REF!,9,0)) ->  | B63: =IFERROR(VLOOKUP($D63,#REF!,7,0),"") ->  | C63: =VLOOKUP(D63,#REF!,2,0) ->  | D63: INE742F01042 | E63: =SUMIFS(#REF!,#REF!,A$1,#REF!,$D63)/100 ->  | F63: =SUMIFS(#REF!,#REF!,A$1,#REF!,$D63) ->  | G63: =SUMIFS(#REF!,#REF!,A$1,#REF!,$D63)/100 ->  | H63: =SUMIFS(#REF!,#REF!,A$1,#REF!,$D63) ->  | N63: =VLOOKUP(D63,#REF!,2,0) -> 
A64: =TRIM(VLOOKUP(D64,#REF!,9,0)) ->  | B64: =IFERROR(VLOOKUP($D64,#REF!,7,0),"") ->  | C64: =VLOOKUP(D64,#REF!,2,0) ->  | D64: INE752E01010 | E64: =SUMIFS(#REF!,#REF!,A$1,#REF!,$D64)/100 ->  | F64: =SUMIFS(#REF!,#REF!,A$1,#REF!,$D64) ->  | G64: =SUMIFS(#REF!,#REF!,A$1,#REF!,$D64)/100 ->  | H64: =SUMIFS(#REF!,#REF!,A$1,#REF!,$D64) ->  | N64: =VLOOKUP(D64,#REF!,2,0) -> 
A65: =TRIM(VLOOKUP(D65,#REF!,9,0)) ->  | B65: =IFERROR(VLOOKUP($D65,#REF!,7,0),"") ->  | C65: =VLOOKUP(D65,#REF!,2,0) ->  | D65: INE758T01015 | E65: =SUMIFS(#REF!,#REF!,A$1,#REF!,$D65)/100 ->  | F65: =SUMIFS(#REF!,#REF!,A$1,#REF!,$D65) ->  | G65: =SUMIFS(#REF!,#REF!,A$1,#REF!,$D65)/100 ->  | H65: =SUMIFS(#REF!,#REF!,A$1,#REF!,$D65) ->  | N65: =VLOOKUP(D65,#REF!,2,0) -> 
A66: =TRIM(VLOOKUP(D66,#REF!,9,0)) ->  | B66: =IFERROR(VLOOKUP($D66,#REF!,7,0),"") ->  | C66: =VLOOKUP(D66,#REF!,2,0) ->  | D66: INE777K01022 | E66: =SUMIFS(#REF!,#REF!,A$1,#REF!,$D66)/100 ->  | F66: =SUMIFS(#REF!,#REF!,A$1,#REF!,$D66) ->  | G66: =SUMIFS(#REF!,#REF!,A$1,#REF!,$D66)/100 ->  | H66: =SUMIFS(#REF!,#REF!,A$1,#REF!,$D66) ->  | I66: =F66-H66 ->  | J66: =E66-G66 ->  | K66: =IF(OR(F66+H66=0,I66=0),"",IF(I66=F66,"New Buy",IF(I66=-H66,"Total Exit",IF(H66>F66,"Partial Sell","Additional Buy")))) ->  | N66: =VLOOKUP(D66,#REF!,2,0) -> 
A67: =TRIM(VLOOKUP(D67,#REF!,9,0)) ->  | B67: =IFERROR(VLOOKUP($D67,#REF!,7,0),"") ->  | C67: =VLOOKUP(D67,#REF!,2,0) ->  | D67: INE795G01014 | E67: =SUMIFS(#REF!,#REF!,A$1,#REF!,$D67)/100 ->  | F67: =SUMIFS(#REF!,#REF!,A$1,#REF!,$D67) ->  | G67: =SUMIFS(#REF!,#REF!,A$1,#REF!,$D67)/100 ->  | H67: =SUMIFS(#REF!,#REF!,A$1,#REF!,$D67) ->  | N67: =VLOOKUP(D67,#REF!,2,0) -> 
A68: =TRIM(VLOOKUP(D68,#REF!,9,0)) ->  | B68: =IFERROR(VLOOKUP($D68,#REF!,7,0),"") ->  | C68: =VLOOKUP(D68,#REF!,2,0) ->  | D68: INE806T01020 | E68: =SUMIFS(#REF!,#REF!,A$1,#REF!,$D68)/100 ->  | F68: =SUMIFS(#REF!,#REF!,A$1,#REF!,$D68) ->  | G68: =SUMIFS(#REF!,#REF!,A$1,#REF!,$D68)/100 ->  | H68: =SUMIFS(#REF!,#REF!,A$1,#REF!,$D68) ->  | L68: =IF($K68="New Buy",(COUNTIFS($K$4:$K$125,$K68,J$4:J$125,">"&J68)+1),"-") ->  | M68: =IF($K68="Total Exit",(COUNTIFS($K$4:$K$125,$K68,J$4:J$125,">"&J68)+1),"-") ->  | N68: =VLOOKUP(D68,#REF!,2,0) -> 
A69: =TRIM(VLOOKUP(D69,#REF!,9,0)) ->  | B69: =IFERROR(VLOOKUP($D69,#REF!,7,0),"") ->  | C69: =VLOOKUP(D69,#REF!,2,0) ->  | D69: INE818H01020 | E69: =SUMIFS(#REF!,#REF!,A$1,#REF!,$D69)/100 ->  | F69: =SUMIFS(#REF!,#REF!,A$1,#REF!,$D69) ->  | G69: =SUMIFS(#REF!,#REF!,A$1,#REF!,$D69)/100 ->  | H69: =SUMIFS(#REF!,#REF!,A$1,#REF!,$D69) ->  | N69: =VLOOKUP(D69,#REF!,2,0) -> 
A70: =TRIM(VLOOKUP(D70,#REF!,9,0)) ->  | B70: =IFERROR(VLOOKUP($D70,#REF!,7,0),"") ->  | C70: =VLOOKUP(D70,#REF!,2,0) ->  | D70: INE860A01027 | E70: =SUMIFS(#REF!,#REF!,A$1,#REF!,$D70)/100 ->  | F70: =SUMIFS(#REF!,#REF!,A$1,#REF!,$D70) ->  | G70: =SUMIFS(#REF!,#REF!,A$1,#REF!,$D70)/100 ->  | H70: =SUMIFS(#REF!,#REF!,A$1,#REF!,$D70) ->  | N70: =VLOOKUP(D70,#REF!,2,0) -> 
A71: =TRIM(VLOOKUP(D71,#REF!,9,0)) ->  | B71: =IFERROR(VLOOKUP($D71,#REF!,7,0),"") ->  | C71: =VLOOKUP(D71,#REF!,2,0) ->  | D71: INE893J01029 | E71: =SUMIFS(#REF!,#REF!,A$1,#REF!,$D71)/100 ->  | F71: =SUMIFS(#REF!,#REF!,A$1,#REF!,$D71) ->  | G71: =SUMIFS(#REF!,#REF!,A$1,#REF!,$D71)/100 ->  | H71: =SUMIFS(#REF!,#REF!,A$1,#REF!,$D71) ->  | I71: =F71-H71 ->  | J71: =E71-G71 ->  | K71: =IF(OR(F71+H71=0,I71=0),"",IF(I71=F71,"New Buy",IF(I71=-H71,"Total Exit",IF(H71>F71,"Partial Sell","Additional Buy")))) ->  | N71: =VLOOKUP(D71,#REF!,2,0) -> 
A72: =TRIM(VLOOKUP(D72,#REF!,9,0)) ->  | B72: =IFERROR(VLOOKUP($D72,#REF!,7,0),"") ->  | C72: =VLOOKUP(D72,#REF!,2,0) ->  | D72: INE961O01016 | E72: =SUMIFS(#REF!,#REF!,A$1,#REF!,$D72)/100 ->  | F72: =SUMIFS(#REF!,#REF!,A$1,#REF!,$D72) ->  | G72: =SUMIFS(#REF!,#REF!,A$1,#REF!,$D72)/100 ->  | H72: =SUMIFS(#REF!,#REF!,A$1,#REF!,$D72) ->  | N72: =VLOOKUP(D72,#REF!,2,0) -> 
A73: =TRIM(VLOOKUP(D73,#REF!,9,0)) ->  | B73: =IFERROR(VLOOKUP($D73,#REF!,7,0),"") ->  | C73: =VLOOKUP(D73,#REF!,2,0) ->  | D73: INE094A01015 | E73: =SUMIFS(#REF!,#REF!,A$1,#REF!,$D73)/100 ->  | F73: =SUMIFS(#REF!,#REF!,A$1,#REF!,$D73) ->  | G73: =SUMIFS(#REF!,#REF!,A$1,#REF!,$D73)/100 ->  | H73: =SUMIFS(#REF!,#REF!,A$1,#REF!,$D73) ->  | N73: =VLOOKUP(D73,#REF!,2,0) -> 
A74: =TRIM(VLOOKUP(D74,#REF!,9,0)) ->  | B74: =IFERROR(VLOOKUP($D74,#REF!,7,0),"") ->  | C74: =VLOOKUP(D74,#REF!,2,0) ->  | D74: INE115A01026 | E74: =SUMIFS(#REF!,#REF!,A$1,#REF!,$D74)/100 ->  | F74: =SUMIFS(#REF!,#REF!,A$1,#REF!,$D74) ->  | G74: =SUMIFS(#REF!,#REF!,A$1,#REF!,$D74)/100 ->  | H74: =SUMIFS(#REF!,#REF!,A$1,#REF!,$D74) ->  | N74: =VLOOKUP(D74,#REF!,2,0) -> 
A75: =TRIM(VLOOKUP(D75,#REF!,9,0)) ->  | B75: =IFERROR(VLOOKUP($D75,#REF!,7,0),"") ->  | C75: =VLOOKUP(D75,#REF!,2,0) ->  | D75: INE126A01031 | E75: =SUMIFS(#REF!,#REF!,A$1,#REF!,$D75)/100 ->  | F75: =SUMIFS(#REF!,#REF!,A$1,#REF!,$D75) ->  | G75: =SUMIFS(#REF!,#REF!,A$1,#REF!,$D75)/100 ->  | H75: =SUMIFS(#REF!,#REF!,A$1,#REF!,$D75) ->  | N75: =VLOOKUP(D75,#REF!,2,0) -> 
A76: =TRIM(VLOOKUP(D76,#REF!,9,0)) ->  | B76: =IFERROR(VLOOKUP($D76,#REF!,7,0),"") ->  | C76: =VLOOKUP(D76,#REF!,2,0) ->  | D76: INE180A01020 | E76: =SUMIFS(#REF!,#REF!,A$1,#REF!,$D76)/100 ->  | F76: =SUMIFS(#REF!,#REF!,A$1,#REF!,$D76) ->  | G76: =SUMIFS(#REF!,#REF!,A$1,#REF!,$D76)/100 ->  | H76: =SUMIFS(#REF!,#REF!,A$1,#REF!,$D76) ->  | N76: =VLOOKUP(D76,#REF!,2,0) -> 
A77: =TRIM(VLOOKUP(D77,#REF!,9,0)) ->  | B77: =IFERROR(VLOOKUP($D77,#REF!,7,0),"") ->  | C77: =VLOOKUP(D77,#REF!,2,0) ->  | D77: INE296A01032 | E77: =SUMIFS(#REF!,#REF!,A$1,#REF!,$D77)/100 ->  | F77: =SUMIFS(#REF!,#REF!,A$1,#REF!,$D77) ->  | G77: =SUMIFS(#REF!,#REF!,A$1,#REF!,$D77)/100 ->  | H77: =SUMIFS(#REF!,#REF!,A$1,#REF!,$D77) ->  | N77: =VLOOKUP(D77,#REF!,2,0) -> 
A78: =TRIM(VLOOKUP(D78,#REF!,9,0)) ->  | B78: =IFERROR(VLOOKUP($D78,#REF!,7,0),"") ->  | C78: =VLOOKUP(D78,#REF!,2,0) ->  | D78: INE361B01024 | E78: =SUMIFS(#REF!,#REF!,A$1,#REF!,$D78)/100 ->  | F78: =SUMIFS(#REF!,#REF!,A$1,#REF!,$D78) ->  | G78: =SUMIFS(#REF!,#REF!,A$1,#REF!,$D78)/100 ->  | H78: =SUMIFS(#REF!,#REF!,A$1,#REF!,$D78) ->  | N78: =VLOOKUP(D78,#REF!,2,0) -> 
A79: =TRIM(VLOOKUP(D79,#REF!,9,0)) ->  | B79: =IFERROR(VLOOKUP($D79,#REF!,7,0),"") ->  | C79: =VLOOKUP(D79,#REF!,2,0) ->  | D79: INE414G01012 | E79: =SUMIFS(#REF!,#REF!,A$1,#REF!,$D79)/100 ->  | F79: =SUMIFS(#REF!,#REF!,A$1,#REF!,$D79) ->  | G79: =SUMIFS(#REF!,#REF!,A$1,#REF!,$D79)/100 ->  | H79: =SUMIFS(#REF!,#REF!,A$1,#REF!,$D79) ->  | N79: =VLOOKUP(D79,#REF!,2,0) -> 
A80: =TRIM(VLOOKUP(D80,#REF!,9,0)) ->  | B80: =IFERROR(VLOOKUP($D80,#REF!,7,0),"") ->  | C80: =VLOOKUP(D80,#REF!,2,0) ->  | D80: INE07Y701011 | E80: =SUMIFS(#REF!,#REF!,A$1,#REF!,$D80)/100 ->  | F80: =SUMIFS(#REF!,#REF!,A$1,#REF!,$D80) ->  | G80: =SUMIFS(#REF!,#REF!,A$1,#REF!,$D80)/100 ->  | H80: =SUMIFS(#REF!,#REF!,A$1,#REF!,$D80) ->  | N80: =VLOOKUP(D80,#REF!,2,0) -> 
A81: =TRIM(VLOOKUP(D81,#REF!,9,0)) ->  | B81: =IFERROR(VLOOKUP($D81,#REF!,7,0),"") ->  | C81: =VLOOKUP(D81,#REF!,2,0) ->  | D81: INE0W2G01015 | E81: =SUMIFS(#REF!,#REF!,A$1,#REF!,$D81)/100 ->  | F81: =SUMIFS(#REF!,#REF!,A$1,#REF!,$D81) ->  | G81: =SUMIFS(#REF!,#REF!,A$1,#REF!,$D81)/100 ->  | H81: =SUMIFS(#REF!,#REF!,A$1,#REF!,$D81) ->  | N81: =VLOOKUP(D81,#REF!,2,0) -> 
A82: =TRIM(VLOOKUP(D82,#REF!,9,0)) ->  | B82: =IFERROR(VLOOKUP($D82,#REF!,7,0),"") ->  | C82: =VLOOKUP(D82,#REF!,2,0) ->  | D82: INE139A01034 | E82: =SUMIFS(#REF!,#REF!,A$1,#REF!,$D82)/100 ->  | F82: =SUMIFS(#REF!,#REF!,A$1,#REF!,$D82) ->  | G82: =SUMIFS(#REF!,#REF!,A$1,#REF!,$D82)/100 ->  | H82: =SUMIFS(#REF!,#REF!,A$1,#REF!,$D82) ->  | N82: =VLOOKUP(D82,#REF!,2,0) -> 
A83: =TRIM(VLOOKUP(D83,#REF!,9,0)) ->  | B83: =IFERROR(VLOOKUP($D83,#REF!,7,0),"") ->  | C83: =VLOOKUP(D83,#REF!,2,0) ->  | D83: INE149A01033 | E83: =SUMIFS(#REF!,#REF!,A$1,#REF!,$D83)/100 ->  | F83: =SUMIFS(#REF!,#REF!,A$1,#REF!,$D83) ->  | G83: =SUMIFS(#REF!,#REF!,A$1,#REF!,$D83)/100 ->  | H83: =SUMIFS(#REF!,#REF!,A$1,#REF!,$D83) ->  | N83: =VLOOKUP(D83,#REF!,2,0) -> 
A84: =TRIM(VLOOKUP(D84,#REF!,9,0)) ->  | B84: =IFERROR(VLOOKUP($D84,#REF!,7,0),"") ->  | C84: =VLOOKUP(D84,#REF!,2,0) ->  | D84: INE260B01028 | E84: =SUMIFS(#REF!,#REF!,A$1,#REF!,$D84)/100 ->  | F84: =SUMIFS(#REF!,#REF!,A$1,#REF!,$D84) ->  | G84: =SUMIFS(#REF!,#REF!,A$1,#REF!,$D84)/100 ->  | H84: =SUMIFS(#REF!,#REF!,A$1,#REF!,$D84) ->  | N84: =VLOOKUP(D84,#REF!,2,0) -> 
A85: =TRIM(VLOOKUP(D85,#REF!,9,0)) ->  | B85: =IFERROR(VLOOKUP($D85,#REF!,7,0),"") ->  | C85: =VLOOKUP(D85,#REF!,2,0) ->  | D85: INE262H01021 | E85: =SUMIFS(#REF!,#REF!,A$1,#REF!,$D85)/100 ->  | F85: =SUMIFS(#REF!,#REF!,A$1,#REF!,$D85) ->  | G85: =SUMIFS(#REF!,#REF!,A$1,#REF!,$D85)/100 ->  | H85: =SUMIFS(#REF!,#REF!,A$1,#REF!,$D85) ->  | N85: =VLOOKUP(D85,#REF!,2,0) -> 
A86: =TRIM(VLOOKUP(D86,#REF!,9,0)) ->  | B86: =IFERROR(VLOOKUP($D86,#REF!,7,0),"") ->  | C86: =VLOOKUP(D86,#REF!,2,0) ->  | D86: INE284S01014 | E86: =SUMIFS(#REF!,#REF!,A$1,#REF!,$D86)/100 ->  | F86: =SUMIFS(#REF!,#REF!,A$1,#REF!,$D86) ->  | G86: =SUMIFS(#REF!,#REF!,A$1,#REF!,$D86)/100 ->  | H86: =SUMIFS(#REF!,#REF!,A$1,#REF!,$D86) ->  | N86: =VLOOKUP(D86,#REF!,2,0) -> 
A87: =TRIM(VLOOKUP(D87,#REF!,9,0)) ->  | B87: =IFERROR(VLOOKUP($D87,#REF!,7,0),"") ->  | C87: =VLOOKUP(D87,#REF!,2,0) ->  | D87: INE406M01024 | E87: =SUMIFS(#REF!,#REF!,A$1,#REF!,$D87)/100 ->  | F87: =SUMIFS(#REF!,#REF!,A$1,#REF!,$D87) ->  | G87: =SUMIFS(#REF!,#REF!,A$1,#REF!,$D87)/100 ->  | H87: =SUMIFS(#REF!,#REF!,A$1,#REF!,$D87) ->  | I87: =F87-H87 ->  | J87: =E87-G87 ->  | K87: =IF(OR(F87+H87=0,I87=0),"",IF(I87=F87,"New Buy",IF(I87=-H87,"Total Exit",IF(H87>F87,"Partial Sell","Additional Buy")))) ->  | N87: =VLOOKUP(D87,#REF!,2,0) -> 
A88: =TRIM(VLOOKUP(D88,#REF!,9,0)) ->  | B88: =IFERROR(VLOOKUP($D88,#REF!,7,0),"") ->  | C88: =VLOOKUP(D88,#REF!,2,0) ->  | D88: INE437A01024 | E88: =SUMIFS(#REF!,#REF!,A$1,#REF!,$D88)/100 ->  | F88: =SUMIFS(#REF!,#REF!,A$1,#REF!,$D88) ->  | G88: =SUMIFS(#REF!,#REF!,A$1,#REF!,$D88)/100 ->  | H88: =SUMIFS(#REF!,#REF!,A$1,#REF!,$D88) ->  | N88: =VLOOKUP(D88,#REF!,2,0) -> 
A89: =TRIM(VLOOKUP(D89,#REF!,9,0)) ->  | B89: =IFERROR(VLOOKUP($D89,#REF!,7,0),"") ->  | C89: =VLOOKUP(D89,#REF!,2,0) ->  | D89: INE451A01017 | E89: =SUMIFS(#REF!,#REF!,A$1,#REF!,$D89)/100 ->  | F89: =SUMIFS(#REF!,#REF!,A$1,#REF!,$D89) ->  | G89: =SUMIFS(#REF!,#REF!,A$1,#REF!,$D89)/100 ->  | H89: =SUMIFS(#REF!,#REF!,A$1,#REF!,$D89) ->  | N89: =VLOOKUP(D89,#REF!,2,0) -> 
A90: =TRIM(VLOOKUP(D90,#REF!,9,0)) ->  | B90: =IFERROR(VLOOKUP($D90,#REF!,7,0),"") ->  | C90: =VLOOKUP(D90,#REF!,2,0) ->  | D90: INE457A01014 | E90: =SUMIFS(#REF!,#REF!,A$1,#REF!,$D90)/100 ->  | F90: =SUMIFS(#REF!,#REF!,A$1,#REF!,$D90) ->  | G90: =SUMIFS(#REF!,#REF!,A$1,#REF!,$D90)/100 ->  | H90: =SUMIFS(#REF!,#REF!,A$1,#REF!,$D90) ->  | N90: =VLOOKUP(D90,#REF!,2,0) -> 
A91: =TRIM(VLOOKUP(D91,#REF!,9,0)) ->  | B91: =IFERROR(VLOOKUP($D91,#REF!,7,0),"") ->  | C91: =VLOOKUP(D91,#REF!,2,0) ->  | D91: INE476A01022 | E91: =SUMIFS(#REF!,#REF!,A$1,#REF!,$D91)/100 ->  | F91: =SUMIFS(#REF!,#REF!,A$1,#REF!,$D91) ->  | G91: =SUMIFS(#REF!,#REF!,A$1,#REF!,$D91)/100 ->  | H91: =SUMIFS(#REF!,#REF!,A$1,#REF!,$D91) ->  | N91: =VLOOKUP(D91,#REF!,2,0) -> 
A92: =TRIM(VLOOKUP(D92,#REF!,9,0)) ->  | B92: =IFERROR(VLOOKUP($D92,#REF!,7,0),"") ->  | C92: =VLOOKUP(D92,#REF!,2,0) ->  | D92: INE501A01019 | E92: =SUMIFS(#REF!,#REF!,A$1,#REF!,$D92)/100 ->  | F92: =SUMIFS(#REF!,#REF!,A$1,#REF!,$D92) ->  | G92: =SUMIFS(#REF!,#REF!,A$1,#REF!,$D92)/100 ->  | H92: =SUMIFS(#REF!,#REF!,A$1,#REF!,$D92) ->  | N92: =VLOOKUP(D92,#REF!,2,0) -> 
A93: =TRIM(VLOOKUP(D93,#REF!,9,0)) ->  | B93: =IFERROR(VLOOKUP($D93,#REF!,7,0),"") ->  | C93: =VLOOKUP(D93,#REF!,2,0) ->  | D93: INE562A01011 | E93: =SUMIFS(#REF!,#REF!,A$1,#REF!,$D93)/100 ->  | F93: =SUMIFS(#REF!,#REF!,A$1,#REF!,$D93) ->  | G93: =SUMIFS(#REF!,#REF!,A$1,#REF!,$D93)/100 ->  | H93: =SUMIFS(#REF!,#REF!,A$1,#REF!,$D93) ->  | N93: =VLOOKUP(D93,#REF!,2,0) -> 
A94: =TRIM(VLOOKUP(D94,#REF!,9,0)) ->  | B94: =IFERROR(VLOOKUP($D94,#REF!,7,0),"") ->  | C94: =VLOOKUP(D94,#REF!,2,0) ->  | D94: INE594H01019 | E94: =SUMIFS(#REF!,#REF!,A$1,#REF!,$D94)/100 ->  | F94: =SUMIFS(#REF!,#REF!,A$1,#REF!,$D94) ->  | G94: =SUMIFS(#REF!,#REF!,A$1,#REF!,$D94)/100 ->  | H94: =SUMIFS(#REF!,#REF!,A$1,#REF!,$D94) ->  | N94: =VLOOKUP(D94,#REF!,2,0) -> 
A95: =TRIM(VLOOKUP(D95,#REF!,9,0)) ->  | B95: =IFERROR(VLOOKUP($D95,#REF!,7,0),"") ->  | C95: =VLOOKUP(D95,#REF!,2,0) ->  | D95: INE596I01020 | E95: =SUMIFS(#REF!,#REF!,A$1,#REF!,$D95)/100 ->  | F95: =SUMIFS(#REF!,#REF!,A$1,#REF!,$D95) ->  | G95: =SUMIFS(#REF!,#REF!,A$1,#REF!,$D95)/100 ->  | H95: =SUMIFS(#REF!,#REF!,A$1,#REF!,$D95) ->  | N95: =VLOOKUP(D95,#REF!,2,0) -> 
A96: =TRIM(VLOOKUP(D96,#REF!,9,0)) ->  | B96: =IFERROR(VLOOKUP($D96,#REF!,7,0),"") ->  | C96: =VLOOKUP(D96,#REF!,2,0) ->  | D96: INE669C01036 | E96: =SUMIFS(#REF!,#REF!,A$1,#REF!,$D96)/100 ->  | F96: =SUMIFS(#REF!,#REF!,A$1,#REF!,$D96) ->  | G96: =SUMIFS(#REF!,#REF!,A$1,#REF!,$D96)/100 ->  | H96: =SUMIFS(#REF!,#REF!,A$1,#REF!,$D96) ->  | N96: =VLOOKUP(D96,#REF!,2,0) -> 
A97: =TRIM(VLOOKUP(D97,#REF!,9,0)) ->  | B97: =IFERROR(VLOOKUP($D97,#REF!,7,0),"") ->  | C97: =VLOOKUP(D97,#REF!,2,0) ->  | D97: INE679A01013 | E97: =SUMIFS(#REF!,#REF!,A$1,#REF!,$D97)/100 ->  | F97: =SUMIFS(#REF!,#REF!,A$1,#REF!,$D97) ->  | G97: =SUMIFS(#REF!,#REF!,A$1,#REF!,$D97)/100 ->  | H97: =SUMIFS(#REF!,#REF!,A$1,#REF!,$D97) ->  | N97: =VLOOKUP(D97,#REF!,2,0) -> 
A98: =TRIM(VLOOKUP(D98,#REF!,9,0)) ->  | B98: =IFERROR(VLOOKUP($D98,#REF!,7,0),"") ->  | C98: =VLOOKUP(D98,#REF!,2,0) ->  | D98: INE685A01028 | E98: =SUMIFS(#REF!,#REF!,A$1,#REF!,$D98)/100 ->  | F98: =SUMIFS(#REF!,#REF!,A$1,#REF!,$D98) ->  | G98: =SUMIFS(#REF!,#REF!,A$1,#REF!,$D98)/100 ->  | H98: =SUMIFS(#REF!,#REF!,A$1,#REF!,$D98) ->  | N98: =VLOOKUP(D98,#REF!,2,0) -> 
A99: =TRIM(VLOOKUP(D99,#REF!,9,0)) ->  | B99: =IFERROR(VLOOKUP($D99,#REF!,7,0),"") ->  | C99: =VLOOKUP(D99,#REF!,2,0) ->  | D99: INE737H01014 | E99: =SUMIFS(#REF!,#REF!,A$1,#REF!,$D99)/100 ->  | F99: =SUMIFS(#REF!,#REF!,A$1,#REF!,$D99) ->  | G99: =SUMIFS(#REF!,#REF!,A$1,#REF!,$D99)/100 ->  | H99: =SUMIFS(#REF!,#REF!,A$1,#REF!,$D99) ->  | N99: =VLOOKUP(D99,#REF!,2,0) -> 
A100: =TRIM(VLOOKUP(D100,#REF!,9,0)) ->  | B100: =IFERROR(VLOOKUP($D100,#REF!,7,0),"") ->  | C100: =VLOOKUP(D100,#REF!,2,0) ->  | D100: INE970X01018 | E100: =SUMIFS(#REF!,#REF!,A$1,#REF!,$D100)/100 ->  | F100: =SUMIFS(#REF!,#REF!,A$1,#REF!,$D100) ->  | G100: =SUMIFS(#REF!,#REF!,A$1,#REF!,$D100)/100 ->  | H100: =SUMIFS(#REF!,#REF!,A$1,#REF!,$D100) ->  | L100: =IF($K100="New Buy",(COUNTIFS($K$4:$K$125,$K100,J$4:J$125,">"&J100)+1),"-") ->  | M100: =IF($K100="Total Exit",(COUNTIFS($K$4:$K$125,$K100,J$4:J$125,">"&J100)+1),"-") ->  | N100: =VLOOKUP(D100,#REF!,2,0) -> 
A101: =TRIM(VLOOKUP(D101,#REF!,9,0)) ->  | B101: =IFERROR(VLOOKUP($D101,#REF!,7,0),"") ->  | C101: =VLOOKUP(D101,#REF!,2,0) ->  | D101: INE028A01039 | E101: =SUMIFS(#REF!,#REF!,A$1,#REF!,$D101)/100 ->  | F101: =SUMIFS(#REF!,#REF!,A$1,#REF!,$D101) ->  | G101: =SUMIFS(#REF!,#REF!,A$1,#REF!,$D101)/100 ->  | H101: =SUMIFS(#REF!,#REF!,A$1,#REF!,$D101) ->  | N101: =VLOOKUP(D101,#REF!,2,0) -> 
A102: =TRIM(VLOOKUP(D102,#REF!,9,0)) ->  | B102: =IFERROR(VLOOKUP($D102,#REF!,7,0),"") ->  | C102: =VLOOKUP(D102,#REF!,2,0) ->  | D102: INE066F01020 | E102: =SUMIFS(#REF!,#REF!,A$1,#REF!,$D102)/100 ->  | F102: =SUMIFS(#REF!,#REF!,A$1,#REF!,$D102) ->  | G102: =SUMIFS(#REF!,#REF!,A$1,#REF!,$D102)/100 ->  | H102: =SUMIFS(#REF!,#REF!,A$1,#REF!,$D102) ->  | N102: =VLOOKUP(D102,#REF!,2,0) -> 
A103: =TRIM(VLOOKUP(D103,#REF!,9,0)) ->  | B103: =IFERROR(VLOOKUP($D103,#REF!,7,0),"") ->  | C103: =VLOOKUP(D103,#REF!,2,0) ->  | D103: INE0V6F01027 | E103: =SUMIFS(#REF!,#REF!,A$1,#REF!,$D103)/100 ->  | F103: =SUMIFS(#REF!,#REF!,A$1,#REF!,$D103) ->  | G103: =SUMIFS(#REF!,#REF!,A$1,#REF!,$D103)/100 ->  | H103: =SUMIFS(#REF!,#REF!,A$1,#REF!,$D103) ->  | N103: =VLOOKUP(D103,#REF!,2,0) -> 
A104: =TRIM(VLOOKUP(D104,#REF!,9,0)) ->  | B104: =IFERROR(VLOOKUP($D104,#REF!,7,0),"") ->  | C104: =VLOOKUP(D104,#REF!,2,0) ->  | D104: INE379A01028 | E104: =SUMIFS(#REF!,#REF!,A$1,#REF!,$D104)/100 ->  | F104: =SUMIFS(#REF!,#REF!,A$1,#REF!,$D104) ->  | G104: =SUMIFS(#REF!,#REF!,A$1,#REF!,$D104)/100 ->  | H104: =SUMIFS(#REF!,#REF!,A$1,#REF!,$D104) ->  | N104: =VLOOKUP(D104,#REF!,2,0) -> 
A105: =TRIM(VLOOKUP(D105,#REF!,9,0)) ->  | B105: =IFERROR(VLOOKUP($D105,#REF!,7,0),"") ->  | C105: =VLOOKUP(D105,#REF!,2,0) ->  | D105: INE522F01014 | E105: =SUMIFS(#REF!,#REF!,A$1,#REF!,$D105)/100 ->  | F105: =SUMIFS(#REF!,#REF!,A$1,#REF!,$D105) ->  | G105: =SUMIFS(#REF!,#REF!,A$1,#REF!,$D105)/100 ->  | H105: =SUMIFS(#REF!,#REF!,A$1,#REF!,$D105) ->  | N105: =VLOOKUP(D105,#REF!,2,0) -> 
A106: =TRIM(VLOOKUP(D106,#REF!,9,0)) ->  | B106: =IFERROR(VLOOKUP($D106,#REF!,7,0),"") ->  | C106: =VLOOKUP(D106,#REF!,2,0) ->  | D106: INE703B01027 | E106: =SUMIFS(#REF!,#REF!,A$1,#REF!,$D106)/100 ->  | F106: =SUMIFS(#REF!,#REF!,A$1,#REF!,$D106) ->  | G106: =SUMIFS(#REF!,#REF!,A$1,#REF!,$D106)/100 ->  | H106: =SUMIFS(#REF!,#REF!,A$1,#REF!,$D106) ->  | N106: =VLOOKUP(D106,#REF!,2,0) -> 
A107: =TRIM(VLOOKUP(D107,#REF!,9,0)) ->  | B107: =IFERROR(VLOOKUP($D107,#REF!,7,0),"") ->  | C107: =VLOOKUP(D107,#REF!,2,0) ->  | D107: INE298J01013 | E107: =SUMIFS(#REF!,#REF!,A$1,#REF!,$D107)/100 ->  | F107: =SUMIFS(#REF!,#REF!,A$1,#REF!,$D107) ->  | G107: =SUMIFS(#REF!,#REF!,A$1,#REF!,$D107)/100 ->  | H107: =SUMIFS(#REF!,#REF!,A$1,#REF!,$D107) ->  | I107: =F107-H107 ->  | J107: =E107-G107 ->  | K107: =IF(OR(F107+H107=0,I107=0),"",IF(I107=F107,"New Buy",IF(I107=-H107,"Total Exit",IF(H107>F107,"Partial Sell","Additional Buy")))) ->  | N107: =VLOOKUP(D107,#REF!,2,0) -> 
A108: =TRIM(VLOOKUP(D108,#REF!,9,0)) ->  | B108: =IFERROR(VLOOKUP($D108,#REF!,7,0),"") ->  | C108: =VLOOKUP(D108,#REF!,2,0) ->  | D108: INE356A01018 | E108: =SUMIFS(#REF!,#REF!,A$1,#REF!,$D108)/100 ->  | F108: =SUMIFS(#REF!,#REF!,A$1,#REF!,$D108) ->  | G108: =SUMIFS(#REF!,#REF!,A$1,#REF!,$D108)/100 ->  | H108: =SUMIFS(#REF!,#REF!,A$1,#REF!,$D108) ->  | N108: =VLOOKUP(D108,#REF!,2,0) -> 
A109: =TRIM(VLOOKUP(D109,#REF!,9,0)) ->  | B109: =IFERROR(VLOOKUP($D109,#REF!,7,0),"") ->  | C109: =VLOOKUP(D109,#REF!,2,0) ->  | D109: INE366I01010 | E109: =SUMIFS(#REF!,#REF!,A$1,#REF!,$D109)/100 ->  | F109: =SUMIFS(#REF!,#REF!,A$1,#REF!,$D109) ->  | G109: =SUMIFS(#REF!,#REF!,A$1,#REF!,$D109)/100 ->  | H109: =SUMIFS(#REF!,#REF!,A$1,#REF!,$D109) ->  | N109: =VLOOKUP(D109,#REF!,2,0) -> 
A110: =TRIM(VLOOKUP(D110,#REF!,9,0)) ->  | B110: =IFERROR(VLOOKUP($D110,#REF!,7,0),"") ->  | C110: =VLOOKUP(D110,#REF!,2,0) ->  | D110: INE477A01020 | E110: =SUMIFS(#REF!,#REF!,A$1,#REF!,$D110)/100 ->  | F110: =SUMIFS(#REF!,#REF!,A$1,#REF!,$D110) ->  | G110: =SUMIFS(#REF!,#REF!,A$1,#REF!,$D110)/100 ->  | H110: =SUMIFS(#REF!,#REF!,A$1,#REF!,$D110) ->  | N110: =VLOOKUP(D110,#REF!,2,0) -> 
A111: =TRIM(VLOOKUP(D111,#REF!,9,0)) ->  | B111: =IFERROR(VLOOKUP($D111,#REF!,7,0),"") ->  | C111: =VLOOKUP(D111,#REF!,2,0) ->  | D111: INE531F01023 | E111: =SUMIFS(#REF!,#REF!,A$1,#REF!,$D111)/100 ->  | F111: =SUMIFS(#REF!,#REF!,A$1,#REF!,$D111) ->  | G111: =SUMIFS(#REF!,#REF!,A$1,#REF!,$D111)/100 ->  | H111: =SUMIFS(#REF!,#REF!,A$1,#REF!,$D111) ->  | N111: =VLOOKUP(D111,#REF!,2,0) -> 
A112: =TRIM(VLOOKUP(D112,#REF!,9,0)) ->  | B112: =IFERROR(VLOOKUP($D112,#REF!,7,0),"") ->  | C112: =VLOOKUP(D112,#REF!,2,0) ->  | D112: INE775A01035 | E112: =SUMIFS(#REF!,#REF!,A$1,#REF!,$D112)/100 ->  | F112: =SUMIFS(#REF!,#REF!,A$1,#REF!,$D112) ->  | G112: =SUMIFS(#REF!,#REF!,A$1,#REF!,$D112)/100 ->  | H112: =SUMIFS(#REF!,#REF!,A$1,#REF!,$D112) ->  | I112: =F112-H112 ->  | J112: =E112-G112 ->  | K112: =IF(OR(F112+H112=0,I112=0),"",IF(I112=F112,"New Buy",IF(I112=-H112,"Total Exit",IF(H112>F112,"Partial Sell","Additional Buy")))) ->  | N112: =VLOOKUP(D112,#REF!,2,0) -> 
A113: =TRIM(VLOOKUP(D113,#REF!,9,0)) ->  | B113: =IFERROR(VLOOKUP($D113,#REF!,7,0),"") ->  | C113: =VLOOKUP(D113,#REF!,2,0) ->  | D113: INE048G01026 | E113: =SUMIFS(#REF!,#REF!,A$1,#REF!,$D113)/100 ->  | F113: =SUMIFS(#REF!,#REF!,A$1,#REF!,$D113) ->  | G113: =SUMIFS(#REF!,#REF!,A$1,#REF!,$D113)/100 ->  | H113: =SUMIFS(#REF!,#REF!,A$1,#REF!,$D113) ->  | N113: =VLOOKUP(D113,#REF!,2,0) -> 
A114: =TRIM(VLOOKUP(D114,#REF!,9,0)) ->  | B114: =IFERROR(VLOOKUP($D114,#REF!,7,0),"") ->  | C114: =VLOOKUP(D114,#REF!,2,0) ->  | D114: INE967H01025 | E114: =SUMIFS(#REF!,#REF!,A$1,#REF!,$D114)/100 ->  | F114: =SUMIFS(#REF!,#REF!,A$1,#REF!,$D114) ->  | G114: =SUMIFS(#REF!,#REF!,A$1,#REF!,$D114)/100 ->  | H114: =SUMIFS(#REF!,#REF!,A$1,#REF!,$D114) ->  | N114: =VLOOKUP(D114,#REF!,2,0) -> 
B124: =IFERROR(VLOOKUP($D124,#REF!,7,0),"") ->  | E124: =SUMIFS(#REF!,#REF!,A$1,#REF!,$C124) ->  | F124: =SUMIFS(#REF!,#REF!,A$1,#REF!,$C124) ->  | G124: =SUMIFS(#REF!,#REF!,A$1,#REF!,$C124) ->  | H124: =SUMIFS(#REF!,#REF!,A$1,#REF!,$C124) ->  | I124: =F124-H124 ->  | J124: =E124-G124 ->  | K124: =IF(OR(F124+H124=0,I124=0),"",IF(I124=F124,"New Buy",IF(I124=-H124,"Total Exit",IF(H124>F124,"Partial Sell","Additional Buy")))) -> 
B125: =IFERROR(VLOOKUP($D125,#REF!,7,0),"") ->  | E125: =SUMIFS(#REF!,#REF!,A$1,#REF!,$C125) ->  | F125: =SUMIFS(#REF!,#REF!,A$1,#REF!,$C125) ->  | G125: =SUMIFS(#REF!,#REF!,A$1,#REF!,$C125) ->  | H125: =SUMIFS(#REF!,#REF!,A$1,#REF!,$C125) -> 
E126: =SUM(E4:E125) ->  | F126: =SUM(F4:F125) ->  | G126: =SUM(G4:G125) ->  | H126: =SUM(H4:H125) -> 
D128: Investment - Equities | E128: =SUMIFS(#REF!,#REF!,A$1,#REF!,$D128)/100 ->  | F128: =SUMIFS(#REF!,#REF!,$A1,#REF!,$D128) ->  | G128: =SUMIFS(#REF!,#REF!,A$1,#REF!,$D128)/100 ->  | H128: =SUMIFS(#REF!,#REF!,A$1,#REF!,$D128) -> 
E129: =E126-E128 ->  | F129: =F126-F128 ->  | G129: =G126-G128 ->  | H129: =H126-H128 -> 
B149: Market Cap wise | C149: =#REF! ->  | E149: =#REF! -> 
B150: Large Cap | C150: =SUMIF($A$4:$A$125,$B150,E$4:E$125) -> 0.0% | E150: =SUMIF($A$4:$A$125,$B150,G$4:G$125) -> 0.0%
B151: Mid Cap | C151: =SUMIF($A$4:$A$125,$B151,E$4:E$125) -> 0.0% | E151: =SUMIF($A$4:$A$125,$B151,G$4:G$125) -> 0.0%
B152: Small Cap | C152: =SUMIF($A$4:$A$125,$B152,E$4:E$125) -> 0.0% | E152: =SUMIF($A$4:$A$125,$B152,G$4:G$125) -> 0.0%
B153: Total | C153: =SUM(C150:C152) -> 0.0% | E153: =SUM(E150:E152) -> 0.0%
C155: =C153-E126 ->  | E155: =E153-G126 -> 
B160: Scale to Equity 100%
B161: Market Cap wise | C161: =C149 ->  | E161: =E149 -> 
B162: Large Cap | C162: =C150/C$153 ->  | E162: =E150/E$153 -> 
B163: Mid Cap | C163: =C151/C$153 ->  | E163: =E151/E$153 -> 
B164: Small Cap | C164: =C152/C$153 ->  | E164: =E152/E$153 -> 
B165: Total | C165: =SUM(C162:C164) ->  | E165: =SUM(E162:E164) -> 
B171: Industries Wise | C171: =C149 ->  | E171: =E149 -> 
B172: Aerospace & Defense | C172: =SUMIF($B$4:$B$125,$B172,E$4:E$125) -> 0.00% | E172: =SUMIF($B$4:$B$125,$B172,G$4:G$125) -> 0.00%
B173: Agricultural Food & other Products | C173: 0.00% | E173: 0.00%
B174: Agricultural, Commercial & Construction Vehicles | C174: 0.00% | E174: 0.00%
B175: Auto Components | C175: 0.00% | E175: 0.00%
B176: Automobiles | C176: 0.00% | E176: 0.00%
B177: Banks | C177: 0.00% | E177: 0.00%
B178: Capital Markets | C178: 0.00% | E178: 0.00%
B179: Cement & Cement Products | C179: 0.00% | E179: 0.00%
B180: Chemicals & Petrochemicals | C180: 0.00% | E180: 0.00%
B181: Cigarettes & Tobacco Products | C181: 0.00% | E181: 0.00%
B182: Commercial Services & Supplies | C182: 0.00% | E182: 0.00%
B183: Construction | C183: 0.00% | E183: 0.00%
B184: Consumable Fuels | C184: 0.00% | E184: 0.00%
B185: Consumer Durables | C185: 0.00% | E185: 0.00%
B186: Diversified FMCG | C186: 0.00% | E186: 0.00%
B187: Electrical Equipment | C187: 0.00% | E187: 0.00%
B188: Entertainment | C188: 0.00% | E188: 0.00%
B189: Fertilizers & Agrochemicals | C189: 0.00% | E189: 0.00%
B190: Finance | C190: 0.00% | E190: 0.00%
B191: Financial Technology (Fintech) | C191: 0.00% | E191: 0.00%
B192: Food Products | C192: 0.00% | E192: 0.00%
B193: Gas | C193: 0.00% | E193: 0.00%
B194: Healthcare Services | C194: 0.00% | E194: 0.00%
B195: Industrial Manufacturing | C195: 0.00% | E195: 0.00%
B196: Industrial Products | C196: 0.00% | E196: 0.00%
B197: Insurance | C197: 0.00% | E197: 0.00%
B198: IT - Hardware | C198: 0.00% | E198: 0.00%
B199: IT - Services | C199: 0.00% | E199: 0.00%
B200: IT - Software | C200: 0.00% | E200: 0.00%
B201: Minerals & Mining | C201: 0.00% | E201: 0.00%
B202: Oil | C202: 0.00% | E202: 0.00%
B203: Personal Products | C203: 0.00% | E203: 0.00%
B204: Petroleum Products | C204: 0.00% | E204: 0.00%
B205: Pharmaceuticals & Biotechnology | C205: 0.00% | E205: 0.00%
B206: Power | C206: 0.00% | E206: 0.00%
B207: Realty | C207: 0.00% | E207: 0.00%
B208: Retailing | C208: 0.00% | E208: 0.00%
B209: Telecom - Services | C209: 0.00% | E209: 0.00%
B210: Transport Infrastructure | C210: 0.00% | E210: 0.00%
B211: Transport Services | C211: 0.00% | E211: 0.00%
B215: Total | C215: =SUM(C172:C214) -> 0.00% | E215: =SUM(E172:E214) -> 0.00%
C217: =C215-E126 ->  | E217: =E215-G126 -> 

Sheet Industries Wise
A1: ="Equity Portfolio as on "&TEXT($O$1,"mmmm dd, yyyy") ->  | O1: =TEXT(#REF!,"mmmm dd, yyyy") ->  | Q1: Holding % | Y1: Rank
A2: Industry | B2: Shriram Aggressive Hybrid Fund | C2: Shriram Flexi Cap Fund | D2: Shriram ELSS Tax Saver Fund | E2: Shriram Balanced Advantage Fund | F2: Shriram Multi Asset Allocation Fund | G2: Shriram Multi Sector Rotation Fund | H2: Shriram Overnight Fund | I2: Shriram Nifty 1D Rate Liquid ETF | J2: Shriram Liquid Fund | K2: Shriram Money Market Fund | Q2: =B2 -> Shriram Aggressive Hybrid Fund | R2: Shriram Flexi Cap Fund | S2: Shriram ELSS Tax Saver Fund | T2: Shriram Balanced Advantage Fund | U2: Shriram Multi Asset Allocation Fund | V2: Shriram Multi Sector Rotation Fund | Y2: =B2 -> Shriram Aggressive Hybrid Fund | Z2: Shriram Flexi Cap Fund | AA2: Shriram ELSS Tax Saver Fund | AB2: Shriram Balanced Advantage Fund | AC2: Shriram Multi Asset Allocation Fund | AD2: Shriram Multi Sector Rotation Fund | AG2: Industry
A3: =#REF! ->  | B3: =SUMIFS(#REF!,#REF!,B$2,#REF!,$A3)/100 ->  | C3: =SUMIFS(#REF!,#REF!,C$2,#REF!,$A3)/100 ->  | D3: =SUMIFS(#REF!,#REF!,D$2,#REF!,$A3)/100 ->  | E3: =SUMIFS(#REF!,#REF!,E$2,#REF!,$A3)/100 ->  | F3: =SUMIFS(#REF!,#REF!,F$2,#REF!,$A3)/100 ->  | G3: =SUMIFS(#REF!,#REF!,G$2,#REF!,$A3)/100 ->  | O3: =COUNTIF(C$3:C3,C3) -> 1 | Q3: =SUMIFS(#REF!,#REF!,Q$2,#REF!,$A3) ->  | R3: =SUMIFS(#REF!,#REF!,R$2,#REF!,$A3) ->  | S3: =SUMIFS(#REF!,#REF!,S$2,#REF!,$A3) ->  | T3: =SUMIFS(#REF!,#REF!,T$2,#REF!,$A3) ->  | U3: =SUMIFS(#REF!,#REF!,U$2,#REF!,$A3) ->  | V3: =SUMIFS(#REF!,#REF!,V$2,#REF!,$A3) ->  | Y3: =IF(Q3=0,"",RANK(Q3,Q$3:Q$42)+COUNTIF(Q$3:Q3,Q3)-1) ->  | Z3: =IF(R3=0,"",RANK(R3,R$3:R$42)+COUNTIF(R$3:R3,R3)-1) ->  | AA3: =IF(S3=0,"",RANK(S3,S$3:S$42)+COUNTIF(S$3:S3,S3)-1) ->  | AB3: =IF(T3=0,"",RANK(T3,T$3:T$42)+COUNTIF(T$3:T3,T3)-1) ->  | AC3: =IF(U3=0,"",RANK(U3,U$3:U$42)+COUNTIF(U$3:U3,U3)-1) ->  | AD3: =IF(V3=0,"",RANK(V3,V$3:V$42)+COUNTIF(V$3:V3,V3)-1) ->  | AG3: =A3 -> 
A4: =#REF! ->  | B4: =SUMIFS(#REF!,#REF!,B$2,#REF!,$A4)/100 ->  | C4: =SUMIFS(#REF!,#REF!,C$2,#REF!,$A4)/100 ->  | D4: =SUMIFS(#REF!,#REF!,D$2,#REF!,$A4)/100 ->  | E4: =SUMIFS(#REF!,#REF!,E$2,#REF!,$A4)/100 ->  | F4: =SUMIFS(#REF!,#REF!,F$2,#REF!,$A4)/100 ->  | G4: =SUMIFS(#REF!,#REF!,G$2,#REF!,$A4)/100 ->  | O4: =COUNTIF(C$3:C4,C4) -> 2 | Q4: =SUMIFS(#REF!,#REF!,Q$2,#REF!,$A4) ->  | R4: =SUMIFS(#REF!,#REF!,R$2,#REF!,$A4) ->  | S4: =SUMIFS(#REF!,#REF!,S$2,#REF!,$A4) ->  | T4: =SUMIFS(#REF!,#REF!,T$2,#REF!,$A4) ->  | U4: =SUMIFS(#REF!,#REF!,U$2,#REF!,$A4) ->  | V4: =SUMIFS(#REF!,#REF!,V$2,#REF!,$A4) ->  | Y4: =IF(Q4=0,"",RANK(Q4,Q$3:Q$42)+COUNTIF(Q$3:Q4,Q4)-1) ->  | Z4: =IF(R4=0,"",RANK(R4,R$3:R$42)+COUNTIF(R$3:R4,R4)-1) ->  | AA4: =IF(S4=0,"",RANK(S4,S$3:S$42)+COUNTIF(S$3:S4,S4)-1) ->  | AB4: =IF(T4=0,"",RANK(T4,T$3:T$42)+COUNTIF(T$3:T4,T4)-1) ->  | AC4: =IF(U4=0,"",RANK(U4,U$3:U$42)+COUNTIF(U$3:U4,U4)-1) ->  | AD4: =IF(V4=0,"",RANK(V4,V$3:V$42)+COUNTIF(V$3:V4,V4)-1) -> 
A5: =#REF! ->  | B5: =SUMIFS(#REF!,#REF!,B$2,#REF!,$A5)/100 ->  | C5: =SUMIFS(#REF!,#REF!,C$2,#REF!,$A5)/100 ->  | D5: =SUMIFS(#REF!,#REF!,D$2,#REF!,$A5)/100 ->  | E5: =SUMIFS(#REF!,#REF!,E$2,#REF!,$A5)/100 ->  | F5: =SUMIFS(#REF!,#REF!,F$2,#REF!,$A5)/100 ->  | G5: =SUMIFS(#REF!,#REF!,G$2,#REF!,$A5)/100 ->  | O5: =COUNTIF(C$3:C5,C5) -> 3 | Q5: =SUMIFS(#REF!,#REF!,Q$2,#REF!,$A5) ->  | R5: =SUMIFS(#REF!,#REF!,R$2,#REF!,$A5) ->  | S5: =SUMIFS(#REF!,#REF!,S$2,#REF!,$A5) ->  | T5: =SUMIFS(#REF!,#REF!,T$2,#REF!,$A5) ->  | U5: =SUMIFS(#REF!,#REF!,U$2,#REF!,$A5) ->  | V5: =SUMIFS(#REF!,#REF!,V$2,#REF!,$A5) ->  | Y5: =IF(Q5=0,"",RANK(Q5,Q$3:Q$42)+COUNTIF(Q$3:Q5,Q5)-1) ->  | Z5: =IF(R5=0,"",RANK(R5,R$3:R$42)+COUNTIF(R$3:R5,R5)-1) ->  | AA5: =IF(S5=0,"",RANK(S5,S$3:S$42)+COUNTIF(S$3:S5,S5)-1) ->  | AB5: =IF(T5=0,"",RANK(T5,T$3:T$42)+COUNTIF(T$3:T5,T5)-1) ->  | AC5: =IF(U5=0,"",RANK(U5,U$3:U$42)+COUNTIF(U$3:U5,U5)-1) ->  | AD5: =IF(V5=0,"",RANK(V5,V$3:V$42)+COUNTIF(V$3:V5,V5)-1) -> 
A6: =#REF! ->  | B6: =SUMIFS(#REF!,#REF!,B$2,#REF!,$A6)/100 ->  | C6: =SUMIFS(#REF!,#REF!,C$2,#REF!,$A6)/100 ->  | D6: =SUMIFS(#REF!,#REF!,D$2,#REF!,$A6)/100 ->  | E6: =SUMIFS(#REF!,#REF!,E$2,#REF!,$A6)/100 ->  | F6: =SUMIFS(#REF!,#REF!,F$2,#REF!,$A6)/100 ->  | G6: =SUMIFS(#REF!,#REF!,G$2,#REF!,$A6)/100 ->  | O6: =COUNTIF(C$3:C6,C6) -> 4 | Q6: =SUMIFS(#REF!,#REF!,Q$2,#REF!,$A6) ->  | R6: =SUMIFS(#REF!,#REF!,R$2,#REF!,$A6) ->  | S6: =SUMIFS(#REF!,#REF!,S$2,#REF!,$A6) ->  | T6: =SUMIFS(#REF!,#REF!,T$2,#REF!,$A6) ->  | U6: =SUMIFS(#REF!,#REF!,U$2,#REF!,$A6) ->  | V6: =SUMIFS(#REF!,#REF!,V$2,#REF!,$A6) ->  | Y6: =IF(Q6=0,"",RANK(Q6,Q$3:Q$42)+COUNTIF(Q$3:Q6,Q6)-1) ->  | Z6: =IF(R6=0,"",RANK(R6,R$3:R$42)+COUNTIF(R$3:R6,R6)-1) ->  | AA6: =IF(S6=0,"",RANK(S6,S$3:S$42)+COUNTIF(S$3:S6,S6)-1) ->  | AB6: =IF(T6=0,"",RANK(T6,T$3:T$42)+COUNTIF(T$3:T6,T6)-1) ->  | AC6: =IF(U6=0,"",RANK(U6,U$3:U$42)+COUNTIF(U$3:U6,U6)-1) ->  | AD6: =IF(V6=0,"",RANK(V6,V$3:V$42)+COUNTIF(V$3:V6,V6)-1) -> 
A7: =#REF! ->  | B7: =SUMIFS(#REF!,#REF!,B$2,#REF!,$A7)/100 ->  | C7: =SUMIFS(#REF!,#REF!,C$2,#REF!,$A7)/100 ->  | D7: =SUMIFS(#REF!,#REF!,D$2,#REF!,$A7)/100 ->  | E7: =SUMIFS(#REF!,#REF!,E$2,#REF!,$A7)/100 ->  | F7: =SUMIFS(#REF!,#REF!,F$2,#REF!,$A7)/100 ->  | G7: =SUMIFS(#REF!,#REF!,G$2,#REF!,$A7)/100 ->  | O7: =COUNTIF(C$3:C7,C7) -> 5 | Q7: =SUMIFS(#REF!,#REF!,Q$2,#REF!,$A7) ->  | R7: =SUMIFS(#REF!,#REF!,R$2,#REF!,$A7) ->  | S7: =SUMIFS(#REF!,#REF!,S$2,#REF!,$A7) ->  | T7: =SUMIFS(#REF!,#REF!,T$2,#REF!,$A7) ->  | U7: =SUMIFS(#REF!,#REF!,U$2,#REF!,$A7) ->  | V7: =SUMIFS(#REF!,#REF!,V$2,#REF!,$A7) ->  | Y7: =IF(Q7=0,"",RANK(Q7,Q$3:Q$42)+COUNTIF(Q$3:Q7,Q7)-1) ->  | Z7: =IF(R7=0,"",RANK(R7,R$3:R$42)+COUNTIF(R$3:R7,R7)-1) ->  | AA7: =IF(S7=0,"",RANK(S7,S$3:S$42)+COUNTIF(S$3:S7,S7)-1) ->  | AB7: =IF(T7=0,"",RANK(T7,T$3:T$42)+COUNTIF(T$3:T7,T7)-1) ->  | AC7: =IF(U7=0,"",RANK(U7,U$3:U$42)+COUNTIF(U$3:U7,U7)-1) ->  | AD7: =IF(V7=0,"",RANK(V7,V$3:V$42)+COUNTIF(V$3:V7,V7)-1) -> 
A8: =#REF! ->  | B8: =SUMIFS(#REF!,#REF!,B$2,#REF!,$A8)/100 ->  | C8: =SUMIFS(#REF!,#REF!,C$2,#REF!,$A8)/100 ->  | D8: =SUMIFS(#REF!,#REF!,D$2,#REF!,$A8)/100 ->  | E8: =SUMIFS(#REF!,#REF!,E$2,#REF!,$A8)/100 ->  | F8: =SUMIFS(#REF!,#REF!,F$2,#REF!,$A8)/100 ->  | G8: =SUMIFS(#REF!,#REF!,G$2,#REF!,$A8)/100 ->  | O8: =COUNTIF(C$3:C8,C8) -> 6 | Q8: =SUMIFS(#REF!,#REF!,Q$2,#REF!,$A8) ->  | R8: =SUMIFS(#REF!,#REF!,R$2,#REF!,$A8) ->  | S8: =SUMIFS(#REF!,#REF!,S$2,#REF!,$A8) ->  | T8: =SUMIFS(#REF!,#REF!,T$2,#REF!,$A8) ->  | U8: =SUMIFS(#REF!,#REF!,U$2,#REF!,$A8) ->  | V8: =SUMIFS(#REF!,#REF!,V$2,#REF!,$A8) ->  | Y8: =IF(Q8=0,"",RANK(Q8,Q$3:Q$42)+COUNTIF(Q$3:Q8,Q8)-1) ->  | Z8: =IF(R8=0,"",RANK(R8,R$3:R$42)+COUNTIF(R$3:R8,R8)-1) ->  | AA8: =IF(S8=0,"",RANK(S8,S$3:S$42)+COUNTIF(S$3:S8,S8)-1) ->  | AB8: =IF(T8=0,"",RANK(T8,T$3:T$42)+COUNTIF(T$3:T8,T8)-1) ->  | AC8: =IF(U8=0,"",RANK(U8,U$3:U$42)+COUNTIF(U$3:U8,U8)-1) ->  | AD8: =IF(V8=0,"",RANK(V8,V$3:V$42)+COUNTIF(V$3:V8,V8)-1) -> 
A9: =#REF! ->  | B9: =SUMIFS(#REF!,#REF!,B$2,#REF!,$A9)/100 ->  | C9: =SUMIFS(#REF!,#REF!,C$2,#REF!,$A9)/100 ->  | D9: =SUMIFS(#REF!,#REF!,D$2,#REF!,$A9)/100 ->  | E9: =SUMIFS(#REF!,#REF!,E$2,#REF!,$A9)/100 ->  | F9: =SUMIFS(#REF!,#REF!,F$2,#REF!,$A9)/100 ->  | G9: =SUMIFS(#REF!,#REF!,G$2,#REF!,$A9)/100 ->  | O9: =COUNTIF(C$3:C9,C9) -> 7 | Q9: =SUMIFS(#REF!,#REF!,Q$2,#REF!,$A9) ->  | R9: =SUMIFS(#REF!,#REF!,R$2,#REF!,$A9) ->  | S9: =SUMIFS(#REF!,#REF!,S$2,#REF!,$A9) ->  | T9: =SUMIFS(#REF!,#REF!,T$2,#REF!,$A9) ->  | U9: =SUMIFS(#REF!,#REF!,U$2,#REF!,$A9) ->  | V9: =SUMIFS(#REF!,#REF!,V$2,#REF!,$A9) ->  | Y9: =IF(Q9=0,"",RANK(Q9,Q$3:Q$42)+COUNTIF(Q$3:Q9,Q9)-1) ->  | Z9: =IF(R9=0,"",RANK(R9,R$3:R$42)+COUNTIF(R$3:R9,R9)-1) ->  | AA9: =IF(S9=0,"",RANK(S9,S$3:S$42)+COUNTIF(S$3:S9,S9)-1) ->  | AB9: =IF(T9=0,"",RANK(T9,T$3:T$42)+COUNTIF(T$3:T9,T9)-1) ->  | AC9: =IF(U9=0,"",RANK(U9,U$3:U$42)+COUNTIF(U$3:U9,U9)-1) ->  | AD9: =IF(V9=0,"",RANK(V9,V$3:V$42)+COUNTIF(V$3:V9,V9)-1) -> 
A10: =#REF! ->  | B10: =SUMIFS(#REF!,#REF!,B$2,#REF!,$A10)/100 ->  | C10: =SUMIFS(#REF!,#REF!,C$2,#REF!,$A10)/100 ->  | D10: =SUMIFS(#REF!,#REF!,D$2,#REF!,$A10)/100 ->  | E10: =SUMIFS(#REF!,#REF!,E$2,#REF!,$A10)/100 ->  | F10: =SUMIFS(#REF!,#REF!,F$2,#REF!,$A10)/100 ->  | G10: =SUMIFS(#REF!,#REF!,G$2,#REF!,$A10)/100 ->  | O10: =COUNTIF(C$3:C10,C10) -> 8 | Q10: =SUMIFS(#REF!,#REF!,Q$2,#REF!,$A10) ->  | R10: =SUMIFS(#REF!,#REF!,R$2,#REF!,$A10) ->  | S10: =SUMIFS(#REF!,#REF!,S$2,#REF!,$A10) ->  | T10: =SUMIFS(#REF!,#REF!,T$2,#REF!,$A10) ->  | U10: =SUMIFS(#REF!,#REF!,U$2,#REF!,$A10) ->  | V10: =SUMIFS(#REF!,#REF!,V$2,#REF!,$A10) ->  | Y10: =IF(Q10=0,"",RANK(Q10,Q$3:Q$42)+COUNTIF(Q$3:Q10,Q10)-1) ->  | Z10: =IF(R10=0,"",RANK(R10,R$3:R$42)+COUNTIF(R$3:R10,R10)-1) ->  | AA10: =IF(S10=0,"",RANK(S10,S$3:S$42)+COUNTIF(S$3:S10,S10)-1) ->  | AB10: =IF(T10=0,"",RANK(T10,T$3:T$42)+COUNTIF(T$3:T10,T10)-1) ->  | AC10: =IF(U10=0,"",RANK(U10,U$3:U$42)+COUNTIF(U$3:U10,U10)-1) ->  | AD10: =IF(V10=0,"",RANK(V10,V$3:V$42)+COUNTIF(V$3:V10,V10)-1) -> 
A11: =#REF! ->  | B11: =SUMIFS(#REF!,#REF!,B$2,#REF!,$A11)/100 ->  | C11: =SUMIFS(#REF!,#REF!,C$2,#REF!,$A11)/100 ->  | D11: =SUMIFS(#REF!,#REF!,D$2,#REF!,$A11)/100 ->  | E11: =SUMIFS(#REF!,#REF!,E$2,#REF!,$A11)/100 ->  | F11: =SUMIFS(#REF!,#REF!,F$2,#REF!,$A11)/100 ->  | G11: =SUMIFS(#REF!,#REF!,G$2,#REF!,$A11)/100 ->  | O11: =COUNTIF(C$3:C11,C11) -> 9 | Q11: =SUMIFS(#REF!,#REF!,Q$2,#REF!,$A11) ->  | R11: =SUMIFS(#REF!,#REF!,R$2,#REF!,$A11) ->  | S11: =SUMIFS(#REF!,#REF!,S$2,#REF!,$A11) ->  | T11: =SUMIFS(#REF!,#REF!,T$2,#REF!,$A11) ->  | U11: =SUMIFS(#REF!,#REF!,U$2,#REF!,$A11) ->  | V11: =SUMIFS(#REF!,#REF!,V$2,#REF!,$A11) ->  | Y11: =IF(Q11=0,"",RANK(Q11,Q$3:Q$42)+COUNTIF(Q$3:Q11,Q11)-1) ->  | Z11: =IF(R11=0,"",RANK(R11,R$3:R$42)+COUNTIF(R$3:R11,R11)-1) ->  | AA11: =IF(S11=0,"",RANK(S11,S$3:S$42)+COUNTIF(S$3:S11,S11)-1) ->  | AB11: =IF(T11=0,"",RANK(T11,T$3:T$42)+COUNTIF(T$3:T11,T11)-1) ->  | AC11: =IF(U11=0,"",RANK(U11,U$3:U$42)+COUNTIF(U$3:U11,U11)-1) ->  | AD11: =IF(V11=0,"",RANK(V11,V$3:V$42)+COUNTIF(V$3:V11,V11)-1) -> 
A12: =#REF! ->  | B12: =SUMIFS(#REF!,#REF!,B$2,#REF!,$A12)/100 ->  | C12: =SUMIFS(#REF!,#REF!,C$2,#REF!,$A12)/100 ->  | D12: =SUMIFS(#REF!,#REF!,D$2,#REF!,$A12)/100 ->  | E12: =SUMIFS(#REF!,#REF!,E$2,#REF!,$A12)/100 ->  | F12: =SUMIFS(#REF!,#REF!,F$2,#REF!,$A12)/100 ->  | G12: =SUMIFS(#REF!,#REF!,G$2,#REF!,$A12)/100 ->  | O12: =COUNTIF(C$3:C12,C12) -> 10 | Q12: =SUMIFS(#REF!,#REF!,Q$2,#REF!,$A12) ->  | R12: =SUMIFS(#REF!,#REF!,R$2,#REF!,$A12) ->  | S12: =SUMIFS(#REF!,#REF!,S$2,#REF!,$A12) ->  | T12: =SUMIFS(#REF!,#REF!,T$2,#REF!,$A12) ->  | U12: =SUMIFS(#REF!,#REF!,U$2,#REF!,$A12) ->  | V12: =SUMIFS(#REF!,#REF!,V$2,#REF!,$A12) ->  | Y12: =IF(Q12=0,"",RANK(Q12,Q$3:Q$42)+COUNTIF(Q$3:Q12,Q12)-1) ->  | Z12: =IF(R12=0,"",RANK(R12,R$3:R$42)+COUNTIF(R$3:R12,R12)-1) ->  | AA12: =IF(S12=0,"",RANK(S12,S$3:S$42)+COUNTIF(S$3:S12,S12)-1) ->  | AB12: =IF(T12=0,"",RANK(T12,T$3:T$42)+COUNTIF(T$3:T12,T12)-1) ->  | AC12: =IF(U12=0,"",RANK(U12,U$3:U$42)+COUNTIF(U$3:U12,U12)-1) ->  | AD12: =IF(V12=0,"",RANK(V12,V$3:V$42)+COUNTIF(V$3:V12,V12)-1) -> 
A13: =#REF! ->  | B13: =SUMIFS(#REF!,#REF!,B$2,#REF!,$A13)/100 ->  | C13: =SUMIFS(#REF!,#REF!,C$2,#REF!,$A13)/100 ->  | D13: =SUMIFS(#REF!,#REF!,D$2,#REF!,$A13)/100 ->  | E13: =SUMIFS(#REF!,#REF!,E$2,#REF!,$A13)/100 ->  | F13: =SUMIFS(#REF!,#REF!,F$2,#REF!,$A13)/100 ->  | G13: =SUMIFS(#REF!,#REF!,G$2,#REF!,$A13)/100 ->  | O13: =COUNTIF(C$3:C13,C13) -> 11 | Q13: =SUMIFS(#REF!,#REF!,Q$2,#REF!,$A13) ->  | R13: =SUMIFS(#REF!,#REF!,R$2,#REF!,$A13) ->  | S13: =SUMIFS(#REF!,#REF!,S$2,#REF!,$A13) ->  | T13: =SUMIFS(#REF!,#REF!,T$2,#REF!,$A13) ->  | U13: =SUMIFS(#REF!,#REF!,U$2,#REF!,$A13) ->  | V13: =SUMIFS(#REF!,#REF!,V$2,#REF!,$A13) ->  | Y13: =IF(Q13=0,"",RANK(Q13,Q$3:Q$42)+COUNTIF(Q$3:Q13,Q13)-1) ->  | Z13: =IF(R13=0,"",RANK(R13,R$3:R$42)+COUNTIF(R$3:R13,R13)-1) ->  | AA13: =IF(S13=0,"",RANK(S13,S$3:S$42)+COUNTIF(S$3:S13,S13)-1) ->  | AB13: =IF(T13=0,"",RANK(T13,T$3:T$42)+COUNTIF(T$3:T13,T13)-1) ->  | AC13: =IF(U13=0,"",RANK(U13,U$3:U$42)+COUNTIF(U$3:U13,U13)-1) ->  | AD13: =IF(V13=0,"",RANK(V13,V$3:V$42)+COUNTIF(V$3:V13,V13)-1) -> 
A14: =#REF! ->  | B14: =SUMIFS(#REF!,#REF!,B$2,#REF!,$A14)/100 ->  | C14: =SUMIFS(#REF!,#REF!,C$2,#REF!,$A14)/100 ->  | D14: =SUMIFS(#REF!,#REF!,D$2,#REF!,$A14)/100 ->  | E14: =SUMIFS(#REF!,#REF!,E$2,#REF!,$A14)/100 ->  | F14: =SUMIFS(#REF!,#REF!,F$2,#REF!,$A14)/100 ->  | G14: =SUMIFS(#REF!,#REF!,G$2,#REF!,$A14)/100 ->  | O14: =COUNTIF(C$3:C14,C14) -> 12 | Q14: =SUMIFS(#REF!,#REF!,Q$2,#REF!,$A14) ->  | R14: =SUMIFS(#REF!,#REF!,R$2,#REF!,$A14) ->  | S14: =SUMIFS(#REF!,#REF!,S$2,#REF!,$A14) ->  | T14: =SUMIFS(#REF!,#REF!,T$2,#REF!,$A14) ->  | U14: =SUMIFS(#REF!,#REF!,U$2,#REF!,$A14) ->  | V14: =SUMIFS(#REF!,#REF!,V$2,#REF!,$A14) ->  | Y14: =IF(Q14=0,"",RANK(Q14,Q$3:Q$42)+COUNTIF(Q$3:Q14,Q14)-1) ->  | Z14: =IF(R14=0,"",RANK(R14,R$3:R$42)+COUNTIF(R$3:R14,R14)-1) ->  | AA14: =IF(S14=0,"",RANK(S14,S$3:S$42)+COUNTIF(S$3:S14,S14)-1) ->  | AB14: =IF(T14=0,"",RANK(T14,T$3:T$42)+COUNTIF(T$3:T14,T14)-1) ->  | AC14: =IF(U14=0,"",RANK(U14,U$3:U$42)+COUNTIF(U$3:U14,U14)-1) ->  | AD14: =IF(V14=0,"",RANK(V14,V$3:V$42)+COUNTIF(V$3:V14,V14)-1) -> 
A15: =#REF! ->  | B15: =SUMIFS(#REF!,#REF!,B$2,#REF!,$A15)/100 ->  | C15: =SUMIFS(#REF!,#REF!,C$2,#REF!,$A15)/100 ->  | D15: =SUMIFS(#REF!,#REF!,D$2,#REF!,$A15)/100 ->  | E15: =SUMIFS(#REF!,#REF!,E$2,#REF!,$A15)/100 ->  | F15: =SUMIFS(#REF!,#REF!,F$2,#REF!,$A15)/100 ->  | G15: =SUMIFS(#REF!,#REF!,G$2,#REF!,$A15)/100 ->  | O15: =COUNTIF(C$3:C15,C15) -> 13 | Q15: =SUMIFS(#REF!,#REF!,Q$2,#REF!,$A15) ->  | R15: =SUMIFS(#REF!,#REF!,R$2,#REF!,$A15) ->  | S15: =SUMIFS(#REF!,#REF!,S$2,#REF!,$A15) ->  | T15: =SUMIFS(#REF!,#REF!,T$2,#REF!,$A15) ->  | U15: =SUMIFS(#REF!,#REF!,U$2,#REF!,$A15) ->  | V15: =SUMIFS(#REF!,#REF!,V$2,#REF!,$A15) ->  | Y15: =IF(Q15=0,"",RANK(Q15,Q$3:Q$42)+COUNTIF(Q$3:Q15,Q15)-1) ->  | Z15: =IF(R15=0,"",RANK(R15,R$3:R$42)+COUNTIF(R$3:R15,R15)-1) ->  | AA15: =IF(S15=0,"",RANK(S15,S$3:S$42)+COUNTIF(S$3:S15,S15)-1) ->  | AB15: =IF(T15=0,"",RANK(T15,T$3:T$42)+COUNTIF(T$3:T15,T15)-1) ->  | AC15: =IF(U15=0,"",RANK(U15,U$3:U$42)+COUNTIF(U$3:U15,U15)-1) ->  | AD15: =IF(V15=0,"",RANK(V15,V$3:V$42)+COUNTIF(V$3:V15,V15)-1) -> 
A16: =#REF! ->  | B16: =SUMIFS(#REF!,#REF!,B$2,#REF!,$A16)/100 ->  | C16: =SUMIFS(#REF!,#REF!,C$2,#REF!,$A16)/100 ->  | D16: =SUMIFS(#REF!,#REF!,D$2,#REF!,$A16)/100 ->  | E16: =SUMIFS(#REF!,#REF!,E$2,#REF!,$A16)/100 ->  | F16: =SUMIFS(#REF!,#REF!,F$2,#REF!,$A16)/100 ->  | G16: =SUMIFS(#REF!,#REF!,G$2,#REF!,$A16)/100 ->  | O16: =COUNTIF(C$3:C16,C16) -> 14 | Q16: =SUMIFS(#REF!,#REF!,Q$2,#REF!,$A16) ->  | R16: =SUMIFS(#REF!,#REF!,R$2,#REF!,$A16) ->  | S16: =SUMIFS(#REF!,#REF!,S$2,#REF!,$A16) ->  | T16: =SUMIFS(#REF!,#REF!,T$2,#REF!,$A16) ->  | U16: =SUMIFS(#REF!,#REF!,U$2,#REF!,$A16) ->  | V16: =SUMIFS(#REF!,#REF!,V$2,#REF!,$A16) ->  | Y16: =IF(Q16=0,"",RANK(Q16,Q$3:Q$42)+COUNTIF(Q$3:Q16,Q16)-1) ->  | Z16: =IF(R16=0,"",RANK(R16,R$3:R$42)+COUNTIF(R$3:R16,R16)-1) ->  | AA16: =IF(S16=0,"",RANK(S16,S$3:S$42)+COUNTIF(S$3:S16,S16)-1) ->  | AB16: =IF(T16=0,"",RANK(T16,T$3:T$42)+COUNTIF(T$3:T16,T16)-1) ->  | AC16: =IF(U16=0,"",RANK(U16,U$3:U$42)+COUNTIF(U$3:U16,U16)-1) ->  | AD16: =IF(V16=0,"",RANK(V16,V$3:V$42)+COUNTIF(V$3:V16,V16)-1) -> 
A17: =#REF! ->  | B17: =SUMIFS(#REF!,#REF!,B$2,#REF!,$A17)/100 ->  | C17: =SUMIFS(#REF!,#REF!,C$2,#REF!,$A17)/100 ->  | D17: =SUMIFS(#REF!,#REF!,D$2,#REF!,$A17)/100 ->  | E17: =SUMIFS(#REF!,#REF!,E$2,#REF!,$A17)/100 ->  | F17: =SUMIFS(#REF!,#REF!,F$2,#REF!,$A17)/100 ->  | G17: =SUMIFS(#REF!,#REF!,G$2,#REF!,$A17)/100 ->  | O17: =COUNTIF(C$3:C17,C17) -> 15 | Q17: =SUMIFS(#REF!,#REF!,Q$2,#REF!,$A17) ->  | R17: =SUMIFS(#REF!,#REF!,R$2,#REF!,$A17) ->  | S17: =SUMIFS(#REF!,#REF!,S$2,#REF!,$A17) ->  | T17: =SUMIFS(#REF!,#REF!,T$2,#REF!,$A17) ->  | U17: =SUMIFS(#REF!,#REF!,U$2,#REF!,$A17) ->  | V17: =SUMIFS(#REF!,#REF!,V$2,#REF!,$A17) ->  | Y17: =IF(Q17=0,"",RANK(Q17,Q$3:Q$42)+COUNTIF(Q$3:Q17,Q17)-1) ->  | Z17: =IF(R17=0,"",RANK(R17,R$3:R$42)+COUNTIF(R$3:R17,R17)-1) ->  | AA17: =IF(S17=0,"",RANK(S17,S$3:S$42)+COUNTIF(S$3:S17,S17)-1) ->  | AB17: =IF(T17=0,"",RANK(T17,T$3:T$42)+COUNTIF(T$3:T17,T17)-1) ->  | AC17: =IF(U17=0,"",RANK(U17,U$3:U$42)+COUNTIF(U$3:U17,U17)-1) ->  | AD17: =IF(V17=0,"",RANK(V17,V$3:V$42)+COUNTIF(V$3:V17,V17)-1) -> 
A18: =#REF! ->  | B18: =SUMIFS(#REF!,#REF!,B$2,#REF!,$A18)/100 ->  | C18: =SUMIFS(#REF!,#REF!,C$2,#REF!,$A18)/100 ->  | D18: =SUMIFS(#REF!,#REF!,D$2,#REF!,$A18)/100 ->  | E18: =SUMIFS(#REF!,#REF!,E$2,#REF!,$A18)/100 ->  | F18: =SUMIFS(#REF!,#REF!,F$2,#REF!,$A18)/100 ->  | G18: =SUMIFS(#REF!,#REF!,G$2,#REF!,$A18)/100 ->  | O18: =COUNTIF(C$3:C18,C18) -> 16 | Q18: =SUMIFS(#REF!,#REF!,Q$2,#REF!,$A18) ->  | R18: =SUMIFS(#REF!,#REF!,R$2,#REF!,$A18) ->  | S18: =SUMIFS(#REF!,#REF!,S$2,#REF!,$A18) ->  | T18: =SUMIFS(#REF!,#REF!,T$2,#REF!,$A18) ->  | U18: =SUMIFS(#REF!,#REF!,U$2,#REF!,$A18) ->  | V18: =SUMIFS(#REF!,#REF!,V$2,#REF!,$A18) ->  | Y18: =IF(Q18=0,"",RANK(Q18,Q$3:Q$42)+COUNTIF(Q$3:Q18,Q18)-1) ->  | Z18: =IF(R18=0,"",RANK(R18,R$3:R$42)+COUNTIF(R$3:R18,R18)-1) ->  | AA18: =IF(S18=0,"",RANK(S18,S$3:S$42)+COUNTIF(S$3:S18,S18)-1) ->  | AB18: =IF(T18=0,"",RANK(T18,T$3:T$42)+COUNTIF(T$3:T18,T18)-1) ->  | AC18: =IF(U18=0,"",RANK(U18,U$3:U$42)+COUNTIF(U$3:U18,U18)-1) ->  | AD18: =IF(V18=0,"",RANK(V18,V$3:V$42)+COUNTIF(V$3:V18,V18)-1) -> 
A19: =#REF! ->  | B19: =SUMIFS(#REF!,#REF!,B$2,#REF!,$A19)/100 ->  | C19: =SUMIFS(#REF!,#REF!,C$2,#REF!,$A19)/100 ->  | D19: =SUMIFS(#REF!,#REF!,D$2,#REF!,$A19)/100 ->  | E19: =SUMIFS(#REF!,#REF!,E$2,#REF!,$A19)/100 ->  | F19: =SUMIFS(#REF!,#REF!,F$2,#REF!,$A19)/100 ->  | G19: =SUMIFS(#REF!,#REF!,G$2,#REF!,$A19)/100 ->  | O19: =COUNTIF(C$3:C19,C19) -> 17 | Q19: =SUMIFS(#REF!,#REF!,Q$2,#REF!,$A19) ->  | R19: =SUMIFS(#REF!,#REF!,R$2,#REF!,$A19) ->  | S19: =SUMIFS(#REF!,#REF!,S$2,#REF!,$A19) ->  | T19: =SUMIFS(#REF!,#REF!,T$2,#REF!,$A19) ->  | U19: =SUMIFS(#REF!,#REF!,U$2,#REF!,$A19) ->  | V19: =SUMIFS(#REF!,#REF!,V$2,#REF!,$A19) ->  | Y19: =IF(Q19=0,"",RANK(Q19,Q$3:Q$42)+COUNTIF(Q$3:Q19,Q19)-1) ->  | Z19: =IF(R19=0,"",RANK(R19,R$3:R$42)+COUNTIF(R$3:R19,R19)-1) ->  | AA19: =IF(S19=0,"",RANK(S19,S$3:S$42)+COUNTIF(S$3:S19,S19)-1) ->  | AB19: =IF(T19=0,"",RANK(T19,T$3:T$42)+COUNTIF(T$3:T19,T19)-1) ->  | AC19: =IF(U19=0,"",RANK(U19,U$3:U$42)+COUNTIF(U$3:U19,U19)-1) ->  | AD19: =IF(V19=0,"",RANK(V19,V$3:V$42)+COUNTIF(V$3:V19,V19)-1) -> 
A20: =#REF! ->  | B20: =SUMIFS(#REF!,#REF!,B$2,#REF!,$A20)/100 ->  | C20: =SUMIFS(#REF!,#REF!,C$2,#REF!,$A20)/100 ->  | D20: =SUMIFS(#REF!,#REF!,D$2,#REF!,$A20)/100 ->  | E20: =SUMIFS(#REF!,#REF!,E$2,#REF!,$A20)/100 ->  | F20: =SUMIFS(#REF!,#REF!,F$2,#REF!,$A20)/100 ->  | G20: =SUMIFS(#REF!,#REF!,G$2,#REF!,$A20)/100 ->  | O20: =COUNTIF(C$3:C20,C20) -> 18 | Q20: =SUMIFS(#REF!,#REF!,Q$2,#REF!,$A20) ->  | R20: =SUMIFS(#REF!,#REF!,R$2,#REF!,$A20) ->  | S20: =SUMIFS(#REF!,#REF!,S$2,#REF!,$A20) ->  | T20: =SUMIFS(#REF!,#REF!,T$2,#REF!,$A20) ->  | U20: =SUMIFS(#REF!,#REF!,U$2,#REF!,$A20) ->  | V20: =SUMIFS(#REF!,#REF!,V$2,#REF!,$A20) ->  | Y20: =IF(Q20=0,"",RANK(Q20,Q$3:Q$42)+COUNTIF(Q$3:Q20,Q20)-1) ->  | Z20: =IF(R20=0,"",RANK(R20,R$3:R$42)+COUNTIF(R$3:R20,R20)-1) ->  | AA20: =IF(S20=0,"",RANK(S20,S$3:S$42)+COUNTIF(S$3:S20,S20)-1) ->  | AB20: =IF(T20=0,"",RANK(T20,T$3:T$42)+COUNTIF(T$3:T20,T20)-1) ->  | AC20: =IF(U20=0,"",RANK(U20,U$3:U$42)+COUNTIF(U$3:U20,U20)-1) ->  | AD20: =IF(V20=0,"",RANK(V20,V$3:V$42)+COUNTIF(V$3:V20,V20)-1) -> 
A21: =#REF! ->  | B21: =SUMIFS(#REF!,#REF!,B$2,#REF!,$A21)/100 ->  | C21: =SUMIFS(#REF!,#REF!,C$2,#REF!,$A21)/100 ->  | D21: =SUMIFS(#REF!,#REF!,D$2,#REF!,$A21)/100 ->  | E21: =SUMIFS(#REF!,#REF!,E$2,#REF!,$A21)/100 ->  | F21: =SUMIFS(#REF!,#REF!,F$2,#REF!,$A21)/100 ->  | G21: =SUMIFS(#REF!,#REF!,G$2,#REF!,$A21)/100 ->  | O21: =COUNTIF(C$3:C21,C21) -> 19 | Q21: =SUMIFS(#REF!,#REF!,Q$2,#REF!,$A21) ->  | R21: =SUMIFS(#REF!,#REF!,R$2,#REF!,$A21) ->  | S21: =SUMIFS(#REF!,#REF!,S$2,#REF!,$A21) ->  | T21: =SUMIFS(#REF!,#REF!,T$2,#REF!,$A21) ->  | U21: =SUMIFS(#REF!,#REF!,U$2,#REF!,$A21) ->  | V21: =SUMIFS(#REF!,#REF!,V$2,#REF!,$A21) ->  | Y21: =IF(Q21=0,"",RANK(Q21,Q$3:Q$42)+COUNTIF(Q$3:Q21,Q21)-1) ->  | Z21: =IF(R21=0,"",RANK(R21,R$3:R$42)+COUNTIF(R$3:R21,R21)-1) ->  | AA21: =IF(S21=0,"",RANK(S21,S$3:S$42)+COUNTIF(S$3:S21,S21)-1) ->  | AB21: =IF(T21=0,"",RANK(T21,T$3:T$42)+COUNTIF(T$3:T21,T21)-1) ->  | AC21: =IF(U21=0,"",RANK(U21,U$3:U$42)+COUNTIF(U$3:U21,U21)-1) ->  | AD21: =IF(V21=0,"",RANK(V21,V$3:V$42)+COUNTIF(V$3:V21,V21)-1) -> 
A22: =#REF! ->  | B22: =SUMIFS(#REF!,#REF!,B$2,#REF!,$A22)/100 ->  | C22: =SUMIFS(#REF!,#REF!,C$2,#REF!,$A22)/100 ->  | D22: =SUMIFS(#REF!,#REF!,D$2,#REF!,$A22)/100 ->  | E22: =SUMIFS(#REF!,#REF!,E$2,#REF!,$A22)/100 ->  | F22: =SUMIFS(#REF!,#REF!,F$2,#REF!,$A22)/100 ->  | G22: =SUMIFS(#REF!,#REF!,G$2,#REF!,$A22)/100 ->  | O22: =COUNTIF(C$3:C22,C22) -> 20 | Q22: =SUMIFS(#REF!,#REF!,Q$2,#REF!,$A22) ->  | R22: =SUMIFS(#REF!,#REF!,R$2,#REF!,$A22) ->  | S22: =SUMIFS(#REF!,#REF!,S$2,#REF!,$A22) ->  | T22: =SUMIFS(#REF!,#REF!,T$2,#REF!,$A22) ->  | U22: =SUMIFS(#REF!,#REF!,U$2,#REF!,$A22) ->  | V22: =SUMIFS(#REF!,#REF!,V$2,#REF!,$A22) ->  | Y22: =IF(Q22=0,"",RANK(Q22,Q$3:Q$42)+COUNTIF(Q$3:Q22,Q22)-1) ->  | Z22: =IF(R22=0,"",RANK(R22,R$3:R$42)+COUNTIF(R$3:R22,R22)-1) ->  | AA22: =IF(S22=0,"",RANK(S22,S$3:S$42)+COUNTIF(S$3:S22,S22)-1) ->  | AB22: =IF(T22=0,"",RANK(T22,T$3:T$42)+COUNTIF(T$3:T22,T22)-1) ->  | AC22: =IF(U22=0,"",RANK(U22,U$3:U$42)+COUNTIF(U$3:U22,U22)-1) ->  | AD22: =IF(V22=0,"",RANK(V22,V$3:V$42)+COUNTIF(V$3:V22,V22)-1) -> 
A23: =#REF! ->  | B23: =SUMIFS(#REF!,#REF!,B$2,#REF!,$A23)/100 ->  | C23: =SUMIFS(#REF!,#REF!,C$2,#REF!,$A23)/100 ->  | D23: =SUMIFS(#REF!,#REF!,D$2,#REF!,$A23)/100 ->  | E23: =SUMIFS(#REF!,#REF!,E$2,#REF!,$A23)/100 ->  | F23: =SUMIFS(#REF!,#REF!,F$2,#REF!,$A23)/100 ->  | G23: =SUMIFS(#REF!,#REF!,G$2,#REF!,$A23)/100 ->  | O23: =COUNTIF(C$3:C23,C23) -> 21 | Q23: =SUMIFS(#REF!,#REF!,Q$2,#REF!,$A23) ->  | R23: =SUMIFS(#REF!,#REF!,R$2,#REF!,$A23) ->  | S23: =SUMIFS(#REF!,#REF!,S$2,#REF!,$A23) ->  | T23: =SUMIFS(#REF!,#REF!,T$2,#REF!,$A23) ->  | U23: =SUMIFS(#REF!,#REF!,U$2,#REF!,$A23) ->  | V23: =SUMIFS(#REF!,#REF!,V$2,#REF!,$A23) ->  | Y23: =IF(Q23=0,"",RANK(Q23,Q$3:Q$42)+COUNTIF(Q$3:Q23,Q23)-1) ->  | Z23: =IF(R23=0,"",RANK(R23,R$3:R$42)+COUNTIF(R$3:R23,R23)-1) ->  | AA23: =IF(S23=0,"",RANK(S23,S$3:S$42)+COUNTIF(S$3:S23,S23)-1) ->  | AB23: =IF(T23=0,"",RANK(T23,T$3:T$42)+COUNTIF(T$3:T23,T23)-1) ->  | AC23: =IF(U23=0,"",RANK(U23,U$3:U$42)+COUNTIF(U$3:U23,U23)-1) ->  | AD23: =IF(V23=0,"",RANK(V23,V$3:V$42)+COUNTIF(V$3:V23,V23)-1) -> 
A24: =#REF! ->  | B24: =SUMIFS(#REF!,#REF!,B$2,#REF!,$A24)/100 ->  | C24: =SUMIFS(#REF!,#REF!,C$2,#REF!,$A24)/100 ->  | D24: =SUMIFS(#REF!,#REF!,D$2,#REF!,$A24)/100 ->  | E24: =SUMIFS(#REF!,#REF!,E$2,#REF!,$A24)/100 ->  | F24: =SUMIFS(#REF!,#REF!,F$2,#REF!,$A24)/100 ->  | G24: =SUMIFS(#REF!,#REF!,G$2,#REF!,$A24)/100 ->  | O24: =COUNTIF(C$3:C24,C24) -> 22 | Q24: =SUMIFS(#REF!,#REF!,Q$2,#REF!,$A24) ->  | R24: =SUMIFS(#REF!,#REF!,R$2,#REF!,$A24) ->  | S24: =SUMIFS(#REF!,#REF!,S$2,#REF!,$A24) ->  | T24: =SUMIFS(#REF!,#REF!,T$2,#REF!,$A24) ->  | U24: =SUMIFS(#REF!,#REF!,U$2,#REF!,$A24) ->  | V24: =SUMIFS(#REF!,#REF!,V$2,#REF!,$A24) ->  | Y24: =IF(Q24=0,"",RANK(Q24,Q$3:Q$42)+COUNTIF(Q$3:Q24,Q24)-1) ->  | Z24: =IF(R24=0,"",RANK(R24,R$3:R$42)+COUNTIF(R$3:R24,R24)-1) ->  | AA24: =IF(S24=0,"",RANK(S24,S$3:S$42)+COUNTIF(S$3:S24,S24)-1) ->  | AB24: =IF(T24=0,"",RANK(T24,T$3:T$42)+COUNTIF(T$3:T24,T24)-1) ->  | AC24: =IF(U24=0,"",RANK(U24,U$3:U$42)+COUNTIF(U$3:U24,U24)-1) ->  | AD24: =IF(V24=0,"",RANK(V24,V$3:V$42)+COUNTIF(V$3:V24,V24)-1) -> 
A25: =#REF! ->  | B25: =SUMIFS(#REF!,#REF!,B$2,#REF!,$A25)/100 ->  | C25: =SUMIFS(#REF!,#REF!,C$2,#REF!,$A25)/100 ->  | D25: =SUMIFS(#REF!,#REF!,D$2,#REF!,$A25)/100 ->  | E25: =SUMIFS(#REF!,#REF!,E$2,#REF!,$A25)/100 ->  | F25: =SUMIFS(#REF!,#REF!,F$2,#REF!,$A25)/100 ->  | G25: =SUMIFS(#REF!,#REF!,G$2,#REF!,$A25)/100 ->  | O25: =COUNTIF(C$3:C25,C25) -> 23 | Q25: =SUMIFS(#REF!,#REF!,Q$2,#REF!,$A25) ->  | R25: =SUMIFS(#REF!,#REF!,R$2,#REF!,$A25) ->  | S25: =SUMIFS(#REF!,#REF!,S$2,#REF!,$A25) ->  | T25: =SUMIFS(#REF!,#REF!,T$2,#REF!,$A25) ->  | U25: =SUMIFS(#REF!,#REF!,U$2,#REF!,$A25) ->  | V25: =SUMIFS(#REF!,#REF!,V$2,#REF!,$A25) ->  | Y25: =IF(Q25=0,"",RANK(Q25,Q$3:Q$42)+COUNTIF(Q$3:Q25,Q25)-1) ->  | Z25: =IF(R25=0,"",RANK(R25,R$3:R$42)+COUNTIF(R$3:R25,R25)-1) ->  | AA25: =IF(S25=0,"",RANK(S25,S$3:S$42)+COUNTIF(S$3:S25,S25)-1) ->  | AB25: =IF(T25=0,"",RANK(T25,T$3:T$42)+COUNTIF(T$3:T25,T25)-1) ->  | AC25: =IF(U25=0,"",RANK(U25,U$3:U$42)+COUNTIF(U$3:U25,U25)-1) ->  | AD25: =IF(V25=0,"",RANK(V25,V$3:V$42)+COUNTIF(V$3:V25,V25)-1) -> 
A26: =#REF! ->  | B26: =SUMIFS(#REF!,#REF!,B$2,#REF!,$A26)/100 ->  | C26: =SUMIFS(#REF!,#REF!,C$2,#REF!,$A26)/100 ->  | D26: =SUMIFS(#REF!,#REF!,D$2,#REF!,$A26)/100 ->  | E26: =SUMIFS(#REF!,#REF!,E$2,#REF!,$A26)/100 ->  | F26: =SUMIFS(#REF!,#REF!,F$2,#REF!,$A26)/100 ->  | G26: =SUMIFS(#REF!,#REF!,G$2,#REF!,$A26)/100 ->  | O26: =COUNTIF(C$3:C26,C26) -> 24 | Q26: =SUMIFS(#REF!,#REF!,Q$2,#REF!,$A26) ->  | R26: =SUMIFS(#REF!,#REF!,R$2,#REF!,$A26) ->  | S26: =SUMIFS(#REF!,#REF!,S$2,#REF!,$A26) ->  | T26: =SUMIFS(#REF!,#REF!,T$2,#REF!,$A26) ->  | U26: =SUMIFS(#REF!,#REF!,U$2,#REF!,$A26) ->  | V26: =SUMIFS(#REF!,#REF!,V$2,#REF!,$A26) ->  | Y26: =IF(Q26=0,"",RANK(Q26,Q$3:Q$42)+COUNTIF(Q$3:Q26,Q26)-1) ->  | Z26: =IF(R26=0,"",RANK(R26,R$3:R$42)+COUNTIF(R$3:R26,R26)-1) ->  | AA26: =IF(S26=0,"",RANK(S26,S$3:S$42)+COUNTIF(S$3:S26,S26)-1) ->  | AB26: =IF(T26=0,"",RANK(T26,T$3:T$42)+COUNTIF(T$3:T26,T26)-1) ->  | AC26: =IF(U26=0,"",RANK(U26,U$3:U$42)+COUNTIF(U$3:U26,U26)-1) ->  | AD26: =IF(V26=0,"",RANK(V26,V$3:V$42)+COUNTIF(V$3:V26,V26)-1) -> 
A27: =#REF! ->  | B27: =SUMIFS(#REF!,#REF!,B$2,#REF!,$A27)/100 ->  | C27: =SUMIFS(#REF!,#REF!,C$2,#REF!,$A27)/100 ->  | D27: =SUMIFS(#REF!,#REF!,D$2,#REF!,$A27)/100 ->  | E27: =SUMIFS(#REF!,#REF!,E$2,#REF!,$A27)/100 ->  | F27: =SUMIFS(#REF!,#REF!,F$2,#REF!,$A27)/100 ->  | G27: =SUMIFS(#REF!,#REF!,G$2,#REF!,$A27)/100 ->  | O27: =COUNTIF(C$3:C27,C27) -> 25 | Q27: =SUMIFS(#REF!,#REF!,Q$2,#REF!,$A27) ->  | R27: =SUMIFS(#REF!,#REF!,R$2,#REF!,$A27) ->  | S27: =SUMIFS(#REF!,#REF!,S$2,#REF!,$A27) ->  | T27: =SUMIFS(#REF!,#REF!,T$2,#REF!,$A27) ->  | U27: =SUMIFS(#REF!,#REF!,U$2,#REF!,$A27) ->  | V27: =SUMIFS(#REF!,#REF!,V$2,#REF!,$A27) ->  | Y27: =IF(Q27=0,"",RANK(Q27,Q$3:Q$42)+COUNTIF(Q$3:Q27,Q27)-1) ->  | Z27: =IF(R27=0,"",RANK(R27,R$3:R$42)+COUNTIF(R$3:R27,R27)-1) ->  | AA27: =IF(S27=0,"",RANK(S27,S$3:S$42)+COUNTIF(S$3:S27,S27)-1) ->  | AB27: =IF(T27=0,"",RANK(T27,T$3:T$42)+COUNTIF(T$3:T27,T27)-1) ->  | AC27: =IF(U27=0,"",RANK(U27,U$3:U$42)+COUNTIF(U$3:U27,U27)-1) ->  | AD27: =IF(V27=0,"",RANK(V27,V$3:V$42)+COUNTIF(V$3:V27,V27)-1) -> 
A28: =#REF! ->  | B28: =SUMIFS(#REF!,#REF!,B$2,#REF!,$A28)/100 ->  | C28: =SUMIFS(#REF!,#REF!,C$2,#REF!,$A28)/100 ->  | D28: =SUMIFS(#REF!,#REF!,D$2,#REF!,$A28)/100 ->  | E28: =SUMIFS(#REF!,#REF!,E$2,#REF!,$A28)/100 ->  | F28: =SUMIFS(#REF!,#REF!,F$2,#REF!,$A28)/100 ->  | G28: =SUMIFS(#REF!,#REF!,G$2,#REF!,$A28)/100 ->  | O28: =COUNTIF(C$3:C28,C28) -> 26 | Q28: =SUMIFS(#REF!,#REF!,Q$2,#REF!,$A28) ->  | R28: =SUMIFS(#REF!,#REF!,R$2,#REF!,$A28) ->  | S28: =SUMIFS(#REF!,#REF!,S$2,#REF!,$A28) ->  | T28: =SUMIFS(#REF!,#REF!,T$2,#REF!,$A28) ->  | U28: =SUMIFS(#REF!,#REF!,U$2,#REF!,$A28) ->  | V28: =SUMIFS(#REF!,#REF!,V$2,#REF!,$A28) ->  | Y28: =IF(Q28=0,"",RANK(Q28,Q$3:Q$42)+COUNTIF(Q$3:Q28,Q28)-1) ->  | Z28: =IF(R28=0,"",RANK(R28,R$3:R$42)+COUNTIF(R$3:R28,R28)-1) ->  | AA28: =IF(S28=0,"",RANK(S28,S$3:S$42)+COUNTIF(S$3:S28,S28)-1) ->  | AB28: =IF(T28=0,"",RANK(T28,T$3:T$42)+COUNTIF(T$3:T28,T28)-1) ->  | AC28: =IF(U28=0,"",RANK(U28,U$3:U$42)+COUNTIF(U$3:U28,U28)-1) ->  | AD28: =IF(V28=0,"",RANK(V28,V$3:V$42)+COUNTIF(V$3:V28,V28)-1) -> 
A29: =#REF! ->  | B29: =SUMIFS(#REF!,#REF!,B$2,#REF!,$A29)/100 ->  | C29: =SUMIFS(#REF!,#REF!,C$2,#REF!,$A29)/100 ->  | D29: =SUMIFS(#REF!,#REF!,D$2,#REF!,$A29)/100 ->  | E29: =SUMIFS(#REF!,#REF!,E$2,#REF!,$A29)/100 ->  | F29: =SUMIFS(#REF!,#REF!,F$2,#REF!,$A29)/100 ->  | G29: =SUMIFS(#REF!,#REF!,G$2,#REF!,$A29)/100 ->  | O29: =COUNTIF(C$3:C29,C29) -> 27 | Q29: =SUMIFS(#REF!,#REF!,Q$2,#REF!,$A29) ->  | R29: =SUMIFS(#REF!,#REF!,R$2,#REF!,$A29) ->  | S29: =SUMIFS(#REF!,#REF!,S$2,#REF!,$A29) ->  | T29: =SUMIFS(#REF!,#REF!,T$2,#REF!,$A29) ->  | U29: =SUMIFS(#REF!,#REF!,U$2,#REF!,$A29) ->  | V29: =SUMIFS(#REF!,#REF!,V$2,#REF!,$A29) ->  | Y29: =IF(Q29=0,"",RANK(Q29,Q$3:Q$42)+COUNTIF(Q$3:Q29,Q29)-1) ->  | Z29: =IF(R29=0,"",RANK(R29,R$3:R$42)+COUNTIF(R$3:R29,R29)-1) ->  | AA29: =IF(S29=0,"",RANK(S29,S$3:S$42)+COUNTIF(S$3:S29,S29)-1) ->  | AB29: =IF(T29=0,"",RANK(T29,T$3:T$42)+COUNTIF(T$3:T29,T29)-1) ->  | AC29: =IF(U29=0,"",RANK(U29,U$3:U$42)+COUNTIF(U$3:U29,U29)-1) ->  | AD29: =IF(V29=0,"",RANK(V29,V$3:V$42)+COUNTIF(V$3:V29,V29)-1) -> 
A30: =#REF! ->  | B30: =SUMIFS(#REF!,#REF!,B$2,#REF!,$A30)/100 ->  | C30: =SUMIFS(#REF!,#REF!,C$2,#REF!,$A30)/100 ->  | D30: =SUMIFS(#REF!,#REF!,D$2,#REF!,$A30)/100 ->  | E30: =SUMIFS(#REF!,#REF!,E$2,#REF!,$A30)/100 ->  | F30: =SUMIFS(#REF!,#REF!,F$2,#REF!,$A30)/100 ->  | G30: =SUMIFS(#REF!,#REF!,G$2,#REF!,$A30)/100 ->  | O30: =COUNTIF(C$3:C30,C30) -> 28 | Q30: =SUMIFS(#REF!,#REF!,Q$2,#REF!,$A30) ->  | R30: =SUMIFS(#REF!,#REF!,R$2,#REF!,$A30) ->  | S30: =SUMIFS(#REF!,#REF!,S$2,#REF!,$A30) ->  | T30: =SUMIFS(#REF!,#REF!,T$2,#REF!,$A30) ->  | U30: =SUMIFS(#REF!,#REF!,U$2,#REF!,$A30) ->  | V30: =SUMIFS(#REF!,#REF!,V$2,#REF!,$A30) ->  | Y30: =IF(Q30=0,"",RANK(Q30,Q$3:Q$42)+COUNTIF(Q$3:Q30,Q30)-1) ->  | Z30: =IF(R30=0,"",RANK(R30,R$3:R$42)+COUNTIF(R$3:R30,R30)-1) ->  | AA30: =IF(S30=0,"",RANK(S30,S$3:S$42)+COUNTIF(S$3:S30,S30)-1) ->  | AB30: =IF(T30=0,"",RANK(T30,T$3:T$42)+COUNTIF(T$3:T30,T30)-1) ->  | AC30: =IF(U30=0,"",RANK(U30,U$3:U$42)+COUNTIF(U$3:U30,U30)-1) ->  | AD30: =IF(V30=0,"",RANK(V30,V$3:V$42)+COUNTIF(V$3:V30,V30)-1) -> 
A31: =#REF! ->  | B31: =SUMIFS(#REF!,#REF!,B$2,#REF!,$A31)/100 ->  | C31: =SUMIFS(#REF!,#REF!,C$2,#REF!,$A31)/100 ->  | D31: =SUMIFS(#REF!,#REF!,D$2,#REF!,$A31)/100 ->  | E31: =SUMIFS(#REF!,#REF!,E$2,#REF!,$A31)/100 ->  | F31: =SUMIFS(#REF!,#REF!,F$2,#REF!,$A31)/100 ->  | G31: =SUMIFS(#REF!,#REF!,G$2,#REF!,$A31)/100 ->  | O31: =COUNTIF(C$3:C31,C31) -> 29 | Q31: =SUMIFS(#REF!,#REF!,Q$2,#REF!,$A31) ->  | R31: =SUMIFS(#REF!,#REF!,R$2,#REF!,$A31) ->  | S31: =SUMIFS(#REF!,#REF!,S$2,#REF!,$A31) ->  | T31: =SUMIFS(#REF!,#REF!,T$2,#REF!,$A31) ->  | U31: =SUMIFS(#REF!,#REF!,U$2,#REF!,$A31) ->  | V31: =SUMIFS(#REF!,#REF!,V$2,#REF!,$A31) ->  | Y31: =IF(Q31=0,"",RANK(Q31,Q$3:Q$42)+COUNTIF(Q$3:Q31,Q31)-1) ->  | Z31: =IF(R31=0,"",RANK(R31,R$3:R$42)+COUNTIF(R$3:R31,R31)-1) ->  | AA31: =IF(S31=0,"",RANK(S31,S$3:S$42)+COUNTIF(S$3:S31,S31)-1) ->  | AB31: =IF(T31=0,"",RANK(T31,T$3:T$42)+COUNTIF(T$3:T31,T31)-1) ->  | AC31: =IF(U31=0,"",RANK(U31,U$3:U$42)+COUNTIF(U$3:U31,U31)-1) ->  | AD31: =IF(V31=0,"",RANK(V31,V$3:V$42)+COUNTIF(V$3:V31,V31)-1) -> 
A32: =#REF! ->  | B32: =SUMIFS(#REF!,#REF!,B$2,#REF!,$A32)/100 ->  | C32: =SUMIFS(#REF!,#REF!,C$2,#REF!,$A32)/100 ->  | D32: =SUMIFS(#REF!,#REF!,D$2,#REF!,$A32)/100 ->  | E32: =SUMIFS(#REF!,#REF!,E$2,#REF!,$A32)/100 ->  | F32: =SUMIFS(#REF!,#REF!,F$2,#REF!,$A32)/100 ->  | G32: =SUMIFS(#REF!,#REF!,G$2,#REF!,$A32)/100 ->  | O32: =COUNTIF(C$3:C32,C32) -> 30 | Q32: =SUMIFS(#REF!,#REF!,Q$2,#REF!,$A32) ->  | R32: =SUMIFS(#REF!,#REF!,R$2,#REF!,$A32) ->  | S32: =SUMIFS(#REF!,#REF!,S$2,#REF!,$A32) ->  | T32: =SUMIFS(#REF!,#REF!,T$2,#REF!,$A32) ->  | U32: =SUMIFS(#REF!,#REF!,U$2,#REF!,$A32) ->  | V32: =SUMIFS(#REF!,#REF!,V$2,#REF!,$A32) ->  | Y32: =IF(Q32=0,"",RANK(Q32,Q$3:Q$42)+COUNTIF(Q$3:Q32,Q32)-1) ->  | Z32: =IF(R32=0,"",RANK(R32,R$3:R$42)+COUNTIF(R$3:R32,R32)-1) ->  | AA32: =IF(S32=0,"",RANK(S32,S$3:S$42)+COUNTIF(S$3:S32,S32)-1) ->  | AB32: =IF(T32=0,"",RANK(T32,T$3:T$42)+COUNTIF(T$3:T32,T32)-1) ->  | AC32: =IF(U32=0,"",RANK(U32,U$3:U$42)+COUNTIF(U$3:U32,U32)-1) ->  | AD32: =IF(V32=0,"",RANK(V32,V$3:V$42)+COUNTIF(V$3:V32,V32)-1) -> 
A33: =#REF! ->  | B33: =SUMIFS(#REF!,#REF!,B$2,#REF!,$A33)/100 ->  | C33: =SUMIFS(#REF!,#REF!,C$2,#REF!,$A33)/100 ->  | D33: =SUMIFS(#REF!,#REF!,D$2,#REF!,$A33)/100 ->  | E33: =SUMIFS(#REF!,#REF!,E$2,#REF!,$A33)/100 ->  | F33: =SUMIFS(#REF!,#REF!,F$2,#REF!,$A33)/100 ->  | G33: =SUMIFS(#REF!,#REF!,G$2,#REF!,$A33)/100 ->  | O33: =COUNTIF(C$3:C33,C33) -> 31 | Q33: =SUMIFS(#REF!,#REF!,Q$2,#REF!,$A33) ->  | R33: =SUMIFS(#REF!,#REF!,R$2,#REF!,$A33) ->  | S33: =SUMIFS(#REF!,#REF!,S$2,#REF!,$A33) ->  | T33: =SUMIFS(#REF!,#REF!,T$2,#REF!,$A33) ->  | U33: =SUMIFS(#REF!,#REF!,U$2,#REF!,$A33) ->  | V33: =SUMIFS(#REF!,#REF!,V$2,#REF!,$A33) ->  | Y33: =IF(Q33=0,"",RANK(Q33,Q$3:Q$42)+COUNTIF(Q$3:Q33,Q33)-1) ->  | Z33: =IF(R33=0,"",RANK(R33,R$3:R$42)+COUNTIF(R$3:R33,R33)-1) ->  | AA33: =IF(S33=0,"",RANK(S33,S$3:S$42)+COUNTIF(S$3:S33,S33)-1) ->  | AB33: =IF(T33=0,"",RANK(T33,T$3:T$42)+COUNTIF(T$3:T33,T33)-1) ->  | AC33: =IF(U33=0,"",RANK(U33,U$3:U$42)+COUNTIF(U$3:U33,U33)-1) ->  | AD33: =IF(V33=0,"",RANK(V33,V$3:V$42)+COUNTIF(V$3:V33,V33)-1) -> 
A34: =#REF! ->  | B34: =SUMIFS(#REF!,#REF!,B$2,#REF!,$A34)/100 ->  | C34: =SUMIFS(#REF!,#REF!,C$2,#REF!,$A34)/100 ->  | D34: =SUMIFS(#REF!,#REF!,D$2,#REF!,$A34)/100 ->  | E34: =SUMIFS(#REF!,#REF!,E$2,#REF!,$A34)/100 ->  | F34: =SUMIFS(#REF!,#REF!,F$2,#REF!,$A34)/100 ->  | G34: =SUMIFS(#REF!,#REF!,G$2,#REF!,$A34)/100 -> 
A35: =#REF! ->  | B35: =SUMIFS(#REF!,#REF!,B$2,#REF!,$A35)/100 ->  | C35: =SUMIFS(#REF!,#REF!,C$2,#REF!,$A35)/100 ->  | D35: =SUMIFS(#REF!,#REF!,D$2,#REF!,$A35)/100 ->  | E35: =SUMIFS(#REF!,#REF!,E$2,#REF!,$A35)/100 ->  | F35: =SUMIFS(#REF!,#REF!,F$2,#REF!,$A35)/100 ->  | G35: =SUMIFS(#REF!,#REF!,G$2,#REF!,$A35)/100 ->  | O35: =COUNTIF(C$3:C35,C35) -> 33 | Q35: =SUMIFS(#REF!,#REF!,Q$2,#REF!,$A35) ->  | R35: =SUMIFS(#REF!,#REF!,R$2,#REF!,$A35) ->  | S35: =SUMIFS(#REF!,#REF!,S$2,#REF!,$A35) ->  | T35: =SUMIFS(#REF!,#REF!,T$2,#REF!,$A35) ->  | U35: =SUMIFS(#REF!,#REF!,U$2,#REF!,$A35) ->  | V35: =SUMIFS(#REF!,#REF!,V$2,#REF!,$A35) ->  | Y35: =IF(Q35=0,"",RANK(Q35,Q$3:Q$42)+COUNTIF(Q$3:Q35,Q35)-1) ->  | Z35: =IF(R35=0,"",RANK(R35,R$3:R$42)+COUNTIF(R$3:R35,R35)-1) ->  | AA35: =IF(S35=0,"",RANK(S35,S$3:S$42)+COUNTIF(S$3:S35,S35)-1) ->  | AB35: =IF(T35=0,"",RANK(T35,T$3:T$42)+COUNTIF(T$3:T35,T35)-1) ->  | AC35: =IF(U35=0,"",RANK(U35,U$3:U$42)+COUNTIF(U$3:U35,U35)-1) ->  | AD35: =IF(V35=0,"",RANK(V35,V$3:V$42)+COUNTIF(V$3:V35,V35)-1) -> 
A36: =#REF! ->  | B36: =SUMIFS(#REF!,#REF!,B$2,#REF!,$A36)/100 ->  | C36: =SUMIFS(#REF!,#REF!,C$2,#REF!,$A36)/100 ->  | D36: =SUMIFS(#REF!,#REF!,D$2,#REF!,$A36)/100 ->  | E36: =SUMIFS(#REF!,#REF!,E$2,#REF!,$A36)/100 ->  | F36: =SUMIFS(#REF!,#REF!,F$2,#REF!,$A36)/100 ->  | G36: =SUMIFS(#REF!,#REF!,G$2,#REF!,$A36)/100 ->  | O36: =COUNTIF(C$3:C36,C36) -> 34 | Q36: =SUMIFS(#REF!,#REF!,Q$2,#REF!,$A36) ->  | R36: =SUMIFS(#REF!,#REF!,R$2,#REF!,$A36) ->  | S36: =SUMIFS(#REF!,#REF!,S$2,#REF!,$A36) ->  | T36: =SUMIFS(#REF!,#REF!,T$2,#REF!,$A36) ->  | U36: =SUMIFS(#REF!,#REF!,U$2,#REF!,$A36) ->  | V36: =SUMIFS(#REF!,#REF!,V$2,#REF!,$A36) ->  | Y36: =IF(Q36=0,"",RANK(Q36,Q$3:Q$42)+COUNTIF(Q$3:Q36,Q36)-1) ->  | Z36: =IF(R36=0,"",RANK(R36,R$3:R$42)+COUNTIF(R$3:R36,R36)-1) ->  | AA36: =IF(S36=0,"",RANK(S36,S$3:S$42)+COUNTIF(S$3:S36,S36)-1) ->  | AB36: =IF(T36=0,"",RANK(T36,T$3:T$42)+COUNTIF(T$3:T36,T36)-1) ->  | AC36: =IF(U36=0,"",RANK(U36,U$3:U$42)+COUNTIF(U$3:U36,U36)-1) ->  | AD36: =IF(V36=0,"",RANK(V36,V$3:V$42)+COUNTIF(V$3:V36,V36)-1) -> 
A37: =#REF! ->  | B37: =SUMIFS(#REF!,#REF!,B$2,#REF!,$A37)/100 ->  | C37: =SUMIFS(#REF!,#REF!,C$2,#REF!,$A37)/100 ->  | D37: =SUMIFS(#REF!,#REF!,D$2,#REF!,$A37)/100 ->  | E37: =SUMIFS(#REF!,#REF!,E$2,#REF!,$A37)/100 ->  | F37: =SUMIFS(#REF!,#REF!,F$2,#REF!,$A37)/100 ->  | G37: =SUMIFS(#REF!,#REF!,G$2,#REF!,$A37)/100 ->  | O37: =COUNTIF(C$3:C37,C37) -> 35 | Q37: =SUMIFS(#REF!,#REF!,Q$2,#REF!,$A37) ->  | R37: =SUMIFS(#REF!,#REF!,R$2,#REF!,$A37) ->  | S37: =SUMIFS(#REF!,#REF!,S$2,#REF!,$A37) ->  | T37: =SUMIFS(#REF!,#REF!,T$2,#REF!,$A37) ->  | U37: =SUMIFS(#REF!,#REF!,U$2,#REF!,$A37) ->  | V37: =SUMIFS(#REF!,#REF!,V$2,#REF!,$A37) ->  | Y37: =IF(Q37=0,"",RANK(Q37,Q$3:Q$42)+COUNTIF(Q$3:Q37,Q37)-1) ->  | Z37: =IF(R37=0,"",RANK(R37,R$3:R$42)+COUNTIF(R$3:R37,R37)-1) ->  | AA37: =IF(S37=0,"",RANK(S37,S$3:S$42)+COUNTIF(S$3:S37,S37)-1) ->  | AB37: =IF(T37=0,"",RANK(T37,T$3:T$42)+COUNTIF(T$3:T37,T37)-1) ->  | AC37: =IF(U37=0,"",RANK(U37,U$3:U$42)+COUNTIF(U$3:U37,U37)-1) ->  | AD37: =IF(V37=0,"",RANK(V37,V$3:V$42)+COUNTIF(V$3:V37,V37)-1) -> 
A38: =#REF! ->  | B38: =SUMIFS(#REF!,#REF!,B$2,#REF!,$A38)/100 ->  | C38: =SUMIFS(#REF!,#REF!,C$2,#REF!,$A38)/100 ->  | D38: =SUMIFS(#REF!,#REF!,D$2,#REF!,$A38)/100 ->  | E38: =SUMIFS(#REF!,#REF!,E$2,#REF!,$A38)/100 ->  | F38: =SUMIFS(#REF!,#REF!,F$2,#REF!,$A38)/100 ->  | G38: =SUMIFS(#REF!,#REF!,G$2,#REF!,$A38)/100 ->  | O38: =COUNTIF(C$3:C38,C38) -> 36 | Q38: =SUMIFS(#REF!,#REF!,Q$2,#REF!,$A38) ->  | R38: =SUMIFS(#REF!,#REF!,R$2,#REF!,$A38) ->  | S38: =SUMIFS(#REF!,#REF!,S$2,#REF!,$A38) ->  | T38: =SUMIFS(#REF!,#REF!,T$2,#REF!,$A38) ->  | U38: =SUMIFS(#REF!,#REF!,U$2,#REF!,$A38) ->  | V38: =SUMIFS(#REF!,#REF!,V$2,#REF!,$A38) ->  | Y38: =IF(Q38=0,"",RANK(Q38,Q$3:Q$42)+COUNTIF(Q$3:Q38,Q38)-1) ->  | Z38: =IF(R38=0,"",RANK(R38,R$3:R$42)+COUNTIF(R$3:R38,R38)-1) ->  | AA38: =IF(S38=0,"",RANK(S38,S$3:S$42)+COUNTIF(S$3:S38,S38)-1) ->  | AB38: =IF(T38=0,"",RANK(T38,T$3:T$42)+COUNTIF(T$3:T38,T38)-1) ->  | AC38: =IF(U38=0,"",RANK(U38,U$3:U$42)+COUNTIF(U$3:U38,U38)-1) ->  | AD38: =IF(V38=0,"",RANK(V38,V$3:V$42)+COUNTIF(V$3:V38,V38)-1) -> 
A39: =#REF! ->  | B39: =SUMIFS(#REF!,#REF!,B$2,#REF!,$A39)/100 ->  | C39: =SUMIFS(#REF!,#REF!,C$2,#REF!,$A39)/100 ->  | D39: =SUMIFS(#REF!,#REF!,D$2,#REF!,$A39)/100 ->  | E39: =SUMIFS(#REF!,#REF!,E$2,#REF!,$A39)/100 ->  | F39: =SUMIFS(#REF!,#REF!,F$2,#REF!,$A39)/100 ->  | G39: =SUMIFS(#REF!,#REF!,G$2,#REF!,$A39)/100 ->  | O39: =COUNTIF(C$3:C39,C39) -> 37 | Q39: =SUMIFS(#REF!,#REF!,Q$2,#REF!,$A39) ->  | R39: =SUMIFS(#REF!,#REF!,R$2,#REF!,$A39) ->  | S39: =SUMIFS(#REF!,#REF!,S$2,#REF!,$A39) ->  | T39: =SUMIFS(#REF!,#REF!,T$2,#REF!,$A39) ->  | U39: =SUMIFS(#REF!,#REF!,U$2,#REF!,$A39) ->  | V39: =SUMIFS(#REF!,#REF!,V$2,#REF!,$A39) ->  | Y39: =IF(Q39=0,"",RANK(Q39,Q$3:Q$42)+COUNTIF(Q$3:Q39,Q39)-1) ->  | Z39: =IF(R39=0,"",RANK(R39,R$3:R$42)+COUNTIF(R$3:R39,R39)-1) ->  | AA39: =IF(S39=0,"",RANK(S39,S$3:S$42)+COUNTIF(S$3:S39,S39)-1) ->  | AB39: =IF(T39=0,"",RANK(T39,T$3:T$42)+COUNTIF(T$3:T39,T39)-1) ->  | AC39: =IF(U39=0,"",RANK(U39,U$3:U$42)+COUNTIF(U$3:U39,U39)-1) ->  | AD39: =IF(V39=0,"",RANK(V39,V$3:V$42)+COUNTIF(V$3:V39,V39)-1) -> 
A40: =#REF! ->  | B40: =SUMIFS(#REF!,#REF!,B$2,#REF!,$A40)/100 ->  | C40: =SUMIFS(#REF!,#REF!,C$2,#REF!,$A40)/100 ->  | D40: =SUMIFS(#REF!,#REF!,D$2,#REF!,$A40)/100 ->  | E40: =SUMIFS(#REF!,#REF!,E$2,#REF!,$A40)/100 ->  | F40: =SUMIFS(#REF!,#REF!,F$2,#REF!,$A40)/100 ->  | G40: =SUMIFS(#REF!,#REF!,G$2,#REF!,$A40)/100 ->  | O40: =COUNTIF(C$3:C40,C40) -> 38 | Q40: =SUMIFS(#REF!,#REF!,Q$2,#REF!,$A40) ->  | R40: =SUMIFS(#REF!,#REF!,R$2,#REF!,$A40) ->  | S40: =SUMIFS(#REF!,#REF!,S$2,#REF!,$A40) ->  | T40: =SUMIFS(#REF!,#REF!,T$2,#REF!,$A40) ->  | U40: =SUMIFS(#REF!,#REF!,U$2,#REF!,$A40) ->  | V40: =SUMIFS(#REF!,#REF!,V$2,#REF!,$A40) ->  | Y40: =IF(Q40=0,"",RANK(Q40,Q$3:Q$42)+COUNTIF(Q$3:Q40,Q40)-1) ->  | Z40: =IF(R40=0,"",RANK(R40,R$3:R$42)+COUNTIF(R$3:R40,R40)-1) ->  | AA40: =IF(S40=0,"",RANK(S40,S$3:S$42)+COUNTIF(S$3:S40,S40)-1) ->  | AB40: =IF(T40=0,"",RANK(T40,T$3:T$42)+COUNTIF(T$3:T40,T40)-1) ->  | AC40: =IF(U40=0,"",RANK(U40,U$3:U$42)+COUNTIF(U$3:U40,U40)-1) ->  | AD40: =IF(V40=0,"",RANK(V40,V$3:V$42)+COUNTIF(V$3:V40,V40)-1) -> 
A41: =#REF! ->  | B41: =SUMIFS(#REF!,#REF!,B$2,#REF!,$A41)/100 ->  | C41: =SUMIFS(#REF!,#REF!,C$2,#REF!,$A41)/100 ->  | D41: =SUMIFS(#REF!,#REF!,D$2,#REF!,$A41)/100 ->  | E41: =SUMIFS(#REF!,#REF!,E$2,#REF!,$A41)/100 ->  | F41: =SUMIFS(#REF!,#REF!,F$2,#REF!,$A41)/100 ->  | G41: =SUMIFS(#REF!,#REF!,G$2,#REF!,$A41)/100 ->  | O41: =COUNTIF(C$3:C41,C41) -> 39 | Q41: =SUMIFS(#REF!,#REF!,Q$2,#REF!,$A41) ->  | R41: =SUMIFS(#REF!,#REF!,R$2,#REF!,$A41) ->  | S41: =SUMIFS(#REF!,#REF!,S$2,#REF!,$A41) ->  | T41: =SUMIFS(#REF!,#REF!,T$2,#REF!,$A41) ->  | U41: =SUMIFS(#REF!,#REF!,U$2,#REF!,$A41) ->  | V41: =SUMIFS(#REF!,#REF!,V$2,#REF!,$A41) ->  | Y41: =IF(Q41=0,"",RANK(Q41,Q$3:Q$42)+COUNTIF(Q$3:Q41,Q41)-1) ->  | Z41: =IF(R41=0,"",RANK(R41,R$3:R$42)+COUNTIF(R$3:R41,R41)-1) ->  | AA41: =IF(S41=0,"",RANK(S41,S$3:S$42)+COUNTIF(S$3:S41,S41)-1) ->  | AB41: =IF(T41=0,"",RANK(T41,T$3:T$42)+COUNTIF(T$3:T41,T41)-1) ->  | AC41: =IF(U41=0,"",RANK(U41,U$3:U$42)+COUNTIF(U$3:U41,U41)-1) ->  | AD41: =IF(V41=0,"",RANK(V41,V$3:V$42)+COUNTIF(V$3:V41,V41)-1) -> 
O42: =COUNTIF(C$3:C42,C42) -> 0 | Q42: =SUMIFS(#REF!,#REF!,Q$2,#REF!,$A42) ->  | R42: =SUMIFS(#REF!,#REF!,R$2,#REF!,$A42) ->  | S42: =SUMIFS(#REF!,#REF!,S$2,#REF!,$A42) ->  | T42: =SUMIFS(#REF!,#REF!,T$2,#REF!,$A42) ->  | U42: =SUMIFS(#REF!,#REF!,U$2,#REF!,$A42) ->  | V42: =SUMIFS(#REF!,#REF!,V$2,#REF!,$A42) ->  | Y42: =IF(Q42=0,"",RANK(Q42,Q$3:Q$42)+COUNTIF(Q$3:Q42,Q42)-1) ->  | Z42: =IF(R42=0,"",RANK(R42,R$3:R$42)+COUNTIF(R$3:R42,R42)-1) ->  | AA42: =IF(S42=0,"",RANK(S42,S$3:S$42)+COUNTIF(S$3:S42,S42)-1) ->  | AB42: =IF(T42=0,"",RANK(T42,T$3:T$42)+COUNTIF(T$3:T42,T42)-1) ->  | AC42: =IF(U42=0,"",RANK(U42,U$3:U$42)+COUNTIF(U$3:U42,U42)-1) ->  | AD42: =IF(V42=0,"",RANK(V42,V$3:V$42)+COUNTIF(V$3:V42,V42)-1) ->  | AG42: 0
A43: Equity Total | B43: =SUM(B3:B41) -> 
A45: * Derivative not included
B48: =B43-#REF! ->  | C48: =C43-#REF! ->  | D48: =D43-#REF! ->  | E48: =E43-#REF! ->  | F48: =F43-#REF! ->  | G48: =G43-#REF! -> 
A49: From Pivote | B49: =B43-VLOOKUP("Grand Total",#REF!,MATCH(B2,#REF!,0),0)/100 ->  | C49: =C43-VLOOKUP("Grand Total",#REF!,MATCH(C2,#REF!,0),0)/100 ->  | D49: =D43-VLOOKUP("Grand Total",#REF!,MATCH(D2,#REF!,0),0)/100 ->  | E49: =E43-VLOOKUP("Grand Total",#REF!,MATCH(E2,#REF!,0),0)/100 ->  | F49: =F43-VLOOKUP("Grand Total",#REF!,MATCH(F2,#REF!,0),0)/100 ->  | G49: =G43-VLOOKUP("Grand Total",#REF!,MATCH(G2,#REF!,0),0)/100 -> 
A51: Derivative | B51: =B88 -> 
A53: ="As on "&TEXT($O$1,"mmmm dd, yyyy") ->  | B53: =B2 -> Shriram Aggressive Hybrid Fund | C53: Shriram Flexi Cap Fund | D53: Shriram ELSS Tax Saver Fund | E53: Shriram Balanced Advantage Fund | F53: Shriram Multi Asset Allocation Fund | G53: =G2 -> Shriram Multi Sector Rotation Fund | H53: Shriram Overnight Fund | I53: =I2 -> Shriram Nifty 1D Rate Liquid ETF | J53: Shriram Liquid Fund | K53: =K2 -> Shriram Money Market Fund
A54: Net Equity | B54: =B43+B51 ->  | H54: =H43+H51 -> 0.00% | I54: 0.00% | J54: 0.00% | K54: =K43+K51 -> 0.00%
A58: ="Aum as on "&TEXT($O$1,"mmmm dd, yyyy") ->  | B58: Aum (in Rs) | C58: Aum (in Cr) | G58: Aum as on March 31, 2024 | H58: Aum (in Rs) | I58: Aum (in Cr)
A59: Shriram Aggressive Hybrid Fund | B59: =VLOOKUP(A59,#REF!,35,0) ->  | C59: =B59/10000000 ->  | E59: =ROUND(C59,2)&" Crores" ->  | G59: Shriram Aggressive Hybrid Fund | H59: 460034159 | I59: 46.00
A60: Shriram Flexi Cap Fund | B60: =VLOOKUP(A60,#REF!,35,0) ->  | E60: =ROUND(C60,2)&" Crores" ->  | G60: Shriram Flexi Cap Fund | H60: 835061843 | I60: 83.51
A61: Shriram ELSS Tax Saver Fund | B61: =VLOOKUP(A61,#REF!,35,0) ->  | G61: Shriram ELSS Tax Saver Fund | H61: 473295531 | I61: 47.33
A62: Shriram Balanced Advantage Fund | B62: =VLOOKUP(A62,#REF!,35,0) ->  | G62: Shriram Balanced Advantage Fund | H62: 462635827 | I62: 46.26
A63: Shriram Multi Asset Allocation Fund | B63: =VLOOKUP(A63,#REF!,35,0) ->  | G63: Shriram Multi Asset Allocation Fund | H63: 1265820857 | I63: 126.58
A64: Shriram Multi Sector Rotation Fund | B64: =VLOOKUP(A64,#REF!,35,0) ->  | C64: =B64/10000000 ->  | E64: =ROUND(C64,2)&" Crores" ->  | G64: Shriram Overnight Fund | H64: 1860759796 | I64: 186.08
A65: Shriram Overnight Fund | B65: =VLOOKUP(A65,#REF!,35,0) ->  | G65: Total | H65: 5357608013 | I65: 535.76
A66: Shriram Nifty 1D Rate Liquid ETF | B66: =VLOOKUP(A66,#REF!,35,0) ->  | C66: =B66/10000000 -> 
A67: Shriram Liquid Fund | B67: =VLOOKUP(A67,#REF!,35,0) ->  | C67: =B67/10000000 ->  | I67: =B70/H65-1 -> 
A68: Shriram Money Market Fund | B68: =VLOOKUP(A68,#REF!,35,0) ->  | C68: =B68/10000000 ->  | E68: =ROUND(C68,2)&" Crores" -> 
A70: Total | B70: =SUM(B59:B69) ->  | C70: =SUM(C59:C69) -> 
A76: Derivative Long | B76: =SUM(B97:B100) ->  | H76: =SUM(H97:H100) ->  | K76: =SUM(K97:K100) -> 
A77: Derivative Short | B77: =SUM(B105:B108) ->  | H77: =SUM(H105:H108) ->  | K77: =SUM(K105:K108) -> 
A78: Derivative | B78: =SUM(B76:B77) ->  | C78: =SUM(C76:C77) ->  | G78: =SUM(G76:G77) ->  | H78: =SUM(H76:H77) ->  | K78: =SUM(K76:K77) -> 
B79: =B78-B88 ->  | C79: =C78-C88 ->  | G79: =G78-G88 ->  | H79: =H78-H88 ->  | K79: =K78-K88 -> 
A83: Index Futures | B83: =SUMIFS(#REF!,#REF!,B$2,#REF!,$A83)/100 ->  | C83: =SUMIFS(#REF!,#REF!,C$2,#REF!,$A83)/100 ->  | D83: =SUMIFS(#REF!,#REF!,D$2,#REF!,$A83)/100 ->  | E83: =SUMIFS(#REF!,#REF!,E$2,#REF!,$A83)/100 ->  | F83: =SUMIFS(#REF!,#REF!,F$2,#REF!,$A83)/100 ->  | G83: =SUMIFS(#REF!,#REF!,G$2,#REF!,$A83)/100 ->  | H83: =SUMIFS(#REF!,#REF!,H$2,#REF!,$A83)/100 ->  | I83: =SUMIFS(#REF!,#REF!,I$2,#REF!,$A83)/100 ->  | J83: =SUMIFS(#REF!,#REF!,J$2,#REF!,$A83)/100 ->  | K83: =SUMIFS(#REF!,#REF!,K$2,#REF!,$A83)/100 -> 
A84: Stock Futures | B84: =SUMIFS(#REF!,#REF!,B$2,#REF!,$A84)/100 ->  | C84: =SUMIFS(#REF!,#REF!,C$2,#REF!,$A84)/100 ->  | D84: =SUMIFS(#REF!,#REF!,D$2,#REF!,$A84)/100 ->  | E84: =SUMIFS(#REF!,#REF!,E$2,#REF!,$A84)/100 ->  | F84: =SUMIFS(#REF!,#REF!,F$2,#REF!,$A84)/100 ->  | G84: =SUMIFS(#REF!,#REF!,G$2,#REF!,$A84)/100 ->  | H84: =SUMIFS(#REF!,#REF!,H$2,#REF!,$A84)/100 ->  | I84: =SUMIFS(#REF!,#REF!,I$2,#REF!,$A84)/100 ->  | J84: =SUMIFS(#REF!,#REF!,J$2,#REF!,$A84)/100 ->  | K84: =SUMIFS(#REF!,#REF!,K$2,#REF!,$A84)/100 -> 
A85: Options on Index | B85: =SUMIFS(#REF!,#REF!,B$2,#REF!,$A85)/100 ->  | C85: =SUMIFS(#REF!,#REF!,C$2,#REF!,$A85)/100 ->  | D85: =SUMIFS(#REF!,#REF!,D$2,#REF!,$A85)/100 ->  | E85: =SUMIFS(#REF!,#REF!,E$2,#REF!,$A85)/100 ->  | F85: =SUMIFS(#REF!,#REF!,F$2,#REF!,$A85)/100 ->  | G85: =SUMIFS(#REF!,#REF!,G$2,#REF!,$A85)/100 ->  | H85: =SUMIFS(#REF!,#REF!,H$2,#REF!,$A85)/100 ->  | I85: =SUMIFS(#REF!,#REF!,I$2,#REF!,$A85)/100 ->  | J85: =SUMIFS(#REF!,#REF!,J$2,#REF!,$A85)/100 ->  | K85: =SUMIFS(#REF!,#REF!,K$2,#REF!,$A85)/100 -> 
A86: Options on Shares | B86: =SUMIFS(#REF!,#REF!,B$2,#REF!,$A86)/100 ->  | C86: =SUMIFS(#REF!,#REF!,C$2,#REF!,$A86)/100 ->  | D86: =SUMIFS(#REF!,#REF!,D$2,#REF!,$A86)/100 ->  | E86: =SUMIFS(#REF!,#REF!,E$2,#REF!,$A86)/100 ->  | F86: =SUMIFS(#REF!,#REF!,F$2,#REF!,$A86)/100 ->  | G86: =SUMIFS(#REF!,#REF!,G$2,#REF!,$A86)/100 ->  | H86: =SUMIFS(#REF!,#REF!,H$2,#REF!,$A86)/100 ->  | I86: =SUMIFS(#REF!,#REF!,I$2,#REF!,$A86)/100 ->  | J86: =SUMIFS(#REF!,#REF!,J$2,#REF!,$A86)/100 ->  | K86: =SUMIFS(#REF!,#REF!,K$2,#REF!,$A86)/100 -> 
A88: Derivative | B88: =SUM(B83:B87) ->  | C88: =SUM(C83:C87) ->  | G88: =SUM(G83:G87) ->  | H88: =SUM(H83:H87) ->  | K88: =SUM(K83:K87) -> 
A96: Long Derivative
A97: Index Futures | B97: =SUMIFS(#REF!,#REF!,B$2,#REF!,$A97,#REF!,">0")/100 ->  | C97: =SUMIFS(#REF!,#REF!,C$2,#REF!,$A97,#REF!,">0")/100 ->  | D97: =SUMIFS(#REF!,#REF!,D$2,#REF!,$A97,#REF!,">0")/100 ->  | E97: =SUMIFS(#REF!,#REF!,E$2,#REF!,$A97,#REF!,">0")/100 ->  | F97: =SUMIFS(#REF!,#REF!,F$2,#REF!,$A97,#REF!,">0")/100 ->  | G97: =SUMIFS(#REF!,#REF!,G$2,#REF!,$A97,#REF!,">0")/100 ->  | H97: =SUMIFS(#REF!,#REF!,H$2,#REF!,$A97,#REF!,">0")/100 ->  | I97: =SUMIFS(#REF!,#REF!,I$2,#REF!,$A97,#REF!,">0")/100 ->  | J97: =SUMIFS(#REF!,#REF!,J$2,#REF!,$A97,#REF!,">0")/100 ->  | K97: =SUMIFS(#REF!,#REF!,K$2,#REF!,$A97,#REF!,">0")/100 -> 
A98: Stock Futures | B98: =SUMIFS(#REF!,#REF!,B$2,#REF!,$A98,#REF!,">0")/100 ->  | C98: =SUMIFS(#REF!,#REF!,C$2,#REF!,$A98,#REF!,">0")/100 ->  | D98: =SUMIFS(#REF!,#REF!,D$2,#REF!,$A98,#REF!,">0")/100 ->  | E98: =SUMIFS(#REF!,#REF!,E$2,#REF!,$A98,#REF!,">0")/100 ->  | F98: =SUMIFS(#REF!,#REF!,F$2,#REF!,$A98,#REF!,">0")/100 ->  | G98: =SUMIFS(#REF!,#REF!,G$2,#REF!,$A98,#REF!,">0")/100 ->  | H98: =SUMIFS(#REF!,#REF!,H$2,#REF!,$A98,#REF!,">0")/100 ->  | I98: =SUMIFS(#REF!,#REF!,I$2,#REF!,$A98,#REF!,">0")/100 ->  | J98: =SUMIFS(#REF!,#REF!,J$2,#REF!,$A98,#REF!,">0")/100 ->  | K98: =SUMIFS(#REF!,#REF!,K$2,#REF!,$A98,#REF!,">0")/100 -> 
A99: Options on Index | B99: =SUMIFS(#REF!,#REF!,B$2,#REF!,$A99,#REF!,">0")/100 ->  | C99: =SUMIFS(#REF!,#REF!,C$2,#REF!,$A99,#REF!,">0")/100 ->  | D99: =SUMIFS(#REF!,#REF!,D$2,#REF!,$A99,#REF!,">0")/100 ->  | E99: =SUMIFS(#REF!,#REF!,E$2,#REF!,$A99,#REF!,">0")/100 ->  | F99: =SUMIFS(#REF!,#REF!,F$2,#REF!,$A99,#REF!,">0")/100 ->  | G99: =SUMIFS(#REF!,#REF!,G$2,#REF!,$A99,#REF!,">0")/100 ->  | H99: =SUMIFS(#REF!,#REF!,H$2,#REF!,$A99,#REF!,">0")/100 ->  | I99: =SUMIFS(#REF!,#REF!,I$2,#REF!,$A99,#REF!,">0")/100 ->  | J99: =SUMIFS(#REF!,#REF!,J$2,#REF!,$A99,#REF!,">0")/100 ->  | K99: =SUMIFS(#REF!,#REF!,K$2,#REF!,$A99,#REF!,">0")/100 -> 
A100: Options on Shares | B100: =SUMIFS(#REF!,#REF!,B$2,#REF!,$A100,#REF!,">0")/100 ->  | C100: =SUMIFS(#REF!,#REF!,C$2,#REF!,$A100,#REF!,">0")/100 ->  | D100: =SUMIFS(#REF!,#REF!,D$2,#REF!,$A100,#REF!,">0")/100 ->  | E100: =SUMIFS(#REF!,#REF!,E$2,#REF!,$A100,#REF!,">0")/100 ->  | F100: =SUMIFS(#REF!,#REF!,F$2,#REF!,$A100,#REF!,">0")/100 ->  | G100: =SUMIFS(#REF!,#REF!,G$2,#REF!,$A100,#REF!,">0")/100 ->  | H100: =SUMIFS(#REF!,#REF!,H$2,#REF!,$A100,#REF!,">0")/100 ->  | I100: =SUMIFS(#REF!,#REF!,I$2,#REF!,$A100,#REF!,">0")/100 ->  | J100: =SUMIFS(#REF!,#REF!,J$2,#REF!,$A100,#REF!,">0")/100 ->  | K100: =SUMIFS(#REF!,#REF!,K$2,#REF!,$A100,#REF!,">0")/100 -> 
A104: Short Derivative
A105: Index Futures | B105: =SUMIFS(#REF!,#REF!,B$2,#REF!,$A105,#REF!,"<0")/100 ->  | C105: =SUMIFS(#REF!,#REF!,C$2,#REF!,$A105,#REF!,"<0")/100 ->  | D105: =SUMIFS(#REF!,#REF!,D$2,#REF!,$A105,#REF!,"<0")/100 ->  | E105: =SUMIFS(#REF!,#REF!,E$2,#REF!,$A105,#REF!,"<0")/100 ->  | F105: =SUMIFS(#REF!,#REF!,F$2,#REF!,$A105,#REF!,"<0")/100 ->  | G105: =SUMIFS(#REF!,#REF!,G$2,#REF!,$A105,#REF!,"<0")/100 ->  | H105: =SUMIFS(#REF!,#REF!,H$2,#REF!,$A105,#REF!,"<0")/100 ->  | I105: =SUMIFS(#REF!,#REF!,I$2,#REF!,$A105,#REF!,"<0")/100 ->  | J105: =SUMIFS(#REF!,#REF!,J$2,#REF!,$A105,#REF!,"<0")/100 ->  | K105: =SUMIFS(#REF!,#REF!,K$2,#REF!,$A105,#REF!,"<0")/100 -> 
A106: Stock Futures | B106: =SUMIFS(#REF!,#REF!,B$2,#REF!,$A106,#REF!,"<0")/100 ->  | C106: =SUMIFS(#REF!,#REF!,C$2,#REF!,$A106,#REF!,"<0")/100 ->  | D106: =SUMIFS(#REF!,#REF!,D$2,#REF!,$A106,#REF!,"<0")/100 ->  | E106: =SUMIFS(#REF!,#REF!,E$2,#REF!,$A106,#REF!,"<0")/100 ->  | F106: =SUMIFS(#REF!,#REF!,F$2,#REF!,$A106,#REF!,"<0")/100 ->  | G106: =SUMIFS(#REF!,#REF!,G$2,#REF!,$A106,#REF!,"<0")/100 ->  | H106: =SUMIFS(#REF!,#REF!,H$2,#REF!,$A106,#REF!,"<0")/100 ->  | I106: =SUMIFS(#REF!,#REF!,I$2,#REF!,$A106,#REF!,"<0")/100 ->  | J106: =SUMIFS(#REF!,#REF!,J$2,#REF!,$A106,#REF!,"<0")/100 ->  | K106: =SUMIFS(#REF!,#REF!,K$2,#REF!,$A106,#REF!,"<0")/100 -> 
A107: Options on Index | B107: =SUMIFS(#REF!,#REF!,B$2,#REF!,$A107,#REF!,"<0")/100 ->  | C107: =SUMIFS(#REF!,#REF!,C$2,#REF!,$A107,#REF!,"<0")/100 ->  | D107: =SUMIFS(#REF!,#REF!,D$2,#REF!,$A107,#REF!,"<0")/100 ->  | E107: =SUMIFS(#REF!,#REF!,E$2,#REF!,$A107,#REF!,"<0")/100 ->  | F107: =SUMIFS(#REF!,#REF!,F$2,#REF!,$A107,#REF!,"<0")/100 ->  | G107: =SUMIFS(#REF!,#REF!,G$2,#REF!,$A107,#REF!,"<0")/100 ->  | H107: =SUMIFS(#REF!,#REF!,H$2,#REF!,$A107,#REF!,"<0")/100 ->  | I107: =SUMIFS(#REF!,#REF!,I$2,#REF!,$A107,#REF!,"<0")/100 ->  | J107: =SUMIFS(#REF!,#REF!,J$2,#REF!,$A107,#REF!,"<0")/100 ->  | K107: =SUMIFS(#REF!,#REF!,K$2,#REF!,$A107,#REF!,"<0")/100 -> 
A108: Options on Shares | B108: =SUMIFS(#REF!,#REF!,B$2,#REF!,$A108,#REF!,"<0")/100 ->  | C108: =SUMIFS(#REF!,#REF!,C$2,#REF!,$A108,#REF!,"<0")/100 ->  | D108: =SUMIFS(#REF!,#REF!,D$2,#REF!,$A108,#REF!,"<0")/100 ->  | E108: =SUMIFS(#REF!,#REF!,E$2,#REF!,$A108,#REF!,"<0")/100 ->  | F108: =SUMIFS(#REF!,#REF!,F$2,#REF!,$A108,#REF!,"<0")/100 ->  | G108: =SUMIFS(#REF!,#REF!,G$2,#REF!,$A108,#REF!,"<0")/100 ->  | H108: =SUMIFS(#REF!,#REF!,H$2,#REF!,$A108,#REF!,"<0")/100 ->  | I108: =SUMIFS(#REF!,#REF!,I$2,#REF!,$A108,#REF!,"<0")/100 ->  | J108: =SUMIFS(#REF!,#REF!,J$2,#REF!,$A108,#REF!,"<0")/100 ->  | K108: =SUMIFS(#REF!,#REF!,K$2,#REF!,$A108,#REF!,"<0")/100 -> 

Sheet Overlap_Equity
B1: As on 28-Feb-2026 | C1: Category wise portfolio overlap levels- equity scheme vs other equity schemes
E2: =E3&" Vs "&F3 -> Shriram Flexi Cap Fund Vs Shriram ELSS Tax Saver Fund | J2: =J3&" Vs "&K3 -> Shriram Flexi Cap Fund Vs Shriram Multi Sector Rotation Fund | O2: =O3&" Vs "&P3 -> Shriram ELSS Tax Saver Fund Vs Shriram Multi Sector Rotation Fund
D3: INV_TYPE | E3: Shriram Flexi Cap Fund | F3: Shriram ELSS Tax Saver Fund | G3: Overlap | J3: Shriram Flexi Cap Fund | K3: Shriram Multi Sector Rotation Fund | L3: Overlap | O3: Shriram ELSS Tax Saver Fund | P3: Shriram Multi Sector Rotation Fund | Q3: Overlap
B4: ISIN | C4: Security Desc | D4: INV_TYPE | E4: Weight % | F4: Weight % | G4: Weight % | J4: Weight % | K4: Weight % | L4: Weight % | O4: Weight % | P4: Weight % | Q4: Weight %
B5: INE002A01018 | C5: RELIANCE INDUSTRIES LTD | D5: Investment - Equities | E5: 3.19 | F5: 3.16 | G5: 3.16 | J5: 3.19 | K5: 0.00 | L5: 0.00 | O5: 3.16 | P5: 0.00 | Q5: 0.00
B6: INE009A01021 | C6: INFOSYS LTD | D6: Investment - Equities | E6: 2.81 | F6: 2.79 | G6: 2.79 | J6: 2.81 | K6: 3.44 | L6: 2.81 | O6: 2.79 | P6: 3.44 | Q6: 2.79
B7: INE00H001014 | C7: SWIGGY LIMITED | D7: Investment - Equities | E7: 0.71 | F7: 0.70 | G7: 0.70 | J7: 0.71 | K7: 1.67 | L7: 0.71 | O7: 0.70 | P7: 1.67 | Q7: 0.70 | Z7: INV_TYPE
B8: INE018A01030 | C8: LARSEN & TOUBRO LTD | D8: Investment - Equities | E8: 2.64 | F8: 2.62 | G8: 2.62 | J8: 2.64 | K8: 0.00 | L8: 0.00 | O8: 2.62 | P8: 0.00 | Q8: 0.00 | Z8: Investment - Certificate of Deposit
B9: INE020B01018 | C9: REC LTD | D9: Investment - Equities | E9: 1.96 | F9: 1.93 | G9: 1.93 | J9: 1.96 | K9: 3.77 | L9: 1.96 | O9: 1.93 | P9: 3.77 | Q9: 1.93 | Z9: Investment - Commercial Paper
B10: INE029A01011 | C10: BHARAT PETROLEUM CORPORATION LTD | D10: Investment - Equities | E10: 2.05 | F10: 2.01 | G10: 2.01 | J10: 2.05 | K10: 2.11 | L10: 2.05 | O10: 2.01 | P10: 2.11 | Q10: 2.01 | Z10: Investment - Corporate Bonds / Debentures
B11: INE031B01049 | C11: AJANTA PHARMA LTD | D11: Investment - Equities | E11: 1.53 | F11: 1.52 | G11: 1.52 | J11: 1.53 | K11: 3.18 | L11: 1.53 | O11: 1.52 | P11: 3.18 | Q11: 1.52 | Z11: Investment - Government Bonds
B12: INE03QK01018 | C12: COHANCE LIFESCIENCES LIMITED | D12: Investment - Equities | E12: 0.12 | F12: 0.12 | G12: 0.12 | J12: 0.12 | K12: 0.00 | L12: 0.00 | O12: 0.12 | P12: 0.00 | Q12: 0.00 | Z12: Investment - Treasury Bills
B13: INE040A01034 | C13: HDFC BANK LTD | D13: Investment - Equities | E13: 7.33 | F13: 7.23 | G13: 7.23 | J13: 7.33 | K13: 0.00 | L13: 0.00 | O13: 7.23 | P13: 0.00 | Q13: 0.00 | Z13: Investment - TREPS
B14: INE048G01026 | C14: NAVIN FLUORINE INTERNATIONAL LTD | D14: Investment - Equities | E14: 0.52 | F14: 0.52 | G14: 0.52 | J14: 0.52 | K14: 0.00 | L14: 0.00 | O14: 0.52 | P14: 0.00 | Q14: 0.00 | Z14: Investment - Repo Deposit
B15: INE062A01020 | C15: STATE BANK OF INDIA | D15: Investment - Equities | E15: 4.78 | F15: 4.73 | G15: 4.73 | J15: 4.78 | K15: 8.25 | L15: 4.78 | O15: 4.73 | P15: 8.25 | Q15: 4.73 | Z15: Investment - Equities
B16: INE066A01021 | C16: EICHER MOTORS LTD | D16: Investment - Equities | E16: 1.60 | F16: 1.59 | G16: 1.59 | J16: 1.60 | K16: 0.00 | L16: 0.00 | O16: 1.59 | P16: 0.00 | Q16: 0.00 | Z16: Exchange Traded Fund
B17: INE07Y701011 | C17: HITACHI ENERGY INDIA LIMITED | D17: Investment - Equities | E17: 0.68 | F17: 0.70 | G17: 0.68 | J17: 0.68 | K17: 0.00 | L17: 0.00 | O17: 0.70 | P17: 0.00 | Q17: 0.00 | Z17: Index Futures
B18: INE081A01020 | C18: TATA STEEL LTD. | D18: Investment - Equities | E18: 1.39 | F18: 1.39 | G18: 1.39 | J18: 1.39 | K18: 0.00 | L18: 0.00 | O18: 1.39 | P18: 0.00 | Q18: 0.00 | Z18: Options on Index
B19: INE08LI01020 | C19: KRSNAA DIAGNOSTICS LIMITED | D19: Investment - Equities | E19: 0.53 | F19: 0.52 | G19: 0.52 | J19: 0.53 | K19: 1.73 | L19: 0.53 | O19: 0.52 | P19: 1.73 | Q19: 0.52 | Z19: Options on Shares
B20: INE090A01021 | C20: ICICI BANK LTD | D20: Investment - Equities | E20: 4.98 | F20: 4.93 | G20: 4.93 | J20: 4.98 | K20: 0.00 | L20: 0.00 | O20: 4.93 | P20: 0.00 | Q20: 0.00 | Z20: Stock Futures
B21: INE094A01015 | C21: HINDUSTAN PETROLEUM CORPORATION LTD | D21: Investment - Equities | E21: 1.51 | F21: 1.51 | G21: 1.51 | J21: 1.51 | K21: 1.94 | L21: 1.51 | O21: 1.51 | P21: 1.94 | Q21: 1.51 | Z21: Domestic Mutual Fund Unit
B22: INE0W2G01015 | C22: SAGILITY LIMITED | D22: Investment - Equities | E22: 0.36 | F22: 0.41 | G22: 0.36 | J22: 0.36 | K22: 0.00 | L22: 0.00 | O22: 0.41 | P22: 0.00 | Q22: 0.00 | Z22: Investment CDMDF
B23: INE101A01026 | C23: MAHINDRA & MAHINDRA LTD | D23: Investment - Equities | E23: 2.96 | F23: 2.94 | G23: 2.94 | J23: 2.96 | K23: 4.98 | L23: 2.96 | O23: 2.94 | P23: 4.98 | Q23: 2.94 | Z23: Investment - Preferred Stock/Preference Stock
B24: INE118A01012 | C24: BAJAJ HOLDINGS & INVESTMENT LTD | D24: Investment - Equities | E24: 1.28 | F24: 1.26 | G24: 1.26 | J24: 1.28 | K24: 0.00 | L24: 0.00 | O24: 1.26 | P24: 0.00 | Q24: 0.00
B25: INE118H01025 | C25: BSE LTD | D25: Investment - Equities | E25: 0.41 | F25: 0.30 | G25: 0.30 | J25: 0.41 | K25: 0.00 | L25: 0.00 | O25: 0.30 | P25: 0.00 | Q25: 0.00
B26: INE123W01016 | C26: SBI LIFE INSURANCE CO LTD | D26: Investment - Equities | E26: 1.31 | F26: 1.31 | G26: 1.31 | J26: 1.31 | K26: 0.00 | L26: 0.00 | O26: 1.31 | P26: 0.00 | Q26: 0.00
B27: INE139A01034 | C27: NATIONAL ALUMINIUM CO. LTD | D27: Investment - Equities | E27: 1.49 | F27: 1.48 | G27: 1.48 | J27: 1.49 | K27: 0.00 | L27: 0.00 | O27: 1.48 | P27: 0.00 | Q27: 0.00
B28: INE146L01010 | C28: KIRLOSKAR OIL ENGINES LTD | D28: Investment - Equities | E28: 1.25 | F28: 1.23 | G28: 1.23 | J28: 1.25 | K28: 0.00 | L28: 0.00 | O28: 1.23 | P28: 0.00 | Q28: 0.00
B29: INE149A01033 | C29: CHOLAMANDALAM FINANCIAL HOLDINGS LTD | D29: Investment - Equities | E29: 1.33 | F29: 1.38 | G29: 1.33 | J29: 1.33 | K29: 0.00 | L29: 0.00 | O29: 1.38 | P29: 0.00 | Q29: 0.00
B30: INE154A01025 | C30: ITC LTD | D30: Investment - Equities | E30: 1.99 | F30: 1.85 | G30: 1.85 | J30: 1.99 | K30: 0.00 | L30: 0.00 | O30: 1.85 | P30: 0.00 | Q30: 0.00
B31: INE169A01031 | C31: COROMANDEL INTERNATIONAL LTD | D31: Investment - Equities | E31: 1.32 | F31: 1.34 | G31: 1.32 | J31: 1.32 | K31: 0.00 | L31: 0.00 | O31: 1.34 | P31: 0.00 | Q31: 0.00
B32: INE196A01026 | C32: MARICO LTD | D32: Investment - Equities | E32: 1.07 | F32: 1.06 | G32: 1.06 | J32: 1.07 | K32: 0.00 | L32: 0.00 | O32: 1.06 | P32: 0.00 | Q32: 0.00
B33: INE200M01039 | C33: VARUN BEVERAGES LTD. | D33: Investment - Equities | E33: 0.60 | F33: 0.56 | G33: 0.56 | J33: 0.60 | K33: 0.00 | L33: 0.00 | O33: 0.56 | P33: 0.00 | Q33: 0.00
B34: INE211R01019 | C34: POWER MECH PROJECTS LTD | D34: Investment - Equities | E34: 0.45 | F34: 0.52 | G34: 0.45 | J34: 0.45 | K34: 0.00 | L34: 0.00 | O34: 0.52 | P34: 0.00 | Q34: 0.00
B35: INE218I01013 | C35: CANARA ROBECO ASSET MGMT CO LTD | D35: Investment - Equities | E35: 0.81 | F35: 0.81 | G35: 0.81 | J35: 0.81 | K35: 1.03 | L35: 0.81 | O35: 0.81 | P35: 1.03 | Q35: 0.81
B36: INE220B01022 | C36: KALPATARU PROJECTS INTERNATIONAL LIMITED | D36: Investment - Equities | E36: 0.51 | F36: 0.50 | G36: 0.50 | J36: 0.51 | K36: 0.00 | L36: 0.00 | O36: 0.50 | P36: 0.00 | Q36: 0.00
B37: INE238A01034 | C37: AXIS BANK LTD | D37: Investment - Equities | E37: 3.15 | F37: 3.11 | G37: 3.11 | J37: 3.15 | K37: 6.01 | L37: 3.15 | O37: 3.11 | P37: 6.01 | Q37: 3.11
B38: INE260B01028 | C38: GODFREY PHILLIPS INDIA LTD | D38: Investment - Equities | E38: 0.50 | F38: 0.50 | G38: 0.50 | J38: 0.50 | K38: 0.00 | L38: 0.00 | O38: 0.50 | P38: 0.00 | Q38: 0.00
B39: INE262H01021 | C39: PERSISTENT SYSTEMS LTD | D39: Investment - Equities | E39: 0.46 | F39: 0.42 | G39: 0.42 | J39: 0.46 | K39: 0.00 | L39: 0.00 | O39: 0.42 | P39: 0.00 | Q39: 0.00
B40: INE263A01024 | C40: BHARAT ELECTRONICS LTD | D40: Investment - Equities | E40: 1.94 | F40: 1.91 | G40: 1.91 | J40: 1.94 | K40: 0.00 | L40: 0.00 | O40: 1.91 | P40: 0.00 | Q40: 0.00
B41: INE274J01014 | C41: OIL INDIA LTD | D41: Investment - Equities | E41: 0.90 | F41: 0.89 | G41: 0.89 | J41: 0.90 | K41: 2.40 | L41: 0.90 | O41: 0.89 | P41: 2.40 | Q41: 0.89
B42: INE281B01032 | C42: LLOYDS METALS AND ENERGY LTD. | D42: Investment - Equities | E42: 0.37 | F42: 0.38 | G42: 0.37 | J42: 0.37 | K42: 0.00 | L42: 0.00 | O42: 0.38 | P42: 0.00 | Q42: 0.00
B43: INE284S01014 | C43: SJS ENTERPRISES LIMITED | D43: Investment - Equities | E43: 0.95 | F43: 0.94 | G43: 0.94 | J43: 0.95 | K43: 0.00 | L43: 0.00 | O43: 0.94 | P43: 0.00 | Q43: 0.00
B44: INE298J01013 | C44: NIPPON LIFE INDIA ASSET MGMT LTD | D44: Investment - Equities | E44: 0.00 | F44: 0.00 | G44: 0.00 | J44: 0.00 | K44: 3.28 | L44: 0.00 | O44: 0.00 | P44: 3.28 | Q44: 0.00
B45: INE346A01027 | C45: ICICI PRUDENTIAL ASSET MGMT CO LTD | D45: Investment - Equities | E45: 0.56 | F45: 0.56 | G45: 0.56 | J45: 0.56 | K45: 0.00 | L45: 0.00 | O45: 0.56 | P45: 0.00 | Q45: 0.00
B46: INE356A01018 | C46: MPHASIS LTD | D46: Investment - Equities | E46: 0.00 | F46: 0.00 | G46: 0.00 | J46: 0.00 | K46: 1.78 | L46: 0.00 | O46: 0.00 | P46: 1.78 | Q46: 0.00
B47: INE366I01010 | C47: VRL LOGISTICS | D47: Investment - Equities | E47: 0.00 | F47: 0.00 | G47: 0.00 | J47: 0.00 | K47: 1.63 | L47: 0.00 | O47: 0.00 | P47: 1.63 | Q47: 0.00
B48: INE397D01024 | C48: BHARTI AIRTEL LTD | D48: Investment - Equities | E48: 3.85 | F48: 3.81 | G48: 3.81 | J48: 3.85 | K48: 5.17 | L48: 3.85 | O48: 3.81 | P48: 5.17 | Q48: 3.81
B49: INE406M01024 | C49: ERIS LIFESCIENCES LTD | D49: Investment - Equities | E49: 0.73 | F49: 0.74 | G49: 0.73 | J49: 0.73 | K49: 0.00 | L49: 0.00 | O49: 0.74 | P49: 0.00 | Q49: 0.00
B50: INE410P01011 | C50: NARAYANA HRUDAYALAYA LTD | D50: Investment - Equities | E50: 1.09 | F50: 1.08 | G50: 1.08 | J50: 1.09 | K50: 0.00 | L50: 0.00 | O50: 1.08 | P50: 0.00 | Q50: 0.00
B51: INE414G01012 | C51: MUTHOOT FINANCE LTD | D51: Investment - Equities | E51: 0.62 | F51: 0.62 | G51: 0.62 | J51: 0.62 | K51: 0.00 | L51: 0.00 | O51: 0.62 | P51: 0.00 | Q51: 0.00
B52: INE437A01024 | C52: APOLLO HOSPITALS ENTERPRISES LTD | D52: Investment - Equities | E52: 0.54 | F52: 0.55 | G52: 0.54 | J52: 0.54 | K52: 2.86 | L52: 0.54 | O52: 0.55 | P52: 2.86 | Q52: 0.55
B53: INE451A01017 | C53: FORCE MOTORS LTD | D53: Investment - Equities | E53: 0.80 | F53: 0.77 | G53: 0.77 | J53: 0.80 | K53: 2.83 | L53: 0.80 | O53: 0.77 | P53: 2.83 | Q53: 0.77
B54: INE457A01014 | C54: BANK OF MAHARASHTRA | D54: Investment - Equities | E54: 0.65 | F54: 0.64 | G54: 0.64 | J54: 0.65 | K54: 4.05 | L54: 0.65 | O54: 0.64 | P54: 4.05 | Q54: 0.64
B55: INE467B01029 | C55: TATA CONSULTANCY SERVICES LTD | D55: Investment - Equities | E55: 1.80 | F55: 1.78 | G55: 1.78 | J55: 1.80 | K55: 2.69 | L55: 1.80 | O55: 1.78 | P55: 2.69 | Q55: 1.78
B56: INE476A01022 | C56: CANARA BANK | D56: Investment - Equities | E56: 1.05 | F56: 1.03 | G56: 1.03 | J56: 1.05 | K56: 0.00 | L56: 0.00 | O56: 1.03 | P56: 0.00 | Q56: 0.00
B57: INE477A01020 | C57: CAN FIN HOMES LTD | D57: Investment - Equities | E57: 0.00 | F57: 0.00 | G57: 0.00 | J57: 0.00 | K57: 1.94 | L57: 0.00 | O57: 0.00 | P57: 1.94 | Q57: 0.00
B58: INE494B01023 | C58: TVS MOTOR COMPANY LTD | D58: Investment - Equities | E58: 1.57 | F58: 1.55 | G58: 1.55 | J58: 1.57 | K58: 0.00 | L58: 0.00 | O58: 1.55 | P58: 0.00 | Q58: 0.00
B59: INE494B04019 | C59: 6% TVS MOTOR CO LTD NCRPS | D59: Investment - Preferred Stock/Preference Stock | E59: 0.02 | F59: 0.02 | G59: 0.02 | J59: 0.02 | K59: 0.00 | L59: 0.00 | O59: 0.02 | P59: 0.00 | Q59: 0.00
B60: INE531F01023 | C60: NUVAMA WEALTH MANAGEMENT LTD. | D60: Investment - Equities | E60: 0.00 | F60: 0.00 | G60: 0.00 | J60: 0.00 | K60: 2.40 | L60: 0.00 | O60: 0.00 | P60: 2.40 | Q60: 0.00
B61: INE562A01011 | C61: INDIAN BANK | D61: Investment - Equities | E61: 1.11 | F61: 1.12 | G61: 1.11 | J61: 1.11 | K61: 4.38 | L61: 1.11 | O61: 1.12 | P61: 4.38 | Q61: 1.12
B62: INE585B01010 | C62: MARUTI SUZUKI INDIA LTD | D62: Investment - Equities | E62: 0.97 | F62: 0.94 | G62: 0.94 | J62: 0.97 | K62: 0.00 | L62: 0.00 | O62: 0.94 | P62: 0.00 | Q62: 0.00
B63: INE591G01025 | C63: COFORGE LIMITED | D63: Investment - Equities | E63: 0.40 | F63: 0.40 | G63: 0.40 | J63: 0.40 | K63: 0.00 | L63: 0.00 | O63: 0.40 | P63: 0.00 | Q63: 0.00
B64: INE594H01019 | C64: THYROCARE TECHNOLOGIES LTD | D64: Investment - Equities | E64: 1.22 | F64: 1.23 | G64: 1.22 | J64: 1.22 | K64: 1.63 | L64: 1.22 | O64: 1.23 | P64: 1.63 | Q64: 1.23
B65: INE596I01020 | C65: COMPUTER AGE MANAGEMENT SERVICES LTD | D65: Investment - Equities | E65: 0.91 | F65: 0.90 | G65: 0.90 | J65: 0.91 | K65: 2.21 | L65: 0.91 | O65: 0.90 | P65: 2.21 | Q65: 0.90
B66: INE646L01027 | C66: INTERGLOBE AVIATION LTD | D66: Investment - Equities | E66: 2.13 | F66: 2.20 | G66: 2.13 | J66: 2.13 | K66: 2.88 | L66: 2.13 | O66: 2.20 | P66: 2.88 | Q66: 2.20
B67: INE669C01036 | C67: TECH MAHINDRA LTD | D67: Investment - Equities | E67: 0.84 | F67: 0.83 | G67: 0.83 | J67: 0.84 | K67: 1.89 | L67: 0.84 | O67: 0.83 | P67: 1.89 | Q67: 0.83
B68: INE679A01013 | C68: CSB BANK LTD. | D68: Investment - Equities | E68: 0.00 | F68: 0.00 | G68: 0.00 | J68: 0.00 | K68: 1.96 | L68: 0.00 | O68: 0.00 | P68: 1.96 | Q68: 0.00
B69: INE685A01028 | C69: TORRENT PHARMACEUTICALS LTD | D69: Investment - Equities | E69: 1.29 | F69: 1.37 | G69: 1.29 | J69: 1.29 | K69: 0.00 | L69: 0.00 | O69: 1.37 | P69: 0.00 | Q69: 0.00
B70: INE716B01029 | C70: TIPS MUSIC LIMITED | D70: Investment - Equities | E70: 0.50 | F70: 0.53 | G70: 0.50 | J70: 0.50 | K70: 0.00 | L70: 0.00 | O70: 0.53 | P70: 0.00 | Q70: 0.00
B71: INE726V01018 | C71: PRICOL LTD | D71: Investment - Equities | E71: 0.36 | F71: 0.35 | G71: 0.35 | J71: 0.36 | K71: 1.24 | L71: 0.36 | O71: 0.35 | P71: 1.24 | Q71: 0.35
B72: INE733E01010 | C72: NTPC LTD | D72: Investment - Equities | E72: 2.60 | F72: 2.57 | G72: 2.57 | J72: 2.60 | K72: 0.00 | L72: 0.00 | O72: 2.57 | P72: 0.00 | Q72: 0.00
B73: INE737H01014 | C73: FIEM INDUSTRIES LTD | D73: Investment - Equities | E73: 0.51 | F73: 0.50 | G73: 0.50 | J73: 0.51 | K73: 1.00 | L73: 0.51 | O73: 0.50 | P73: 1.00 | Q73: 0.50
B74: INE742F01042 | C74: ADANI PORTS & SPECIAL ECONOMIC ZONE LTD | D74: Investment - Equities | E74: 1.73 | F74: 1.78 | G74: 1.73 | J74: 1.73 | K74: 2.77 | L74: 1.73 | O74: 1.78 | P74: 2.77 | Q74: 1.78
B75: INE752E01010 | C75: POWER GRID CORPORATION OF INDIA LTD | D75: Investment - Equities | E75: 0.94 | F75: 0.93 | G75: 0.93 | J75: 0.94 | K75: 0.00 | L75: 0.00 | O75: 0.93 | P75: 0.00 | Q75: 0.00
B76: INE758T01015 | C76: ETERNAL LIMITED | D76: Investment - Equities | E76: 0.98 | F76: 0.96 | G76: 0.96 | J76: 0.98 | K76: 2.19 | L76: 0.98 | O76: 0.96 | P76: 2.19 | Q76: 0.96
B77: INE775A01035 | C77: SAMVARDHANA MOTHERSON INTERNATIONAL LTD | D77: Investment - Equities | E77: 0.00 | F77: 0.00 | G77: 0.00 | J77: 0.00 | K77: 2.33 | L77: 0.00 | O77: 0.00 | P77: 2.33 | Q77: 0.00
B78: INE777K01022 | C78: R R KABEL LIMITED | D78: Investment - Equities | E78: 0.59 | F78: 0.59 | G78: 0.59 | J78: 0.59 | K78: 2.38 | L78: 0.59 | O78: 0.59 | P78: 2.38 | Q78: 0.59
B79: INE860A01027 | C79: HCL TECHNOLOGIES LTD | D79: Investment - Equities | E79: 0.92 | F79: 0.91 | G79: 0.91 | J79: 0.92 | K79: 0.00 | L79: 0.00 | O79: 0.91 | P79: 0.00 | Q79: 0.00
B80: INE961O01016 | C80: RAINBOW CHILDREN'S MEDICARE LIMITED | D80: Investment - Equities | E80: 0.92 | F80: 0.92 | G80: 0.92 | J80: 0.92 | K80: 1.84 | L80: 0.92 | O80: 0.92 | P80: 1.84 | Q80: 0.92
B81: INE967H01025 | C81: KRISHNA INST OF MEDICAL SCIENCES LTD | D81: Investment - Equities | E81: 0.68 | F81: 0.68 | G81: 0.68 | J81: 0.68 | K81: 0.00 | L81: 0.00 | O81: 0.68 | P81: 0.00 | Q81: 0.00
B82: INE970X01018 | C82: LEMON TREE HOTELS LTD | D82: Investment - Equities | E82: 0.71 | F82: 0.71 | G82: 0.71 | J82: 0.71 | K82: 1.83 | L82: 0.71 | O82: 0.71 | P82: 1.83 | Q82: 0.71
D84: Total | E84: =SUM(E5:E83) -> 97.38 | F84: =SUM(F5:F83) -> 96.65 | G84: 96.16 | J84: =SUM(J5:J83) -> 97.38 | K84: =SUM(K5:K83) -> 99.66 | L84: =SUM(L5:L83) -> 43.38 | O84: =SUM(O5:O83) -> 96.65 | P84: =SUM(P5:P83) -> 99.66 | Q84: =SUM(Q5:Q83) -> 43.10

Sheet Overlap_Hybrid
B1: As on 28-Feb-2026 | C1: Category wise portfolio overlap levels- hybrid vs other hybrid schemes
E2: =E3&" Vs "&F3 -> Shriram Aggressive Hybrid Fund Vs Shriram Balanced Advantage Fund | J2: =J3&" Vs "&K3 -> Shriram Aggressive Hybrid Fund Vs Shriram Multi Asset Allocation Fund | O2: =O3&" Vs "&P3 -> Shriram Balanced Advantage Fund Vs Shriram Multi Asset Allocation Fund
D3: INV_TYPE | E3: Shriram Aggressive Hybrid Fund | F3: Shriram Balanced Advantage Fund | G3: Overlap | J3: Shriram Aggressive Hybrid Fund | K3: Shriram Multi Asset Allocation Fund | L3: Overlap | O3: Shriram Balanced Advantage Fund | P3: Shriram Multi Asset Allocation Fund | Q3: Overlap
B4: ISIN | C4: Security Desc | D4: INV_TYPE | E4: Weight % | F4: Weight % | G4: Weight % | J4: Weight % | K4: Weight % | L4: Weight % | O4: Weight % | P4: Weight % | Q4: Weight %
B5: IN0020210244 | C5: 6.54% GOVT OF INDIA RED 17-01-2032 | D5: Investment - Government Bonds | E5: 6.10 | F5: 3.70 | G5: 3.70 | J5: 6.10 | K5: 0.00 | L5: 0.00 | O5: 3.70 | P5: 0.00 | Q5: 0.00
B6: IN002025Z047 | C6: 364 DAYS TBILL RED 23-04-2026 | D6: Investment - Treasury Bills | E6: 0.60 | F6: 0.91 | G6: 0.60 | J6: 0.60 | K6: 0.48 | L6: 0.48 | O6: 0.91 | P6: 0.48 | Q6: 0.48
B7: INE002A01018 | C7: RELIANCE INDUSTRIES LTD | D7: Investment - Equities | E7: 4.54 | F7: 5.10 | G7: 4.54 | J7: 4.54 | K7: 5.00 | L7: 4.54 | O7: 5.10 | P7: 5.00 | Q7: 5.00 | Z7: INV_TYPE
B8: INE003A01024 | C8: SIEMENS LTD | D8: Investment - Equities | E8: 0.65 | F8: 0.41 | G8: 0.41 | J8: 0.65 | K8: 0.00 | L8: 0.00 | O8: 0.41 | P8: 0.00 | Q8: 0.00 | Z8: Investment - Certificate of Deposit
B9: INE009A01021 | C9: INFOSYS LTD | D9: Investment - Equities | E9: 1.39 | F9: 2.22 | G9: 1.39 | J9: 1.39 | K9: 2.59 | L9: 1.39 | O9: 2.22 | P9: 2.59 | Q9: 2.22 | Z9: Investment - Commercial Paper
B10: INE00H001014 | C10: SWIGGY LIMITED | D10: Investment - Equities | E10: 0.27 | F10: 0.23 | G10: 0.23 | J10: 0.27 | K10: 0.27 | L10: 0.27 | O10: 0.23 | P10: 0.27 | Q10: 0.23 | Z10: Investment - Corporate Bonds / Debentures
B11: INE018A01030 | C11: LARSEN & TOUBRO LTD | D11: Investment - Equities | E11: 1.82 | F11: 1.29 | G11: 1.29 | J11: 1.82 | K11: 1.40 | L11: 1.40 | O11: 1.29 | P11: 1.40 | Q11: 1.29 | Z11: Investment - Government Bonds
B12: INE020B01018 | C12: REC LTD | D12: Investment - Equities | E12: 0.80 | F12: 0.60 | G12: 0.60 | J12: 0.80 | K12: 0.60 | L12: 0.60 | O12: 0.60 | P12: 0.60 | Q12: 0.60 | Z12: Investment - Treasury Bills
B13: INE020B08BE3 | C13: 8.54% REC LTD NCD RED 15-11-28 | D13: Investment - Corporate Bonds / Debentures | E13: 5.56 | F13: 4.66 | G13: 4.66 | J13: 5.56 | K13: 0.00 | L13: 0.00 | O13: 4.66 | P13: 0.00 | Q13: 0.00 | Z13: Investment - TREPS
B14: INE028A01039 | C14: BANK OF BARODA | D14: Investment - Equities | E14: 0.00 | F14: 0.00 | G14: 0.00 | J14: 0.00 | K14: 0.25 | L14: 0.00 | O14: 0.00 | P14: 0.25 | Q14: 0.00 | Z14: Investment - Repo Deposit
B15: INE029A01011 | C15: BHARAT PETROLEUM CORPORATION LTD | D15: Investment - Equities | E15: 1.72 | F15: 2.08 | G15: 1.72 | J15: 1.72 | K15: 1.29 | L15: 1.29 | O15: 2.08 | P15: 1.29 | Q15: 1.29 | Z15: Investment - Equities
B16: INE031A08681 | C16: 8.58% HUDCO LTD RED 14-02-2029 | D16: Investment - Corporate Bonds / Debentures | E16: 0.00 | F16: 0.00 | G16: 0.00 | J16: 0.00 | K16: 0.07 | L16: 0.00 | O16: 0.00 | P16: 0.07 | Q16: 0.00 | Z16: Exchange Traded Fund
B17: INE031A08707 | C17: 8.37% HUDCO NCD RED 23-03-2029 | D17: Investment - Corporate Bonds / Debentures | E17: 0.00 | F17: 0.00 | G17: 0.00 | J17: 0.00 | K17: 0.15 | L17: 0.00 | O17: 0.00 | P17: 0.15 | Q17: 0.00 | Z17: Index Futures
B18: INE031B01049 | C18: AJANTA PHARMA LTD | D18: Investment - Equities | E18: 0.51 | F18: 0.54 | G18: 0.51 | J18: 0.51 | K18: 0.49 | L18: 0.49 | O18: 0.54 | P18: 0.49 | Q18: 0.49 | Z18: Options on Index
B19: INE038A01020 | C19: HINDALCO INDUSTRIES LTD | D19: Investment - Equities | E19: 1.15 | F19: 0.00 | G19: 0.00 | J19: 1.15 | K19: 0.00 | L19: 0.00 | O19: 0.00 | P19: 0.00 | Q19: 0.00 | Z19: Options on Shares
B20: INE03QK01018 | C20: COHANCE LIFESCIENCES LIMITED | D20: Investment - Equities | E20: 0.18 | F20: 0.19 | G20: 0.18 | J20: 0.18 | K20: 0.17 | L20: 0.17 | O20: 0.19 | P20: 0.17 | Q20: 0.17 | Z20: Stock Futures
B21: INE040A01034 | C21: HDFC BANK LTD | D21: Investment - Equities | E21: 5.37 | F21: 6.75 | G21: 5.37 | J21: 5.37 | K21: 4.63 | L21: 4.63 | O21: 6.75 | P21: 4.63 | Q21: 4.63 | Z21: Domestic Mutual Fund Unit
B22: INE044A01036 | C22: SUN PHARMACEUTICAL INDUSTRIES LTD | D22: Investment - Equities | E22: 1.75 | F22: 2.23 | G22: 1.75 | J22: 1.75 | K22: 2.43 | L22: 1.75 | O22: 2.23 | P22: 2.43 | Q22: 2.23 | Z22: Investment CDMDF
B23: INE053F09GR4 | C23: 8.8% INDIAN RAILWAY FIN CORP 03-02-2030 | D23: Investment - Corporate Bonds / Debentures | E23: 0.00 | F23: 0.00 | G23: 0.00 | J23: 0.00 | K23: 0.15 | L23: 0.00 | O23: 0.00 | P23: 0.15 | Q23: 0.00 | Z23: Investment - Preferred Stock/Preference Stock
B24: INE059A01026 | C24: CIPLA LTD | D24: Investment - Equities | E24: 0.81 | F24: 0.77 | G24: 0.77 | J24: 0.81 | K24: 0.61 | L24: 0.61 | O24: 0.77 | P24: 0.61 | Q24: 0.61
B25: INE061F01013 | C25: FORTIS HEALTHCARE LTD | D25: Investment - Equities | E25: 0.21 | F25: 0.00 | G25: 0.00 | J25: 0.21 | K25: 0.00 | L25: 0.00 | O25: 0.00 | P25: 0.00 | Q25: 0.00
B26: INE062A01020 | C26: STATE BANK OF INDIA | D26: Investment - Equities | E26: 2.77 | F26: 3.38 | G26: 2.77 | J26: 2.77 | K26: 3.35 | L26: 2.77 | O26: 3.38 | P26: 3.35 | Q26: 3.35
B27: INE066A01021 | C27: EICHER MOTORS LTD | D27: Investment - Equities | E27: 1.04 | F27: 0.88 | G27: 0.88 | J27: 1.04 | K27: 0.00 | L27: 0.00 | O27: 0.88 | P27: 0.00 | Q27: 0.00
B28: INE066F01020 | C28: HINDUSTAN AERONAUTICS LIMITED | D28: Investment - Equities | E28: 0.00 | F28: 0.00 | G28: 0.00 | J28: 0.00 | K28: 0.42 | L28: 0.00 | O28: 0.00 | P28: 0.42 | Q28: 0.00
B29: INE073K01018 | C29: SONA BLW PRECISION FORGINGS LTD | D29: Investment - Equities | E29: 0.29 | F29: 0.30 | G29: 0.29 | J29: 0.29 | K29: 0.28 | L29: 0.28 | O29: 0.30 | P29: 0.28 | Q29: 0.28
B30: INE079A01024 | C30: AMBUJA CEMENTS LTD | D30: Investment - Equities | E30: 0.70 | F30: 0.95 | G30: 0.70 | J30: 0.70 | K30: 0.63 | L30: 0.63 | O30: 0.95 | P30: 0.63 | Q30: 0.63
B31: INE081A01020 | C31: TATA STEEL LTD. | D31: Investment - Equities | E31: 0.60 | F31: 0.00 | G31: 0.00 | J31: 0.60 | K31: 0.98 | L31: 0.60 | O31: 0.00 | P31: 0.98 | Q31: 0.00
B32: INE085A01013 | C32: CHAMBAL FERTILIZERS & CHEMICALS LTD | D32: Investment - Equities | E32: 0.32 | F32: 0.00 | G32: 0.00 | J32: 0.32 | K32: 0.00 | L32: 0.00 | O32: 0.00 | P32: 0.00 | Q32: 0.00
B33: INE08LI01020 | C33: KRSNAA DIAGNOSTICS LIMITED | D33: Investment - Equities | E33: 0.12 | F33: 0.13 | G33: 0.12 | J33: 0.12 | K33: 0.12 | L33: 0.12 | O33: 0.13 | P33: 0.12 | Q33: 0.12
B34: INE090A01021 | C34: ICICI BANK LTD | D34: Investment - Equities | E34: 3.96 | F34: 4.07 | G34: 3.96 | J34: 3.96 | K34: 3.97 | L34: 3.96 | O34: 4.07 | P34: 3.97 | Q34: 3.97
B35: INE094A01015 | C35: HINDUSTAN PETROLEUM CORPORATION LTD | D35: Investment - Equities | E35: 0.00 | F35: 0.33 | G35: 0.00 | J35: 0.00 | K35: 0.00 | L35: 0.00 | O35: 0.33 | P35: 0.00 | Q35: 0.00
B36: INE0V6F01027 | C36: HYUNDAI MOTOR INDIA LIMITED | D36: Investment - Equities | E36: 0.00 | F36: 0.00 | G36: 0.00 | J36: 0.00 | K36: 0.66 | L36: 0.00 | O36: 0.00 | P36: 0.66 | Q36: 0.00
B37: INE101A01026 | C37: MAHINDRA & MAHINDRA LTD | D37: Investment - Equities | E37: 2.57 | F37: 2.48 | G37: 2.48 | J37: 2.57 | K37: 2.02 | L37: 2.02 | O37: 2.48 | P37: 2.02 | Q37: 2.02
B38: INE115A01026 | C38: LIC HOUSING FINANCE LTD | D38: Investment - Equities | E38: 0.00 | F38: 0.66 | G38: 0.00 | J38: 0.00 | K38: 0.00 | L38: 0.00 | O38: 0.66 | P38: 0.00 | Q38: 0.00
B39: INE115A07QO2 | C39: 7.835% LIC HSG FIN LTD NCD RED 11-05-27 | D39: Investment - Corporate Bonds / Debentures | E39: 4.30 | F39: 1.95 | G39: 1.95 | J39: 4.30 | K39: 1.48 | L39: 1.48 | O39: 1.95 | P39: 1.48 | Q39: 1.48
B40: INE118A01012 | C40: BAJAJ HOLDINGS & INVESTMENT LTD | D40: Investment - Equities | E40: 1.52 | F40: 1.58 | G40: 1.52 | J40: 1.52 | K40: 0.00 | L40: 0.00 | O40: 1.58 | P40: 0.00 | Q40: 0.00
B41: INE118H01025 | C41: BSE LTD | D41: Investment - Equities | E41: 0.22 | F41: 0.00 | G41: 0.00 | J41: 0.22 | K41: 0.00 | L41: 0.00 | O41: 0.00 | P41: 0.00 | Q41: 0.00
B42: INE123W01016 | C42: SBI LIFE INSURANCE CO LTD | D42: Investment - Equities | E42: 0.45 | F42: 0.47 | G42: 0.45 | J42: 0.45 | K42: 0.35 | L42: 0.35 | O42: 0.47 | P42: 0.35 | Q42: 0.35
B43: INE126A01031 | C43: E.I.D. PARRY (INDIA) LTD | D43: Investment - Equities | E43: 0.00 | F43: 0.66 | G43: 0.00 | J43: 0.00 | K43: 0.00 | L43: 0.00 | O43: 0.66 | P43: 0.00 | Q43: 0.00
B44: INE129A01019 | C44: GAIL (INDIA) LTD | D44: Investment - Equities | E44: 0.42 | F44: 0.00 | G44: 0.00 | J44: 0.42 | K44: 0.00 | L44: 0.00 | O44: 0.00 | P44: 0.00 | Q44: 0.00
B45: INE138Y01010 | C45: KFIN TECHNOLOGIES LTD. | D45: Investment - Equities | E45: 0.43 | F45: 0.00 | G45: 0.00 | J45: 0.43 | K45: 0.00 | L45: 0.00 | O45: 0.00 | P45: 0.00 | Q45: 0.00
B46: INE146L01010 | C46: KIRLOSKAR OIL ENGINES LTD | D46: Investment - Equities | E46: 0.58 | F46: 0.58 | G46: 0.58 | J46: 0.58 | K46: 0.61 | L46: 0.58 | O46: 0.58 | P46: 0.61 | Q46: 0.58
B47: INE154A01025 | C47: ITC LTD | D47: Investment - Equities | E47: 2.21 | F47: 2.42 | G47: 2.21 | J47: 2.21 | K47: 1.54 | L47: 1.54 | O47: 2.42 | P47: 1.54 | Q47: 1.54
B48: INE169A01031 | C48: COROMANDEL INTERNATIONAL LTD | D48: Investment - Equities | E48: 0.25 | F48: 0.46 | G48: 0.25 | J48: 0.25 | K48: 0.00 | L48: 0.00 | O48: 0.46 | P48: 0.00 | Q48: 0.00
B49: INE180A01020 | C49: MAX FINANCIAL SERVICES LTD | D49: Investment - Equities | E49: 0.00 | F49: 0.11 | G49: 0.00 | J49: 0.00 | K49: 0.00 | L49: 0.00 | O49: 0.11 | P49: 0.00 | Q49: 0.00
B50: INE196A01026 | C50: MARICO LTD | D50: Investment - Equities | E50: 0.85 | F50: 1.42 | G50: 0.85 | J50: 0.85 | K50: 0.58 | L50: 0.58 | O50: 1.42 | P50: 0.58 | Q50: 0.58
B51: INE200M01039 | C51: VARUN BEVERAGES LTD. | D51: Investment - Equities | E51: 0.96 | F51: 0.94 | G51: 0.94 | J51: 0.96 | K51: 0.99 | L51: 0.96 | O51: 0.94 | P51: 0.99 | Q51: 0.94
B52: INE202E08011 | C52: 7.22% INDIAN REN ED NCD RED 06-02-2027 | D52: Investment - Corporate Bonds / Debentures | E52: 0.00 | F52: 0.00 | G52: 0.00 | J52: 0.00 | K52: 0.07 | L52: 0.00 | O52: 0.00 | P52: 0.07 | Q52: 0.00
B53: INE211R01019 | C53: POWER MECH PROJECTS LTD | D53: Investment - Equities | E53: 0.13 | F53: 0.14 | G53: 0.13 | J53: 0.13 | K53: 0.12 | L53: 0.12 | O53: 0.14 | P53: 0.12 | Q53: 0.12
B54: INE213A01029 | C54: OIL & NATURAL GAS CORPORATION LTD | D54: Investment - Equities | E54: 0.44 | F54: 0.40 | G54: 0.40 | J54: 0.44 | K54: 0.31 | L54: 0.31 | O54: 0.40 | P54: 0.31 | Q54: 0.31
B55: INE218I01013 | C55: CANARA ROBECO ASSET MGMT CO LTD | D55: Investment - Equities | E55: 0.49 | F55: 0.51 | G55: 0.49 | J55: 0.49 | K55: 0.47 | L55: 0.47 | O55: 0.51 | P55: 0.47 | Q55: 0.47
B56: INE220B01022 | C56: KALPATARU PROJECTS INTERNATIONAL LIMITED | D56: Investment - Equities | E56: 0.68 | F56: 0.66 | G56: 0.66 | J56: 0.68 | K56: 0.69 | L56: 0.68 | O56: 0.66 | P56: 0.69 | Q56: 0.66
B57: INE237A01036 | C57: KOTAK MAHINDRA BANK LTD | D57: Investment - Equities | E57: 0.96 | F57: 2.08 | G57: 0.96 | J57: 0.96 | K57: 2.22 | L57: 0.96 | O57: 2.08 | P57: 2.22 | Q57: 2.08
B58: INE238A01034 | C58: AXIS BANK LTD | D58: Investment - Equities | E58: 4.10 | F58: 2.20 | G58: 2.20 | J58: 4.10 | K58: 2.72 | L58: 2.72 | O58: 2.20 | P58: 2.72 | Q58: 2.20
B59: INE261F08AV0 | C59: 8.22% NABARD NCD RED 13-12-2028 | D59: Investment - Corporate Bonds / Debentures | E59: 0.00 | F59: 0.00 | G59: 0.00 | J59: 0.00 | K59: 0.36 | L59: 0.00 | O59: 0.00 | P59: 0.36 | Q59: 0.00
B60: INE261F08BX4 | C60: 7.43% NABARD GOI SERV NCD RED 31-01-2030 | D60: Investment - Corporate Bonds / Debentures | E60: 0.00 | F60: 0.00 | G60: 0.00 | J60: 0.00 | K60: 0.14 | L60: 0.00 | O60: 0.00 | P60: 0.14 | Q60: 0.00
B61: INE261F08EI9 | C61: 7.7% NABARD NCD SR 25A RED 30-09-2027 | D61: Investment - Corporate Bonds / Debentures | E61: 4.18 | F61: 7.60 | G61: 4.18 | J61: 4.18 | K61: 6.46 | L61: 4.18 | O61: 7.60 | P61: 6.46 | Q61: 6.46
B62: INE263A01024 | C62: BHARAT ELECTRONICS LTD | D62: Investment - Equities | E62: 0.91 | F62: 1.71 | G62: 0.91 | J62: 0.91 | K62: 0.44 | L62: 0.44 | O62: 1.71 | P62: 0.44 | Q62: 0.44
B63: INE274J01014 | C63: OIL INDIA LTD | D63: Investment - Equities | E63: 0.66 | F63: 0.56 | G63: 0.56 | J63: 0.66 | K63: 0.46 | L63: 0.46 | O63: 0.56 | P63: 0.46 | Q63: 0.46
B64: INE281B01032 | C64: LLOYDS METALS AND ENERGY LTD. | D64: Investment - Equities | E64: 0.40 | F64: 0.00 | G64: 0.00 | J64: 0.40 | K64: 0.08 | L64: 0.08 | O64: 0.00 | P64: 0.08 | Q64: 0.00
B65: INE296A01032 | C65: BAJAJ FINANCE LTD | D65: Investment - Equities | E65: 0.00 | F65: 1.91 | G65: 0.00 | J65: 0.00 | K65: 2.18 | L65: 0.00 | O65: 1.91 | P65: 2.18 | Q65: 1.91
B66: INE324D01010 | C66: LG ELECTRONICS INDIA LTD | D66: Investment - Equities | E66: 0.02 | F66: 0.03 | G66: 0.02 | J66: 0.02 | K66: 0.02 | L66: 0.02 | O66: 0.03 | P66: 0.02 | Q66: 0.02
B67: INE346A01027 | C67: ICICI PRUDENTIAL ASSET MGMT CO LTD | D67: Investment - Equities | E67: 0.05 | F67: 0.05 | G67: 0.05 | J67: 0.05 | K67: 0.04 | L67: 0.04 | O67: 0.05 | P67: 0.04 | Q67: 0.04
B68: INE361B01024 | C68: DIVI'S LABORATORIES LTD | D68: Investment - Equities | E68: 0.00 | F68: 0.54 | G68: 0.00 | J68: 0.00 | K68: 0.93 | L68: 0.00 | O68: 0.54 | P68: 0.93 | Q68: 0.54
B69: INE379A01028 | C69: ITC HOTELS LIMITED | D69: Investment - Equities | E69: 0.00 | F69: 0.00 | G69: 0.00 | J69: 0.00 | K69: 0.44 | L69: 0.00 | O69: 0.00 | P69: 0.44 | Q69: 0.00
B70: INE397D01024 | C70: BHARTI AIRTEL LTD | D70: Investment - Equities | E70: 3.25 | F70: 3.65 | G70: 3.25 | J70: 3.25 | K70: 3.31 | L70: 3.25 | O70: 3.65 | P70: 3.31 | Q70: 3.31
B71: INE406A01037 | C71: AUROBINDO PHARMA LTD | D71: Investment - Equities | E71: 0.62 | F71: 0.00 | G71: 0.00 | J71: 0.62 | K71: 0.00 | L71: 0.00 | O71: 0.00 | P71: 0.00 | Q71: 0.00
B72: INE406M01024 | C72: ERIS LIFESCIENCES LTD | D72: Investment - Equities | E72: 0.00 | F72: 0.00 | G72: 0.00 | J72: 0.00 | K72: 0.45 | L72: 0.00 | O72: 0.00 | P72: 0.45 | Q72: 0.00
B73: INE410P01011 | C73: NARAYANA HRUDAYALAYA LTD | D73: Investment - Equities | E73: 0.32 | F73: 0.00 | G73: 0.00 | J73: 0.32 | K73: 0.37 | L73: 0.32 | O73: 0.00 | P73: 0.37 | Q73: 0.00
B74: INE414G01012 | C74: MUTHOOT FINANCE LTD | D74: Investment - Equities | E74: 0.00 | F74: 0.40 | G74: 0.00 | J74: 0.00 | K74: 0.00 | L74: 0.00 | O74: 0.40 | P74: 0.00 | Q74: 0.00
B75: INE421D01022 | C75: CCL PRODUCTS (INDIA) LTD | D75: Investment - Equities | E75: 0.23 | F75: 0.00 | G75: 0.00 | J75: 0.23 | K75: 0.00 | L75: 0.00 | O75: 0.00 | P75: 0.00 | Q75: 0.00
B76: INE467B01029 | C76: TATA CONSULTANCY SERVICES LTD | D76: Investment - Equities | E76: 1.62 | F76: 1.20 | G76: 1.20 | J76: 1.62 | K76: 1.54 | L76: 1.54 | O76: 1.20 | P76: 1.54 | Q76: 1.20
B77: INE494B01023 | C77: TVS MOTOR COMPANY LTD | D77: Investment - Equities | E77: 1.21 | F77: 0.64 | G77: 0.64 | J77: 1.21 | K77: 1.15 | L77: 1.15 | O77: 0.64 | P77: 1.15 | Q77: 0.64
B78: INE494B04019 | C78: 6% TVS MOTOR CO LTD NCRPS | D78: Investment - Preferred Stock/Preference Stock | E78: 0.02 | F78: 0.01 | G78: 0.01 | J78: 0.02 | K78: 0.02 | L78: 0.02 | O78: 0.01 | P78: 0.02 | Q78: 0.01
B79: INE514E08GB4 | C79: 7.45% EXIM BOND SR Z01 NCD 12-04-2028 | D79: Investment - Corporate Bonds / Debentures | E79: 0.00 | F79: 3.70 | G79: 0.00 | J79: 0.00 | K79: 0.00 | L79: 0.00 | O79: 3.70 | P79: 0.00 | Q79: 0.00
B80: INE522D01027 | C80: MANAPPURAM FINANCE LTD | D80: Investment - Equities | E80: 0.20 | F80: 0.16 | G80: 0.16 | J80: 0.20 | K80: 0.00 | L80: 0.00 | O80: 0.16 | P80: 0.00 | Q80: 0.00
B81: INE522F01014 | C81: COAL INDIA LTD | D81: Investment - Equities | E81: 0.00 | F81: 0.00 | G81: 0.00 | J81: 0.00 | K81: 0.79 | L81: 0.00 | O81: 0.00 | P81: 0.79 | Q81: 0.00
B82: INE572E01012 | C82: PNB HOUSING FINANCE LTD | D82: Investment - Equities | E82: 0.82 | F82: 0.00 | G82: 0.00 | J82: 0.82 | K82: 0.00 | L82: 0.00 | O82: 0.00 | P82: 0.00 | Q82: 0.00
B83: INE584A01023 | C83: NMDC LTD | D83: Investment - Equities | E83: 0.53 | F83: 0.45 | G83: 0.45 | J83: 0.53 | K83: 0.36 | L83: 0.36 | O83: 0.45 | P83: 0.36 | Q83: 0.36
B84: INE585B01010 | C84: MARUTI SUZUKI INDIA LTD | D84: Investment - Equities | E84: 0.84 | F84: 0.97 | G84: 0.84 | J84: 0.84 | K84: 0.73 | L84: 0.73 | O84: 0.97 | P84: 0.73 | Q84: 0.73
B85: INE591G01025 | C85: COFORGE LIMITED | D85: Investment - Equities | E85: 1.01 | F85: 0.00 | G85: 0.00 | J85: 1.01 | K85: 0.00 | L85: 0.00 | O85: 0.00 | P85: 0.00 | Q85: 0.00
B86: INE646L01027 | C86: INTERGLOBE AVIATION LTD | D86: Investment - Equities | E86: 1.12 | F86: 1.23 | G86: 1.12 | J86: 1.12 | K86: 1.14 | L86: 1.12 | O86: 1.23 | P86: 1.14 | Q86: 1.14
B87: INE703B01027 | C87: RATNAMANI METALS & TUBES LTD | D87: Investment - Equities | E87: 0.00 | F87: 0.00 | G87: 0.00 | J87: 0.00 | K87: 0.62 | L87: 0.00 | O87: 0.00 | P87: 0.62 | Q87: 0.00
B88: INE716B01029 | C88: TIPS MUSIC LIMITED | D88: Investment - Equities | E88: 0.36 | F88: 0.38 | G88: 0.36 | J88: 0.36 | K88: 0.34 | L88: 0.34 | O88: 0.38 | P88: 0.34 | Q88: 0.34
B89: INE726V01018 | C89: PRICOL LTD | D89: Investment - Equities | E89: 0.50 | F89: 0.00 | G89: 0.00 | J89: 0.50 | K89: 0.00 | L89: 0.00 | O89: 0.00 | P89: 0.00 | Q89: 0.00
B90: INE733E01010 | C90: NTPC LTD | D90: Investment - Equities | E90: 1.33 | F90: 1.05 | G90: 1.05 | J90: 1.33 | K90: 1.15 | L90: 1.15 | O90: 1.05 | P90: 1.15 | Q90: 1.05
B91: INE742F01042 | C91: ADANI PORTS & SPECIAL ECONOMIC ZONE LTD | D91: Investment - Equities | E91: 0.54 | F91: 0.59 | G91: 0.54 | J91: 0.54 | K91: 0.56 | L91: 0.54 | O91: 0.59 | P91: 0.56 | Q91: 0.56
B92: INE752E01010 | C92: POWER GRID CORPORATION OF INDIA LTD | D92: Investment - Equities | E92: 0.67 | F92: 1.58 | G92: 0.67 | J92: 0.67 | K92: 0.37 | L92: 0.37 | O92: 1.58 | P92: 0.37 | Q92: 0.37
B93: INE758T01015 | C93: ETERNAL LIMITED | D93: Investment - Equities | E93: 0.86 | F93: 0.85 | G93: 0.85 | J93: 0.86 | K93: 0.81 | L93: 0.81 | O93: 0.85 | P93: 0.81 | Q93: 0.81
B94: INE777K01022 | C94: R R KABEL LIMITED | D94: Investment - Equities | E94: 0.43 | F94: 0.45 | G94: 0.43 | J94: 0.43 | K94: 0.41 | L94: 0.41 | O94: 0.45 | P94: 0.41 | Q94: 0.41
B95: INE795G01014 | C95: HDFC LIFE INSURANCE COMPANY LTD | D95: Investment - Equities | E95: 0.46 | F95: 0.31 | G95: 0.31 | J95: 0.46 | K95: 0.88 | L95: 0.46 | O95: 0.31 | P95: 0.88 | Q95: 0.31
B96: INE806T01020 | C96: SAPPHIRE FOODS INDIA LIMITED | D96: Investment - Equities | E96: 0.57 | F96: 0.60 | G96: 0.57 | J96: 0.57 | K96: 0.55 | L96: 0.55 | O96: 0.60 | P96: 0.55 | Q96: 0.55
B97: INE818H01020 | C97: LT FOODS LTD | D97: Investment - Equities | E97: 0.42 | F97: 0.44 | G97: 0.42 | J97: 0.42 | K97: 0.40 | L97: 0.40 | O97: 0.44 | P97: 0.40 | Q97: 0.40
B98: INE860A01027 | C98: HCL TECHNOLOGIES LTD | D98: Investment - Equities | E98: 0.84 | F98: 2.02 | G98: 0.84 | J98: 0.84 | K98: 1.45 | L98: 0.84 | O98: 2.02 | P98: 1.45 | Q98: 1.45
B99: INE893J01029 | C99: MOLD-TEK PACKAGING LTD | D99: Investment - Equities | E99: 0.86 | F99: 0.00 | G99: 0.00 | J99: 0.86 | K99: 0.44 | L99: 0.44 | O99: 0.00 | P99: 0.44 | Q99: 0.00
B100: INE961O01016 | C100: RAINBOW CHILDREN'S MEDICARE LIMITED | D100: Investment - Equities | E100: 0.71 | F100: 0.74 | G100: 0.71 | J100: 0.71 | K100: 0.69 | L100: 0.69 | O100: 0.74 | P100: 0.69 | Q100: 0.69
B101: INF204KB17I5 | C101: NIPPON INDIA ETF GOLD BEES | D101: Exchange Traded Fund | E101: 0.00 | F101: 0.00 | G101: 0.00 | J101: 0.00 | K101: 12.85 | L101: 0.00 | O101: 0.00 | P101: 12.85 | Q101: 0.00
B102: INF204KC1402 | C102: NIPPON IND MUT FD-NIPPON IND SILVER ETF | D102: Exchange Traded Fund | E102: 0.00 | F102: 0.00 | G102: 0.00 | J102: 0.00 | K102: 3.13 | L102: 0.00 | O102: 0.00 | P102: 3.13 | Q102: 0.00
D104: Total | E104: =SUM(E25:E103) -> 58.12 | F104: =SUM(F25:F103) -> 63.57 | G104: 44.93 | J104: =SUM(J25:J103) -> 58.12 | K104: =SUM(K25:K103) -> 70.65 | L104: =SUM(L25:L103) -> 41.83 | O104: =SUM(O25:O103) -> 63.57 | P104: =SUM(P25:P103) -> 70.65 | Q104: =SUM(Q25:Q103) -> 45.88

Sheet Overlap_Debt
B1: As on 28-Feb-2026 | C1: Category wise portfolio overlap levels - debt scheme vs other debt schemes
E2: =E3&" Vs "&F3 -> Shriram Liquid Fund Vs Shriram Money Market Fund | J2: =J3&" Vs "&K3 -> Shriram Liquid Fund Vs Shriram Overnight Fund | O2: =O3&" Vs "&P3 -> Shriram Money Market Fund Vs Shriram Overnight Fund
D3: INV_TYPE | E3: Shriram Liquid Fund | F3: Shriram Money Market Fund | G3: Overlap | J3: Shriram Liquid Fund | K3: Shriram Overnight Fund | L3: Overlap | O3: Shriram Money Market Fund | P3: Shriram Overnight Fund | Q3: Overlap
B4: ISIN | C4: Security Desc | D4: INV_TYPE | E4: Weight % | F4: Weight % | G4: Weight % | J4: Weight % | K4: Weight % | L4: Weight % | O4: Weight % | P4: Weight % | Q4: Weight %
B5: IN002025X372 | C5: 91 DAYS TBILL RED 12-03-2026 | D5: Investment - Treasury Bills | E5: 6.73 | F5: 0.00 | G5: 0.00 | J5: 6.73 | K5: 0.00 | L5: 0.00 | O5: 0.00 | P5: 0.00 | Q5: 0.00
B6: IN002025X448 | C6: 91 DAYS TBILL RED 07-05-2026 | D6: Investment - Treasury Bills | E6: 4.45 | F6: 0.00 | G6: 0.00 | J6: 4.45 | K6: 0.00 | L6: 0.00 | O6: 0.00 | P6: 0.00 | Q6: 0.00
B7: IN002025Z377 | C7: 364 DAYS TBILL RED 10-12-2026 | D7: Investment - Treasury Bills | E7: 0.00 | F7: 1.38 | G7: 0.00 | J7: 0.00 | K7: 0.00 | L7: 0.00 | O7: 1.38 | P7: 0.00 | Q7: 0.00 | Z7: INV_TYPE
B8: INE028A16HW0 | C8: BANK OF BARODA CD RED 06-03-26 | D8: Investment - Certificate of Deposit | E8: 6.73 | F8: 0.00 | G8: 0.00 | J8: 6.73 | K8: 0.00 | L8: 0.00 | O8: 0.00 | P8: 0.00 | Q8: 0.00 | Z8: Investment - Certificate of Deposit
B9: INE028A16JU0 | C9: BANK OF BARODA CD RED 15-06-2026 | D9: Investment - Certificate of Deposit | E9: 0.00 | F9: 7.07 | G9: 0.00 | J9: 0.00 | K9: 0.00 | L9: 0.00 | O9: 7.07 | P9: 0.00 | Q9: 0.00 | Z9: Investment - Commercial Paper
B10: INE028E14VB2 | C10: KOTAK SECURITIES LTD CP RED 23-02-2027 | D10: Investment - Commercial Paper | E10: 0.00 | F10: 6.73 | G10: 0.00 | J10: 0.00 | K10: 0.00 | L10: 0.00 | O10: 6.73 | P10: 0.00 | Q10: 0.00 | Z10: Investment - Corporate Bonds / Debentures
B11: INE084A16FC9 | C11: BANK OF INDIA CD RED 05-03-2026 | D11: Investment - Certificate of Deposit | E11: 6.73 | F11: 0.00 | G11: 0.00 | J11: 6.73 | K11: 0.00 | L11: 0.00 | O11: 0.00 | P11: 0.00 | Q11: 0.00 | Z11: Investment - Government Bonds
B12: INE090AD6287 | C12: ICICI BANK CD RED 12-02-2027 | D12: Investment - Certificate of Deposit | E12: 0.00 | F12: 6.77 | G12: 0.00 | J12: 0.00 | K12: 0.00 | L12: 0.00 | O12: 6.77 | P12: 0.00 | Q12: 0.00 | Z12: Investment - Treasury Bills
B13: INE121A14YG6 | C13: CHOLAMANDALAM INV & FI CP RED 25-01-2027 | D13: Investment - Commercial Paper | E13: 0.00 | F13: 6.76 | G13: 0.00 | J13: 0.00 | K13: 0.00 | L13: 0.00 | O13: 6.76 | P13: 0.00 | Q13: 0.00 | Z13: Investment - TREPS
B14: INE160A16TT2 | C14: PUNJAB NATIONAL BANK CD 09-03-26 | D14: Investment - Certificate of Deposit | E14: 8.97 | F14: 0.00 | G14: 0.00 | J14: 8.97 | K14: 0.00 | L14: 0.00 | O14: 0.00 | P14: 0.00 | Q14: 0.00 | Z14: Investment - Repo Deposit
B15: INE160A16UE2 | C15: PUNJAB NATIONAL BANK CD 05-02-27 | D15: Investment - Certificate of Deposit | E15: 0.00 | F15: 6.78 | G15: 0.00 | J15: 0.00 | K15: 0.00 | L15: 0.00 | O15: 6.78 | P15: 0.00 | Q15: 0.00 | Z15: Investment - Equities
B16: INE237AD6141 | C16: KOTAK MAHINDRA BANK CD 12-02-27 | D16: Investment - Certificate of Deposit | E16: 0.00 | F16: 6.77 | G16: 0.00 | J16: 0.00 | K16: 0.00 | L16: 0.00 | O16: 6.77 | P16: 0.00 | Q16: 0.00 | Z16: Exchange Traded Fund
B17: INE238AD6CA3 | C17: AXIS BANK LTD CD RED 16-12-26 | D17: Investment - Certificate of Deposit | E17: 0.00 | F17: 6.83 | G17: 0.00 | J17: 0.00 | K17: 0.00 | L17: 0.00 | O17: 6.83 | P17: 0.00 | Q17: 0.00 | Z17: Index Futures
B18: INE248U14TE0 | C18: 360 ONE PRIME LTD. CP 25-02-2027 | D18: Investment - Commercial Paper | E18: 0.00 | F18: 4.01 | G18: 0.00 | J18: 0.00 | K18: 0.00 | L18: 0.00 | O18: 4.01 | P18: 0.00 | Q18: 0.00 | Z18: Options on Index
B19: INE261F16AH2 | C19: NABARD CD RED 28-01-2027 | D19: Investment - Certificate of Deposit | E19: 0.00 | F19: 6.78 | G19: 0.00 | J19: 0.00 | K19: 0.00 | L19: 0.00 | O19: 6.78 | P19: 0.00 | Q19: 0.00 | Z19: Options on Shares
B20: INE476A16B23 | C20: CANARA BANK CD RED 12-03-2026 | D20: Investment - Certificate of Deposit | E20: 0.00 | F20: 7.20 | G20: 0.00 | J20: 0.00 | K20: 0.00 | L20: 0.00 | O20: 7.20 | P20: 0.00 | Q20: 0.00 | Z20: Stock Futures
B21: INE476A16G51 | C21: CANARA BANK CD RED 07-05-2026 | D21: Investment - Certificate of Deposit | E21: 6.65 | F21: 0.00 | G21: 0.00 | J21: 6.65 | K21: 0.00 | L21: 0.00 | O21: 0.00 | P21: 0.00 | Q21: 0.00 | Z21: Domestic Mutual Fund Unit
B22: INE556F16BY8 | C22: SIDBI CD RED 04-02-2027 | D22: Investment - Certificate of Deposit | E22: 0.00 | F22: 6.77 | G22: 0.00 | J22: 0.00 | K22: 0.00 | L22: 0.00 | O22: 6.77 | P22: 0.00 | Q22: 0.00 | Z22: Investment CDMDF
B23: INE562A16QB3 | C23: INDIAN BANK CD RED 13-03-2026 | D23: Investment - Certificate of Deposit | E23: 0.00 | F23: 7.20 | G23: 0.00 | J23: 0.00 | K23: 0.00 | L23: 0.00 | O23: 7.20 | P23: 0.00 | Q23: 0.00 | Z23: Investment - Preferred Stock/Preference Stock
B24: INE562A16QK4 | C24: INDIAN BANK CD RED 12-05-2026 | D24: Investment - Certificate of Deposit | E24: 6.64 | F24: 0.00 | G24: 0.00 | J24: 6.64 | K24: 0.00 | L24: 0.00 | O24: 0.00 | P24: 0.00 | Q24: 0.00
B25: INE692A16KP1 | C25: UNION BANK OF INDIA CD RED 12-06-2026 | D25: Investment - Certificate of Deposit | E25: 0.00 | F25: 7.07 | G25: 0.00 | J25: 0.00 | K25: 0.00 | L25: 0.00 | O25: 7.07 | P25: 0.00 | Q25: 0.00
B26: INE733E14BU9 | C26: NTPC LTD CP RED 10-03-2026 | D26: Investment - Commercial Paper | E26: 0.00 | F26: 7.20 | G26: 0.00 | J26: 0.00 | K26: 0.00 | L26: 0.00 | O26: 7.20 | P26: 0.00 | Q26: 0.00
B27: INE763G14F19 | C27: ICICI SECURITIES CP RED 06-05-2026 | D27: Investment - Commercial Paper | E27: 4.43 | F27: 0.00 | G27: 0.00 | J27: 4.43 | K27: 0.00 | L27: 0.00 | O27: 0.00 | P27: 0.00 | Q27: 0.00
B28: INE929O14EL5 | C28: RELIANCE RETAIL VENT CP 09-03-26 | D28: Investment - Commercial Paper | E28: 6.73 | F28: 0.00 | G28: 0.00 | J28: 6.73 | K28: 0.00 | L28: 0.00 | O28: 0.00 | P28: 0.00 | Q28: 0.00
B29: INF0RQ622028 | C29: SBI CDMDF--A2 | D29: Investment CDMDF | E29: 0.19 | F29: 0.00 | G29: 0.00 | J29: 0.19 | K29: 0.00 | L29: 0.00 | O29: 0.00 | P29: 0.00 | Q29: 0.00
D31: Total | E31: =SUM(E5:E30) -> 58.24 | F31: =SUM(F5:F30) -> 95.30 | G31: 0.00 | J31: =SUM(J5:J30) -> 58.24 | K31: =SUM(K5:K30) -> 0.00 | L31: =SUM(L5:L30) -> 0.00 | O31: =SUM(O5:O30) -> 95.30 | P31: =SUM(P5:P30) -> 0.00 | Q31: =SUM(Q5:Q30) -> 0.00
